Workbook

Sheet Input
A5: Borrower's Name: | G5: Loan #
F6: 0.21
A7: Co Borrower Name: | G7: Ticket #:
C8: TES
A9: Calculated By: | F9: 0.23 | G9: Date:
G10: 2024
G11: 2023
C12: Year | D12: Year | G12: 2022
B13: Tax Year: | C13: 2024 | D13: =C13-1 -> 2023 | G13: 2021
G14: 2020
A21: *This tab should not be uploaded to images.* | I21: 5.5.25 (V1)

Sheet UW Calculator
L1: Hide | M1: Hide | N1: Hide | V1: Hide | W1: Hide | X1: Hide | Y1: Hide | Z1: Hide | AA1: Hide | AB1: Hide | AC1: Hide | AD1: Hide | AE1: Hide | AF1: Hide
A2: Hide | C2: Primary | D2: Paid Off | H2: Refinance | I2: Y
A3: Hide | C3: Second/Investment | D3: Yes | H3: Purchase | I3: N
B4: Loan Details | F4: Income
B5: Loan Number | C5: =Input!I5 -> 0 | F5: Borrower | H5: Total Income | J5: Date
B6: Borrower Last Name | C6: =Input!C5 -> 0 | F6: #1
B7: Occupancy | C7: Primary | F7: #2
F8: #3
B9: Loan Amount | F9: #4
B10: Interest Rate | F10: =IF(C20>0, "Subject Rental Income", "") ->  | H10: =IF(C7="Primary", C20, M23) -> 0 | J10: =IF(M11>0.01, "Note: Income from UW calc tab should match income from summary tab", "") ->  | L10: =MIN(J6:J9) -> 0
B11: Loan Term (months) | F11: Other REO Rental Income | L11: =H12-H13 -> 0 | M11: =IF(L11<0, L11*-1, L11) -> 0
B12: Monthly P&I Payment | C12: =-PMT(C10/12,C11,C9,0) ->  | F12: Total Income From Summary Tab | H12: =IF(Summary!L47 > Summary!L49, Summary!L47, Summary!L49) -> 0
B13: Secondary Financing (P&I) | F13: Total Income (From UW Calc Tab) | H13: =SUM(H6:H11) -> 0
B14: Hazard Insurance
B15: Taxes | F15: Qualifying Ratios
B16: Mortgage Insurance | F16: Primary Housing Expenses | H16: =IF(C7="Primary", C19, C22) -> 
B17: HOA Dues | F17: Total All Monthly Payments | H17: =IF(C7="Primary", H16+C41, C41+C22) -> 
B18: Other
B19: Total Subject Payment | C19: =SUM(C12:C18) ->  | F19: Housing Expense Ratio | H19: =IF(C7="Primary", C19/H13, C22/H13) -> 
B20: Subject Rental Income | F20: Total Obligation Ratio | H20: =(H17/H13) -> 
B21: =IF(C7="Primary", "", "Subject Net Rent loss/Income") ->  | C21: =IF(C7="Primary", " ", C20-C19) -> 
B22: =IF(C7="Primary", " ", "Primary PITIA Payment") ->  | F22: Max PITIA (Conforming only) | H22: =IF(H20<0.435, C19+H13*0.015, C19) ->  | M22: =IF(C21>0, " ", C21*-1) ->  | N22: Rent loss
M23: =IF(C21<0, " ", C21) ->  | N23: Rent positive
B24: Liabilities | F24: Assets
B25: Liabilities | C25: Monthly Payments | D25: Omit | F25: Account | G25: Balance | H25: Factor | I25: Liquid | J25: Effective Balance | K25: Date | L25: Verified
B26: #1 | E26: =IF(D26=0, C26, 0) -> 0 | F26: #1 | I26: Y | J26: =G26*H26 -> 0 | L26: Not Verified
B27: #2 | E27: =IF(D27=0, C27, 0) -> 0 | F27: #2 | I27: y | J27: =G27*H27 -> 0 | M27: Liquid | N27: Non-Liquid
B28: #3 | E28: 0 | F28: #3 | I28: Y | J28: 0 | M28: =IF(I26="Y", J26, 0) -> 0 | N28: =IF(I26="N", J26, 0) -> 0
B29: #4 | E29: 0 | F29: #4 | I29: Y | J29: 0 | M29: 0 | N29: 0
B30: #5 | E30: 0 | F30: #5 | I30: Y | J30: 0 | M30: 0 | N30: 0
B31: #6 | E31: 0 | F31: #6 | I31: Y | J31: 0 | M31: 0 | N31: 0
B32: #7 | E32: 0 | F32: #7 | I32: Y | J32: 0 | M32: 0 | N32: 0
B33: #8 | E33: 0 | F33: #8 | I33: Y | J33: 0 | M33: 0 | N33: 0
B34: #9 | E34: 0 | F34: =IF('Additional Details'!J25> 0, "Additional Assets", "") ->  | G34: =IF('Additional Details'!J25> 0, "Additional Balance Total", "") ->  | J34: =IF('Additional Details'!J25> 0, 'Additional Details'!J25, "") ->  | K34: =IF('Additional Details'!K25> 0, 'Additional Details'!K25, "") ->  | M34: 0 | N34: 0
B35: #10 | E35: 0 | F35: EMD Amount (If Applicable) | I35: 0 | M35: 0 | N35: 0
B36: Additional Debts (2nd Tab) | C36: ='Additional Details'!C27 -> 0 | F36: Total Liquid Assets | H36: =M36 -> 0 | L36: =MIN(K26:K34) -> 00:00:00 | M36: =SUM(M28:M35)+'Additional Details'!M25 -> 0 | N36: =SUM(N28:N35)+'Additional Details'!N25 -> 0
F37: Total Non-Liquid Assets | H37: =N36 -> 0 | L37: =MIN(K26:K34) -> 00:00:00 | N37: =(H37-H39) -> 0
B38: Total other Debt | C38: =SUM(E26:E37)+(C36) -> 0 | F38: Assets required for closing | H38: 0 | M38: =IF(J37>J39, J36, J36-M39) -> 0 | N38: =IF(N37>0, H36, H36+N37) -> 0
B39: Other REO Net Rental loss | C39: 0 | F39: Assets required for reserves | H39: 0
B40: =IF(C7 <> "Primary", "Subject Rent Loss", " ") ->  | C40: =IF(C7<> "Primary", M22, " ") ->  | F40: Total Assets Required | H40: =SUM(H38:H39) -> 0
B41: Total All Other Monthly Payments | C41: =SUM(C38:C40) -> 0 | F41: Loan Purpose
F42: Max Cash to Close: | G42: Conventional: | H42: =IF(AND(H41="Refinance", H39=0, H36<500), 500, N38) -> 0 | J42: FHA (AUS only): | K42: =IF(H36>H38,(H38)+((H36-H38)*(0.1)),(H36)) -> 0
B45: Expiration Dates
B46: Expiration Dates | L46: 30 Days
L47: 60 Days
L48: 90 Days
L49: 120 Days
L50: 180 Days
L51: 4 months
C52: Enter (MM/DD/YYYY) | D52: Select | F52: Document Expires (Enter on LDL) | L52: 12 months | X52: =IF(D53="30 Days", 30, 0) -> 0 | Y52: =IF(D53="60 Days", 60, 0) -> 0 | Z52: =IF(D53="90 Days", 90, 0) -> 0 | AA52: =IF(D53="120 Days", 120, 0) -> 0 | AB52: =IF(D53="180 Days", 180, 0) -> 0 | AC52: =IF(D53 = "4 months", AC61, AD52) -> 00:00:00 | AD52: =SUM(X52+Y52+Z52+AA52+AB52) -> 0
B53: Credit Report Date: | F53: =IF( D53="4 months", AC52, C53 + AD52) -> 00:00:00 | L53: =IF(D53>0, F53, "") ->  | M53: =IF(C53>0, F53, "") ->  | X53: =IF(D54="30 Days", 30, 0) -> 0 | Y53: =IF(D54="60 Days", 60, 0) -> 0 | Z53: =IF(D54="90 Days", 90, 0) -> 0 | AA53: =IF(D54="120 Days", 120, 0) -> 0 | AB53: =IF(D54="180 Days", 180, 0) -> 0 | AC53: =IF(D54 = "4 months", AC62, AD53) -> 00:00:00 | AD53: =SUM(X53+Y53+Z53+AA53+AB53) -> 0
B54: Oldest Paystub: | C54: =IF(L10 >0, L10, "") ->  | F54: =IF(L10 >0, N54, "") ->  | L54: =IF(D54>0, F54, "") ->  | M54: =IF(L10>0, F54, "") ->  | N54: =IF( D54="4 months", AC53, C54 + AD53) ->  | X54: =IF(D55="30 Days", 30, 0) -> 0 | Y54: =IF(D55="60 Days", 60, 0) -> 0 | Z54: =IF(D55="90 Days", 90, 0) -> 0 | AA54: =IF(D55="120 Days", 120, 0) -> 0 | AB54: =IF(D55="180 Days", 180, 0) -> 0 | AC54: =IF(D55 = "4 months", AC63, AD54) -> 00:00:00 | AD54: =SUM(X54+Y54+Z54+AA54+AB54) -> 0
B55: Oldest Asset Statement: | C55: =IF(L36 >0, L37, "") ->  | F55: =IF(L37>0, N55, "") ->  | L55: =IF(D55>0, F55, "") ->  | M55: =IF(L37>0, F55, "") ->  | N55: =IF( D55="4 months", AC54, C55 + AD54) ->  | X55: =IF(D56="30 Days", 30, 0) -> 0 | Y55: =IF(D56="60 Days", 60, 0) -> 0 | Z55: =IF(D56="90 Days", 90, 0) -> 0 | AA55: =IF(D56="120 Days", 120, 0) -> 0 | AB55: =IF(D56="180 Days", 180, 0) -> 0 | AC55: =IF(D56 = "4 months", AC64, AD55) -> 00:00:00 | AD55: =SUM(X55+Y55+Z55+AA55+AB55) -> 0
B56: Appraisal Date: | F56: =IF(D56="12 months", AD64, AB64) -> 00:00:00 | L56: =IF(D56>0, F56, "") ->  | M56: =IF(C56>0, F56, "") ->  | X56: =IF(D57="30 Days", 30, 0) -> 0 | Y56: =IF(D57="60 Days", 60, 0) -> 0 | Z56: =IF(D57="90 Days", 90, 0) -> 0 | AA56: =IF(D57="120 Days", 120, 0) -> 0 | AB56: =IF(D57="180 Days", 180, 0) -> 0 | AC56: =IF(D57 = "4 months", AC65, AD56) -> 00:00:00 | AD56: =SUM(X56+Y56+Z56+AA56+AB56) -> 0
B57: 1004D Date: | F57: =IF( D57="4 months", AC56, C57 + AD56) -> 00:00:00 | L57: =IF(D57>0, F57, "") ->  | M57: =IF(C57>0, F57, "") -> 
B58: Tax Return Year Provided: | C58: ='Tax Return Expiration Date Calc'!C4 -> N/A | D58: =IF(C58="N/A", "N/A", "Close By Date:") -> N/A | F58: ='Tax Return Expiration Date Calc'!C7 -> N/A | M58: =F58 -> N/A
C60: Overall Loan Expiration Date: | F60: =IF(M60=0, "", M61) ->  | M60: =MIN(M53:M58) -> 0
M61: =MIN(M53:M58) -> 00:00:00 | AC61: =EDATE(C53,4) -> 1900-04-30
B62: Comments (Initial Review) | AC62: =EDATE(C54,4) -> 
AC63: =EDATE(C55,4) -> 
AB64: =IF(D56="4 months", AC55, C56 + AD55) -> 00:00:00 | AC64: =EDATE(C56,4) -> 1900-04-30 | AD64: =EDATE(C56,12) -> 1900-12-31
AC65: =EDATE(C57,4) -> 1900-04-30
B69: Comments (Resubmission Review)
B75: Conditions
B88: Worksheet Completed by: | E88: Date completed: | N88: Date completed:
B89: =Input!C9 -> 0 | F89: =NOW() -> 2025-05-05T10:08:04.140 | N89: =NOW() -> 2025-05-05T10:08:04.140

Sheet Additional Details
M1: HIDE | N1: HIDE | O1: HIDE | P1: HIDE
D2: Paid Off
D3: Yes
B4: Liabilities | F4: Additional Assets
B5: Liabilities | C5: Monthly Payment | D5: Omit | F5: Account | G5: Balance | H5: Factor | I5: Liquid | J5: Effective Balance | K5: Date | M5: Liquid | N5: Non-Liquid
B6: #11 | E6: =IF(D6 = 0, C6, 0) -> 0 | F6: #9 | I6: Y | J6: =G6*H6 -> 0 | M6: =IF(I6="Y", J6, 0) -> 0 | N6: =IF(I6="N", J6, 0) -> 0 | P6: Y
B7: #12 | E7: =IF(D7 = 0, C7, 0) -> 0 | F7: #10 | I7: Y | J7: =G7*H7 -> 0 | M7: =IF(I7="Y", J7, 0) -> 0 | N7: =IF(I7="N", J7, 0) -> 0 | P7: N
B8: #13 | E8: 0 | F8: #11 | I8: Y | J8: 0 | M8: 0 | N8: 0
B9: #14 | E9: 0 | F9: #12 | I9: Y | J9: 0 | M9: 0 | N9: 0
B10: #15 | E10: 0 | F10: #13 | I10: Y | J10: 0 | M10: 0 | N10: 0
B11: #16 | E11: 0 | F11: #14 | I11: Y | J11: 0 | M11: 0 | N11: 0
B12: #17 | E12: 0 | F12: #15 | I12: Y | J12: 0 | M12: 0 | N12: 0
B13: #18 | E13: 0 | F13: #16 | I13: Y | J13: 0 | M13: 0 | N13: 0
B14: #19 | E14: 0 | F14: #17 | I14: Y | J14: =G14*H14 -> 0 | M14: 0 | N14: 0
B15: #20 | E15: 0 | F15: #18 | I15: y | J15: =G15*H15 -> 0 | M15: 0 | N15: 0
B16: #21 | E16: 0 | F16: #19 | I16: Y | J16: 0 | M16: 0 | N16: 0
B17: #22 | E17: 0 | F17: #20 | I17: Y | J17: 0 | M17: 0 | N17: 0
B18: #23 | E18: 0 | F18: #21 | I18: Y | J18: 0 | M18: 0 | N18: 0
B19: #24 | E19: 0 | F19: #22 | I19: Y | J19: 0 | M19: 0 | N19: 0
B20: #25 | E20: 0 | F20: #23 | I20: Y | J20: 0 | M20: 0 | N20: 0
B21: #26 | E21: 0 | F21: #24 | I21: Y | J21: 0 | M21: 0 | N21: 0
B22: #27 | E22: 0 | F22: #25 | I22: Y | J22: =G22*H22 -> 0 | M22: 0 | N22: 0
B23: #28 | E23: 0 | F23: #26 | I23: Y | J23: =G23*H23 -> 0 | M23: 0 | N23: 0
B24: #29 | E24: 0
B25: #30 | E25: 0 | F25: Additional Assets | H25: Total Balance | J25: =SUM(J6:J23) -> 0 | K25: =IF(K6>0, MIN(K6:K23), "") ->  | M25: =SUM(M6:M24) -> 0 | N25: =SUM(N6:N24) -> 0
F26: Additional Liquid Assets | J26: =M25 -> 0
B27: Total | C27: =SUM(E6:E25) -> 0 | F27: Additional Non-Liquid Assets | J27: =N25 -> 0

Sheet Tax Return Expiration Date Calc
B2: Tax Return Expiration Date Calculator | H2: Hide | J2: Hide | K2: Hide
B3: Application Date | C3: Select | H3: Expiration Dates
B4: Most Recent Tax Return Provided | C4: N/A | H4: Expired - Additional Documentation Required | J4: =IF(C3=H10, H6, H5) -> 5/31/2025 (LPA) or 6/30/2025 (DU)
B5: Extension Provided? | C5: Select | H5: 5/31/2025 (LPA) or 6/30/2025 (DU)
A6: Hide | B6: Enter YTD P&L Date | H6: 2025-10-15 | J6: =IF(C4=H18, H7, J4) -> 5/31/2025 (LPA) or 6/30/2025 (DU)
B7: Tax Return Expiration Date | C7: =IF(C4="N/A", H16, H20) -> N/A | H7: 5/31/2026 (LPA) or 6/30/2026 (DU)
A8: Hide | B8: Current YTD P&L Expiration date | C8: =IF(C6<1, H11, C6+60) -> Must enter YTD P&L Date | H8: Select | J8: =IF(C5=H13, H6, H5) -> 5/31/2025 (LPA) or 6/30/2025 (DU) | K8: Extension Yes/No
A9: Hide | B9: Self Employment Document Expiration Date | C9: =IF(AND(C4<>H15, C7<>H4, C8<>H11), MIN(C7:C8), H16) -> N/A | H9: Prior to 4/15/2025
H10: On or after 4/15/2025 | J10: =IF(C5=H13, J8, J13) -> 5/31/2025 (LPA) or 6/30/2025 (DU) | K10: add
H11: Must enter YTD P&L Date
H12: Select
H13: Yes | J13: =IF(AND(C3=H10,C4=H17),H4,J8) -> 5/31/2025 (LPA) or 6/30/2025 (DU) | K13: Expired docs
H14: No
H15: N/A
H16: N/A
H17: 2023
H18: 2024
H20: =IF(C4=H18, H7, J10) -> 5/31/2025 (LPA) or 6/30/2025 (DU)

Sheet Summary
B5: Borrower : | D5: =IF(Input!C5=0,"",Input!C5) ->  | G5: Calculated By: | J5: =IF(Input!C9=0,"",Input!C9) -> 
B6: Co Borrower: | D6: =IF(Input!C7=0,"",Input!C7) ->  | G6: Date Reviewed: | J6: =IF(Input!I9=0,"",Input!I9) -> 
G7: Loan #: | J7: =IF(Input!I5=0,"",Input!I5) -> 
B9: Income Worksheet | L9: Monthly Income
B10: Borrower 1
B11: Total W2 Wages | L11: =SUM('Employment (B1)'!H17:H18,'Employment (B1)'!H25:H26,'Employment (B1)'!H52:H53) -> 0
B12: Variable Income | L12: ='Variable Income (B1)'!E38:F38 -> 0 | M12: 0
B13: Income from 1040 Tab | L13: =SUM('1040 (B1)'!I35:I44,'1040 (B1)'!O9:O21) -> 0
B14: Borrower 2
B15: Total W2 Wages | L15: =SUM('Employment (B2)'!H17:H18,'Employment (B2)'!H25:H26,'Employment (B2)'!H52:H53) -> 0
B16: Variable Income | L16: ='Variable Income (B2)'!E38:F38 -> 0 | M16: 0
B17: Income from 1040 Tab | L17: =SUM('1040 (B2)'!$O$9:$O$20,'1040 (B2)'!$I$35:$I$44) -> 0
B18: Schedule C
B19: Total Sole Proprietorship Income | L19: =SUM('Sch C'!S20,'Sch C'!S41,'Sch C'!S62) -> 0
B20: YTD P&L Schedule C | L20: =SUM(IF('YTD P&L (Sch C)'!J26="",0,'YTD P&L (Sch C)'!R21:S21),IF('YTD P&L (Sch C)'!J59="",0,'YTD P&L (Sch C)'!R53:S53),IF('YTD P&L (Sch C)'!J91="",0,'YTD P&L (Sch C)'!R85:S85)) -> 0
B21: Schedule E Part 1 Rental Property
B22: Total Rental Income | L22: =SUM('Rental '!O19,'Rental '!O42,'Rental '!O65,'Rental '!O88,'Rental '!O111,'Rental '!O134) -> 0
B23: Total Rental Income (2) | L23: =SUM('Rental (2)'!O19,'Rental (2)'!O42,'Rental (2)'!O65,'Rental (2)'!O88,'Rental (2)'!O111,'Rental (2)'!O134) -> 0
B24: Total Rental Income (3) | L24: =SUM('Rental (3)'!O19,'Rental (3)'!O42,'Rental (3)'!O65,'Rental (3)'!O88,'Rental (3)'!O111,'Rental (3)'!O134) -> 0
B25: Schedule E Part 1
B26: Royalty Income | L26: =SUM('Royalty Income'!P13,'Royalty Income'!P29,'Royalty Income'!P45) -> 0
B27: Schedule E Part 3
B28: Trust Income | L28: =SUM(Trust!Q15,Trust!Q31,Trust!Q47) -> 0
B29: 1065 < 25%
B30: Partnership Income < 25% | L30: =SUM('1065<25% '!R18,'1065<25% '!R38,'1065<25% '!R58,'1065<25% '!R78,'1065<25% '!R98,'1065<25% '!R118,'1065<25% '!R138,'1065<25% '!R158,'1065<25% '!R178,'1065<25% '!R198,'1065<25% '!R218,'1065<25% '!R238) -> 0
B31: 1065 ≥ 25%
B32: Partnership Income ≥ 25% | L32: =SUM('1065 25% +'!R32,'1065 25% +'!R66,'1065 25% +'!R99,'1065 25% +'!R134,'1065 25% +'!R169) -> 0
B33: YTD P&L Partnership | L33: =SUM(IF('YTD P&L (1065)'!J26="",0,'YTD P&L (1065)'!R21:S21),IF('YTD P&L (1065)'!J59="",0,'YTD P&L (1065)'!R53:S53),IF('YTD P&L (1065)'!J91="",0,'YTD P&L (1065)'!R85:S85),IF('YTD P&L (1065)'!J123="",0,'YTD P&L (1065)'!R117:S117),IF('YTD P&L (1065)'!J155="",0,'YTD P&L (1065)'!R149:S149)) -> 0
B34: 1120S < 25%
B35: S Corporation Income < 25% | L35: =SUM('1120S<25% '!R18,'1120S<25% '!R37,'1120S<25% '!R56,'1120S<25% '!R75,'1120S<25% '!R94,'1120S<25% '!R113,'1120S<25% '!R132,'1120S<25% '!R151,'1120S<25% '!R170,'1120S<25% '!R189) -> 0
B36: 1120S ≥ 25%
B37: S Corporation Income ≥ 25% | L37: =SUM('1120S 25%+'!R31,'1120S 25%+'!R65,'1120S 25%+'!R99,'1120S 25%+'!R133,'1120S 25%+'!R167) -> 0
B38: YTD P&L S Corporation | L38: =SUM(IF('YTD P&L (1120S)'!J26="",0,'YTD P&L (1120S)'!R21:S21),IF('YTD P&L (1120S)'!J59="",0,'YTD P&L (1120S)'!R53:S53),IF('YTD P&L (1120S)'!J91="",0,'YTD P&L (1120S)'!R85:S85),IF('YTD P&L (1120S)'!J123="",0,'YTD P&L (1120S)'!R117:S117),IF('YTD P&L (1120S)'!J155="",0,'YTD P&L (1120S)'!R149:S149)) -> 0
B39: 1120 Income
B40: Total Corporation Income | L40: =SUM('1120 '!R26,'1120 '!R54,'1120 '!R80) -> 0
B41: YTD P&L Corporation | L41: =SUM(IF('YTD P&L (1120)'!J26="",0,'YTD P&L (1120)'!R21:S21),IF('YTD P&L (1120)'!J59="",0,'YTD P&L (1120)'!R53:S53),IF('YTD P&L (1120)'!J91="",0,'YTD P&L (1120)'!R85:S85)) -> 0
B42: Schedule F
B43: Total Farming Income | L43: =SUM('Farm '!Q17,'Farm '!Q35) -> 0
E47: Total Monthly Income | L47: =SUM(L11:L43) -> 0
C49: Total Monthly Income Excluding Rental Income | L49: =L47-L22-L23-L24 -> 0
B52: Comments:
B53: 20

Sheet Employment (B1)
E2: Borrower 1: | F2: =IF(Input!C5=0,"",Input!C5) ->  | G2: Calculated By: | H2: =IF(Input!C9=0,"",Input!C9) -> 
E3: Loan Number: | F3: =IF(Input!I5=0,"",Input!I5) ->  | G3: Date Reviewed: | H3: =IF(Input!I9=0,"",Input!I9) -> 
B7: BORROWER #1 Primary Job | K7: 1 | L7: 31
B8: Part I | C8: Salary / Wage Income | K8: 2 | L8: 28 | R8: No Selection
B9: Employer & Document Type | C9: Frequency of Pay | D9: Periodic Pay Rate | E9: Calculations | H9: Monthly Average | K9: 3 | L9: 31 | R9: Current Base | S9: =SUM(H10:H16) -> 0
C10: Hourly | E10: Enter average hours worked per week | H10: =IF(D10="","",(D10*G10*52)/12) ->  | K10: 4 | L10: 30 | R10: Current YTD | S10: =E30 -> 
C11: Weekly | E11: Multiply weekly income by 52 weeks and divide by 12 months | H11: =IF(D11="","",(D11*52)/12) ->  | K11: 5 | L11: 31 | R11: YTD & Prior Yr | S11: =F30 -> 
C12: Bi-weekly | E12: Multiply periodic income by 26 periods and divide by 12 months | H12: =IF(D12="","",(D12*26)/12) ->  | K12: 6 | L12: 30 | R12: YTD & Prior 2 Yrs | S12: =G30 -> 
C13: Semi-Monthly | E13: Multiply semi-monthly income by 24 periods and divide by 12 months | H13: =IF(D13="","",(D13*24)/12) ->  | K13: 7 | L13: 31 | R13: Prior 2 yrs Avg | S13: =H30 -> 
C14: Monthly | E14: Use the monthly income from the paystub | H14: =IF(D14="","",(D14)) ->  | K14: 8 | L14: 31 | R14: UW Override | S14: =N35 -> 0
C15: Annually | E15: Divide the annual income amount by 12 | H15: =IF(D15="","",(D15)/12) ->  | K15: 9 | L15: 30
C16: Seasonal | E16: Enter number of pay periods per year | H16: =IF(D16="","",SUM(D16*G16)/12) ->  | K16: 10 | L16: 31 | R16: =Input!C13 -> 2024 | S16: W2
E17: Enter Qualifying Income Figure Here: | K17: 11 | L17: 30 | R17: =(R16-1) -> 2023 | S17: W2
K18: 12 | L18: 31
B19: Teacher Calculator
B21: Income Source (Document) | C21: Frequency of Pay | D21: Periodic Pay Rate | E21: Calculations | H21: Monthly Average
C22: Bi-weekly | E22: Multiply periodic income by 21 periods and divide by 12 months | H22: =IF(D22="","",(D22*21)/12) -> 
C23: Semi-Monthly | E23: Multiply periodic income by 20 periods and divide by 12 months | H23: =IF(D23="","",(D23*20)/12) -> 
C24: Monthly | E24: Multiply periodic income by 10 periods and divide by 12 months | H24: =IF(D24="","",(D24*10)/12) -> 
E25: Enter the desired amount of income to be used for qualifying purposes after comparing the above calculation to the YTD | H25: 0
B28: Part II | C28: Comparative Analysis & Averaging of YTD and Prior Years' Incomes
B29: Source | C29: Income | D29: # of Months | E29: Monthly Averages | F29: YTD & Prior Yr | G29: YTD & Prior 2 Yrs | H29: Prior 2 yrs | L29: YTD Calculator
B30: YTD Pay Stub | E30: =IF(C30>0,(SUM(C30/D30)),"") ->  | F30: =IF(C31>0,SUM((C30+C31)/(D30+D31)),"") ->  | G30: =IF(C32>0,SUM((C30+C31+C32)/(D30+D31+D32)),"") ->  | H30: =IF(C32>0,SUM((C31+C32)/(D31+D32)),"") ->  | L30: Start Date | M30: End Date | N30: Result
B31: =CONCATENATE(R16,S16) -> 2024 W2 | E31: =IF(C31>0,(SUM(C31/D31)),"") ->  | N31: =IF(ISBLANK(L31),"",DAYS360(L31,M31)/30) -> 
B32: =CONCATENATE(R17, S17) -> 2023 W2 | E32: =IF(C32>0,(SUM(C32/D32)),"") ->  | M32: =DAY(M31) -> 0 | N32: =DAY(DATE(YEAR(M31),MONTH(M31)+1,1)-1) -> 31
B35: Comments: | L35: UW Manual Income Input** | N35: 0
L36: ** Include notes If used
B42: BORROWER #1 Second Job
B43: Part I | C43: Salary / Wage Income
B44: Employer & Document Type | C44: Frequency of Pay | D44: Periodic Pay Rate | E44: Calculations | H44: Monthly Average
C45: Hourly | E45: Enter average hours worked per week | H45: =IF(D45="","",(D45*G45*52)/12) -> 
C46: Weekly | E46: Multiply weekly income by 52 weeks and divide by 12 months | H46: =IF(D46="","",(D46*52)/12) -> 
C47: Bi-weekly | E47: Multiply periodic income by 26 periods and divide by 12 months | H47: =IF(D47="","",(D47*26)/12) -> 
C48: Semi-Monthly | E48: Multiply semi-monthly income by 24 periods and divide by 12 months | H48: =IF(D48="","",(D48*24)/12) -> 
C49: Monthly | E49: Use the monthly income from the paystub | H49: =IF(D49="","",(D49)) -> 
C50: Annually | E50: Divide the annual income amount by 12 | H50: =IF(D50="","",(D50)/12) -> 
C51: Seasonal | E51: Enter number of pay periods per year | H51: =IF(D51="","",SUM(D51*G51)/12) -> 
E52: Enter Qualifying Income Figure Here: | H52: 0
B55: Part II | C55: Comparative Analysis & Averaging of YTD and Prior Years' Incomes
B56: Source | C56: Income | D56: # of Months | E56: Monthly Averages | F56: YTD & Prior Yr | G56: YTD & Prior 2 Yrs | H56: Prior 2 yrs
B57: YTD Pay Stub | E57: =IF(C57>0,(SUM(C57/D57)),"") ->  | F57: =IF(C58>0,SUM((C57+C58)/(D57+D58)),"") ->  | G57: =IF(C59>0,SUM((C57+C58+C59)/(D57+D58+D59)),"") ->  | H57: =IF(C59>0,SUM((C58+C59)/(D58+D59)),"") -> 
B58: 2021W2 | E58: =IF(C58>0,(SUM(C58/D58)),"") -> 
B59: 2020W2 | E59: =IF(C59>0,(SUM(C59/D59)),"") -> 
B62: Comments:

Sheet Employment (B2)
E2: Borrower 2: | F2: =IF(Input!C7=0,"",Input!C7) ->  | G2: Calculated By: | H2: =IF(Input!C9=0,"",Input!C9) -> 
E3: Loan Number: | F3: =IF(Input!I5=0,"",Input!I5) ->  | G3: Date Reviewed: | H3: =IF(Input!I9=0,"",Input!I9) -> 
B7: BORROWER #1 Primary Job | K7: 1 | L7: 31
B8: Part I | C8: Salary / Wage Income | K8: 2 | L8: 28 | R8: No Selection
B9: Employer & Document Type | C9: Frequency of Pay | D9: Periodic Pay Rate | E9: Calculations | H9: Monthly Average | K9: 3 | L9: 31 | R9: Current Base | S9: =SUM(H10:H16) -> 0
C10: Hourly | E10: Enter average hours worked per week | H10: =IF(D10="","",(D10*G10*52)/12) ->  | K10: 4 | L10: 30 | R10: Current YTD | S10: =E30 -> 
C11: Weekly | E11: Multiply weekly income by 52 weeks and divide by 12 months | H11: =IF(D11="","",(D11*52)/12) ->  | K11: 5 | L11: 31 | R11: YTD & Prior Yr | S11: =F30 -> 
C12: Bi-weekly | E12: Multiply periodic income by 26 periods and divide by 12 months | H12: =IF(D12="","",(D12*26)/12) ->  | K12: 6 | L12: 30 | R12: YTD & Prior 2 Yrs | S12: =G30 -> 
C13: Semi-Monthly | E13: Multiply semi-monthly income by 24 periods and divide by 12 months | H13: =IF(D13="","",(D13*24)/12) ->  | K13: 7 | L13: 31 | R13: Prior 2 yrs Avg | S13: =H30 -> 
C14: Monthly | E14: Use the monthly income from the paystub | H14: =IF(D14="","",(D14)) ->  | K14: 8 | L14: 31 | R14: UW Override | S14: =N35 -> 0
C15: Annually | E15: Divide the annual income amount by 12 | H15: =IF(D15="","",(D15)/12) ->  | K15: 9 | L15: 30
C16: Seasonal | E16: Enter number of pay periods per year | H16: =IF(D16="","",SUM(D16*G16)/12) ->  | K16: 10 | L16: 31 | R16: =Input!C13 -> 2024 | S16: W2
E17: Enter Qualifying Income Figure Here: | K17: 11 | L17: 30 | R17: =(R16-1) -> 2023 | S17: W2
K18: 12 | L18: 31
B19: Teacher Calculator
B21: Income Source (Document) | C21: Frequency of Pay | D21: Periodic Pay Rate | E21: Calculations | H21: Monthly Average
C22: Bi-weekly | E22: Multiply periodic income by 21 periods and divide by 12 months | H22: =IF(D22="","",(D22*21)/12) -> 
C23: Semi-Monthly | E23: Multiply periodic income by 20 periods and divide by 12 months | H23: =IF(D23="","",(D23*20)/12) -> 
C24: Monthly | E24: Multiply periodic income by 10 periods and divide by 12 months | H24: =IF(D24="","",(D24*10)/12) -> 
E25: Enter the desired amount of income to be used for qualifying purposes after comparing the above calculation to the YTD
B28: Part II | C28: Comparative Analysis & Averaging of YTD and Prior Years' Incomes
B29: Source | C29: Income | D29: # of Months | E29: Monthly Averages | F29: YTD & Prior Yr | G29: YTD & Prior 2 Yrs | H29: Prior 2 yrs | L29: YTD Calculator
B30: YTD Pay Stub | E30: =IF(C30>0,(SUM(C30/D30)),"") ->  | F30: =IF(C31>0,SUM((C30+C31)/(D30+D31)),"") ->  | G30: =IF(C32>0,SUM((C30+C31+C32)/(D30+D31+D32)),"") ->  | H30: =IF(C32>0,SUM((C31+C32)/(D31+D32)),"") ->  | L30: Start Date | M30: End Date | N30: Result
B31: =CONCATENATE(R16,S16) -> 2024 W2 | E31: =IF(C31>0,(SUM(C31/D31)),"") ->  | N31: =IF(ISBLANK(L31),"",DAYS360(L31,M31)/30) -> 
B32: =CONCATENATE(R17, S17) -> 2023 W2 | E32: =IF(C32>0,(SUM(C32/D32)),"") ->  | M32: =DAY(M31) -> 0 | N32: =DAY(DATE(YEAR(M31),MONTH(M31)+1,1)-1) -> 31
B35: Comments: | L35: UW Manual Income Input** | N35: 0
L36: ** Include notes If used
B42: BORROWER #1 Second Job
B43: Part I | C43: Salary / Wage Income
B44: Employer & Document Type | C44: Frequency of Pay | D44: Periodic Pay Rate | E44: Calculations | H44: Monthly Average
C45: Hourly | E45: Enter average hours worked per week | H45: =IF(D45="","",(D45*G45*52)/12) -> 
C46: Weekly | E46: Multiply weekly income by 52 weeks and divide by 12 months | H46: =IF(D46="","",(D46*52)/12) -> 
C47: Bi-weekly | E47: Multiply periodic income by 26 periods and divide by 12 months | H47: =IF(D47="","",(D47*26)/12) -> 
C48: Semi-Monthly | E48: Multiply semi-monthly income by 24 periods and divide by 12 months | H48: =IF(D48="","",(D48*24)/12) -> 
C49: Monthly | E49: Use the monthly income from the paystub | H49: =IF(D49="","",(D49)) -> 
C50: Annually | E50: Divide the annual income amount by 12 | H50: =IF(D50="","",(D50)/12) -> 
C51: Seasonal | E51: Enter number of pay periods per year | H51: =IF(D51="","",SUM(D51*G51)/12) -> 
E52: Enter Qualifying Income Figure Here:
B55: Part II | C55: Comparative Analysis & Averaging of YTD and Prior Years' Incomes
B56: Source | C56: Income | D56: # of Months | E56: Monthly Averages | F56: YTD & Prior Yr | G56: YTD & Prior 2 Yrs | H56: Prior 2 yrs
B57: YTD Pay Stub | E57: =IF(C57>0,(SUM(C57/D57)),"") ->  | F57: =IF(C58>0,SUM((C57+C58)/(D57+D58)),"") ->  | G57: =IF(C59>0,SUM((C57+C58+C59)/(D57+D58+D59)),"") ->  | H57: =IF(C59>0,SUM((C58+C59)/(D58+D59)),"") -> 
B58: 2021W2 | E58: =IF(C58>0,(SUM(C58/D58)),"") -> 
B59: 2020W2 | E59: =IF(C59>0,(SUM(C59/D59)),"") -> 
B62: Comments:

Sheet Variable Income (B1)
D2: Borrower 1: | F2: =IF(Input!C5=0,"",Input!C5) ->  | H2: Calculated By: | J2: =IF(Input!C9=0,"",Input!C9) -> 
D3: Loan Number: | F3: =IF(Input!I5=0,"",Input!I5) ->  | H3: Date Reviewed: | J3: =IF(Input!I9=0,"",Input!I9) -> 
C8: Type | D8: YTD | E8: YTD | F8: =G8 -> 2024 | G8: =Input!C13 -> 2024 | H8: =I8 -> 2023 | I8: =G8-1 -> 2023
B9: Income Source | D9: # months | F9: # months | G9: Income | H9: # months | I9: Income
C10: Bonus
C11: Commission
C12: Overtime
C13: Other
C15: Bonus | E15: =IF(D10="x",E10,0) -> 0 | G15: =IF(F10="x",G10,0) -> 0 | I15: =IF(H10="x",I10,0) -> 0 | K15: =IF(W8="x",K10,0) -> 0 | M15: =SUM(E15:K15) -> 0
C17: commission | E17: =IF(D11="x",E11,0) -> 0 | G17: =IF(F11="x",G11,0) -> 0 | I17: =IF(H11="x",I11,0) -> 0 | K17: =IF(W9="x",K11,0) -> 0 | M17: =SUM(E17:K17) -> 0
C19: overtime | E19: =IF(D12="x",E12,0) -> 0 | G19: =IF(F12="x",G12,0) -> 0 | I19: =IF(H12="x",I12,0) -> 0 | K19: =IF(W10="x",K12,0) -> 0 | M19: =SUM(E19:K19) -> 0
C21: other | E21: =IF(D13="x",E13,0) -> 0 | G21: =IF(F13="x",G13,0) -> 0 | I21: =IF(H13="x",I13,0) -> 0 | K21: =IF(W11="x",K13,0) -> 0 | M21: =SUM(E21:K21) -> 0
C25: Income Total Averages | O25: HIDE | P25: HIDE | Q25: HIDE | R25: HIDE | S25: HIDE
B26: Income Type | C26: YTD | D26: =G8 -> 2024 | E26: =I8 -> 2023 | F26: YTD & Prior Year | H26: YTD & Prior 2 Yrs | J26: Prior 2 yrs | L26: 2014 | M26: 0.23 | O26: Bonus
B27: Bonus | C27: =IF(E10>0, (E10/D10), "") ->  | D27: =IF(G10>0, (G10/F10), "") ->  | E27: =IF(I10>0, (I10/H10), "") ->  | F27: =IF(G10>0, (E10+G10)/(D10+F10), "") ->  | H27: =IF(I10>0, (E10+G10+I10)/(D10+F10+H10), "") ->  | J27: =IF(I10>0, (G10+I10)/(F10+H10), "") ->  | L27: 2013 | M27: 0.23 | O27: YTD | P27: =IF(C33=O27, C27, 0) -> 0
B28: Commission | C28: =IF(E11>0, (E11/D11), "") ->  | D28: =IF(G11>0, (G11/F11), "") ->  | E28: =IF(I11>0, (I11/H11), "") ->  | F28: =IF(G11>0, (E11+G11)/(D11+F11), "") ->  | H28: =IF(I11>0, (E11+G11+I11)/(D11+F11+H11), "") ->  | J28: =IF(I11>0, (G11+I11)/(F11+H11), "") ->  | L28: 2012 | M28: 0.23 | N28: Alert Messages | O28: =D26 -> 2024 | P28: =IF(C33= O28, D27, 0) -> 0
B29: Overtime | C29: =IF(E12>0, (E12/D12), "") ->  | D29: =IF(G12>0, (G12/F12), "") ->  | E29: =IF(I12>0, (I12/H12), "") ->  | F29: =IF(G12>0, (E12+G12)/(D12+F12), "") ->  | H29: =IF(I12>0, (E12+G12+I12)/(D12+F12+H12), "") ->  | J29: =IF(I12>0, (G12+I12)/(F12+H12), "") ->  | L29: 2011 | M29: 0.22 | N29: Declining income & income selected exceeding trends identified in red | O29: =E26 -> 2023 | P29: =IF(C33= O29, E27, 0) -> 0
B30: Other | C30: =IF(E13>0, (E13/D13), "") ->  | D30: =IF(G13>0, (G13/F13), "") ->  | E30: =IF(I13>0, (I13/H13), "") ->  | F30: =IF(G13>0, (E13+G13)/(D13+F13), "") ->  | H30: =IF(I13>0, (E13+G13+I13)/(D13+F13+H13), "") ->  | J30: =IF(I13>0, (G13+I13)/(F13+H13), "") ->  | L30: 2010 | M30: 0.23 | O30: YTD & Prior Year | P30: =IF(C33= O30, F27, 0) -> 0
O31: YTD & Prior 2 Yrs | P31: =IF(C33= O31, H27, 0) -> 0
B32: Income Selections | C32: Average Selected | E32: Income Used to Qualify | N32: Qualifying income selected should be supported by historical earning trends | O32: Prior 2 yrs | P32: =IF(C33= O32, J27, 0) -> 0
B33: Bonus | E33: =P34 -> 0 | Q33: =IF(E33>C27, 1, 0) -> 0 | R33: > YTD | S33: =IF(E33>C27, 1, 0) -> 0
B34: Commission | E34: =P44 -> 0 | O34: Income Selected | P34: =SUM(P27:P32) -> 0 | Q34: =IF(E33>F27, 1, 0) -> 0 | R34: > YTD +1 | S34: =IF(E33>F27, 1, 0) -> 0
B35: Overtime | E35: =P55 -> 0 | N35: =IF(E10>0, "Note: Bonus YTD selected < 12 months- Must confirm income is paid periodically and not annually", "") ->  | S35: =SUM(S33:S34) -> 0
B36: Other | E36: =P65 -> 0 | O36: Commission
O37: YTD | P37: =IF(C34=O37, C28, 0) -> 0
B38: Total Variable Income Used to Qualify | E38: =SUM(E33:E36)+(F59) -> 0 | O38: =D26 -> 2024 | P38: =IF(C34=O38, D28, 0) -> 0
O39: =E26 -> 2023 | P39: =IF(C34=O39, E28, 0) -> 0
B40: Comments for Variable Income: | O40: YTD & Prior Year | P40: =IF(C34=O40, F28, 0) -> 0
O41: YTD & Prior 2 Yrs | P41: =IF(C34=O41, H28, 0) -> 0
O42: Prior 2 yrs | P42: =IF(C34=O42, J28, 0) -> 0
Q43: =IF(E34>C28, 1, 0) -> 0 | R43: > YTD | S43: =IF(E34>C28, 1, 0) -> 0
O44: Income Selected | P44: =SUM(P37:P42) -> 0 | Q44: =IF(E34>F28, 1, 0) -> 0 | R44: > YTD +1 | S44: =IF(E34>F28, 1, 0) -> 0
S45: =SUM(S43:S44) -> 0
O47: Overtime
O48: YTD | P48: =IF(C35=O48, C29, 0) -> 0
O49: =D26 -> 2024 | P49: =IF(C35= O49, D29, 0) -> 0
O50: =E26 -> 2023 | P50: =IF(C35= O50, E29, 0) -> 0
B51: Pay Type | C51: Amount | D51: Gross Up Factor | F51: Total | O51: YTD & Prior Year | P51: =IF(C35= O51, F29, 0) -> 0
B52: BAS | F52: =IF(C52="","", C52*D52) ->  | O52: YTD & Prior 2 Yrs | P52: =IF(C35= O52, H29, 0) -> 0
B53: BAH | F53: =IF(C53="","", C53*D53) ->  | O53: Prior 2 yrs | P53: =IF(C35= O53, J29, 0) -> 0
B54: Combat Pay | Q54: =IF(E35>C29, 1, 0) -> 0 | R54: > YTD | S54: =IF(E35>C29, 1, 0) -> 0
B55: Flight Pay | O55: Income Selected | P55: =SUM(P48:P53) -> 0 | Q55: =IF(E35>F29, 1, 0) -> 0 | R55: > YTD +1 | S55: =IF(E35>F29, 1, 0) -> 0
B56: Hazard Pay | S56: =SUM(S54:S55) -> 0
B57: Overseas Pay | O57: Other
B58: Other Military Pay | O58: YTD | P58: =IF(C36=O58, C30, 0) -> 0
D59: Total Military Pay: | F59: =SUM(F52:I58) -> 0 | O59: =D26 -> 2024 | P59: =IF(C36=O59, D30, 0) -> 0
B60: Comments for Military Pay: | O60: =E26 -> 2023 | P60: =IF(C36=O60, E30, 0) -> 0
O61: YTD & Prior Year | P61: =IF(C36=O61, F30, 0) -> 0
O62: YTD & Prior 2 Yrs | P62: =IF(C36=O62, H30, 0) -> 0
O63: Prior 2 yrs | P63: =IF(C36=O63, J30, 0) -> 0
Q64: =IF(E36>C30, 1, 0) -> 0 | R64: > YTD | S64: =IF(E36>C30, 1, 0) -> 0
O65: Income Selected | P65: =SUM(P58:P63) -> 0 | Q65: =IF(E36>F30, 1, 0) -> 0 | R65: > YTD +1 | S65: =IF(E36>F30, 1, 0) -> 0
S66: =SUM(S64:S65) -> 0
Q67: =SUM(Q33:Q65) -> 0
C73: 0.24
C74: 0.23
C75: 0.22

Sheet Variable Income (B2)
D2: Borrower 2: | F2: =IF(Input!C7=0,"",Input!C7) ->  | H2: Calculated By: | J2: =IF(Input!C9=0,"",Input!C9) -> 
D3: Loan Number: | F3: =IF(Input!I5=0,"",Input!I5) ->  | H3: Date Reviewed: | J3: =IF(Input!I9=0,"",Input!I9) -> 
C8: Type | D8: YTD | E8: YTD | F8: =G8 -> 2024 | G8: =Input!C13 -> 2024 | H8: =I8 -> 2023 | I8: =G8-1 -> 2023
B9: Income Source | D9: # months | F9: # months | G9: Income | H9: # months | I9: Income
C10: Bonus
C11: Commission
C12: Overtime
C13: Other
C15: Bonus | E15: =IF(D10="x",E10,0) -> 0 | G15: =IF(F10="x",G10,0) -> 0 | I15: =IF(H10="x",I10,0) -> 0 | K15: =IF(W8="x",K10,0) -> 0 | M15: =SUM(E15:K15) -> 0
C17: commission | E17: =IF(D11="x",E11,0) -> 0 | G17: =IF(F11="x",G11,0) -> 0 | I17: =IF(H11="x",I11,0) -> 0 | K17: =IF(W9="x",K11,0) -> 0 | M17: =SUM(E17:K17) -> 0
C19: overtime | E19: =IF(D12="x",E12,0) -> 0 | G19: =IF(F12="x",G12,0) -> 0 | I19: =IF(H12="x",I12,0) -> 0 | K19: =IF(W10="x",K12,0) -> 0 | M19: =SUM(E19:K19) -> 0
C21: other | E21: =IF(D13="x",E13,0) -> 0 | G21: =IF(F13="x",G13,0) -> 0 | I21: =IF(H13="x",I13,0) -> 0 | K21: =IF(W11="x",K13,0) -> 0 | M21: =SUM(E21:K21) -> 0
C25: Income Total Averages | O25: HIDE | P25: HIDE | Q25: HIDE | R25: HIDE | S25: HIDE
B26: Income Type | C26: YTD | D26: =G8 -> 2024 | E26: =I8 -> 2023 | F26: YTD & Prior Year | H26: YTD & Prior 2 Yrs | J26: Prior 2 yrs | L26: 2014 | M26: 0.23 | O26: Bonus
B27: Bonus | C27: =IF(E10>0, (E10/D10), "") ->  | D27: =IF(G10>0, (G10/F10), "") ->  | E27: =IF(I10>0, (I10/H10), "") ->  | F27: =IF(G10>0, (E10+G10)/(D10+F10), "") ->  | H27: =IF(I10>0, (E10+G10+I10)/(D10+F10+H10), "") ->  | J27: =IF(I10>0, (G10+I10)/(F10+H10), "") ->  | L27: 2013 | M27: 0.23 | O27: YTD | P27: =IF(C33=O27, C27, 0) -> 0
B28: Commission | C28: =IF(E11>0, (E11/D11), "") ->  | D28: =IF(G11>0, (G11/F11), "") ->  | E28: =IF(I11>0, (I11/H11), "") ->  | F28: =IF(G11>0, (E11+G11)/(D11+F11), "") ->  | H28: =IF(I11>0, (E11+G11+I11)/(D11+F11+H11), "") ->  | J28: =IF(I11>0, (G11+I11)/(F11+H11), "") ->  | L28: 2012 | M28: 0.23 | N28: Alert Messages | O28: =D26 -> 2024 | P28: =IF(C33= O28, D27, 0) -> 0
B29: Overtime | C29: =IF(E12>0, (E12/D12), "") ->  | D29: =IF(G12>0, (G12/F12), "") ->  | E29: =IF(I12>0, (I12/H12), "") ->  | F29: =IF(G12>0, (E12+G12)/(D12+F12), "") ->  | H29: =IF(I12>0, (E12+G12+I12)/(D12+F12+H12), "") ->  | J29: =IF(I12>0, (G12+I12)/(F12+H12), "") ->  | L29: 2011 | M29: 0.22 | N29: Declining income & income selected exceeding trends identified in red | O29: =E26 -> 2023 | P29: =IF(C33= O29, E27, 0) -> 0
B30: Other | C30: =IF(E13>0, (E13/D13), "") ->  | D30: =IF(G13>0, (G13/F13), "") ->  | E30: =IF(I13>0, (I13/H13), "") ->  | F30: =IF(G13>0, (E13+G13)/(D13+F13), "") ->  | H30: =IF(I13>0, (E13+G13+I13)/(D13+F13+H13), "") ->  | J30: =IF(I13>0, (G13+I13)/(F13+H13), "") ->  | L30: 2010 | M30: 0.23 | O30: YTD & Prior Year | P30: =IF(C33= O30, F27, 0) -> 0
O31: YTD & Prior 2 Yrs | P31: =IF(C33= O31, H27, 0) -> 0
B32: Income Selections | C32: Average Selected | E32: Income Used to Qualify | N32: Qualifying income selected should be supported by historical earning trends | O32: Prior 2 yrs | P32: =IF(C33= O32, J27, 0) -> 0
B33: Bonus | E33: =P34 -> 0 | Q33: =IF(E33>C27, 1, 0) -> 0 | R33: > YTD | S33: =IF(E33>C27, 1, 0) -> 0
B34: Commission | E34: =P44 -> 0 | O34: Income Selected | P34: =SUM(P27:P32) -> 0 | Q34: =IF(E33>F27, 1, 0) -> 0 | R34: > YTD +1 | S34: =IF(E33>F27, 1, 0) -> 0
B35: Overtime | E35: =P55 -> 0 | N35: =IF(E10>0, "Note: Bonus YTD selected < 12 months- Must confirm income is paid periodically and not annually", "") ->  | S35: =SUM(S33:S34) -> 0
B36: Other | E36: =P65 -> 0 | O36: Commission
O37: YTD | P37: =IF(C34=O37, C28, 0) -> 0
B38: Total Variable Income Used to Qualify | E38: =SUM(E33:E36)+(F59) -> 0 | O38: =D26 -> 2024 | P38: =IF(C34=O38, D28, 0) -> 0
O39: =E26 -> 2023 | P39: =IF(C34=O39, E28, 0) -> 0
B40: Comments for Variable Income: | O40: YTD & Prior Year | P40: =IF(C34=O40, F28, 0) -> 0
O41: YTD & Prior 2 Yrs | P41: =IF(C34=O41, H28, 0) -> 0
O42: Prior 2 yrs | P42: =IF(C34=O42, J28, 0) -> 0
Q43: =IF(E34>C28, 1, 0) -> 0 | R43: > YTD | S43: =IF(E34>C28, 1, 0) -> 0
O44: Income Selected | P44: =SUM(P37:P42) -> 0 | Q44: =IF(E34>F28, 1, 0) -> 0 | R44: > YTD +1 | S44: =IF(E34>F28, 1, 0) -> 0
S45: =SUM(S43:S44) -> 0
O47: Overtime
O48: YTD | P48: =IF(C35=O48, C29, 0) -> 0
O49: =D26 -> 2024 | P49: =IF(C35= O49, D29, 0) -> 0
O50: =E26 -> 2023 | P50: =IF(C35= O50, E29, 0) -> 0
B51: Pay Type | C51: Amount | D51: Gross Up Factor | F51: Total | O51: YTD & Prior Year | P51: =IF(C35= O51, F29, 0) -> 0
B52: BAS | F52: =IF(C52="","", C52*D52) ->  | O52: YTD & Prior 2 Yrs | P52: =IF(C35= O52, H29, 0) -> 0
B53: BAH | F53: =IF(C53="","", C53*D53) ->  | O53: Prior 2 yrs | P53: =IF(C35= O53, J29, 0) -> 0
B54: Combat Pay | Q54: =IF(E35>C29, 1, 0) -> 0 | R54: > YTD | S54: =IF(E35>C29, 1, 0) -> 0
B55: Flight Pay | O55: Income Selected | P55: =SUM(P48:P53) -> 0 | Q55: =IF(E35>F29, 1, 0) -> 0 | R55: > YTD +1 | S55: =IF(E35>F29, 1, 0) -> 0
B56: Hazard Pay | S56: =SUM(S54:S55) -> 0
B57: Overseas Pay | O57: Other
B58: Other Military Pay | O58: YTD | P58: =IF(C36=O58, C30, 0) -> 0
D59: Total Military Pay: | F59: =SUM(F52:I58) -> 0 | O59: =D26 -> 2024 | P59: =IF(C36=O59, D30, 0) -> 0
B60: Comments for Military Pay: | O60: =E26 -> 2023 | P60: =IF(C36=O60, E30, 0) -> 0
O61: YTD & Prior Year | P61: =IF(C36=O61, F30, 0) -> 0
O62: YTD & Prior 2 Yrs | P62: =IF(C36=O62, H30, 0) -> 0
O63: Prior 2 yrs | P63: =IF(C36=O63, J30, 0) -> 0
Q64: =IF(E36>C30, 1, 0) -> 0 | R64: > YTD | S64: =IF(E36>C30, 1, 0) -> 0
O65: Income Selected | P65: =SUM(P58:P63) -> 0 | Q65: =IF(E36>F30, 1, 0) -> 0 | R65: > YTD +1 | S65: =IF(E36>F30, 1, 0) -> 0
S66: =SUM(S64:S65) -> 0
Q67: =SUM(Q33:Q65) -> 0
C73: 0.24
C74: 0.23
C75: 0.22

Sheet 1040 (B1)
B1: 1040 (B1) | G1: Borrower's Name: | J1: =IF(Input!C5=0,"",Input!C5) ->  | L1: Date Reviewed: | N1: =IF(Input!I9=0,"",Input!I9) ->  | Q1: "X if Not Included in IA
G2: Co Borrower's Name: | J2: =IF(Input!C7=0,"",Input!C7) ->  | L2: Loan Number: | N2: =IF(Input!I5=0,"",Input!I5) -> 
G3: Calculated By: | J3: =IF(Input!C9=0,"",Input!C9) ->  | L3: Ticket Number: | N3: =IF(Input!I7=0,"",Input!I7) -> 
K4: 21
I7: =Input!C13 -> 2024 | K7: =I7-1 -> 2023 | M7: Divide by # of months | O7: Monthly Income
T8: 2022 Tax Lines on 1040 | X8: 2021 Tax Lines on 1040
B9: Taxable Interest | C9: Source: | M9: =IF(AND(K9="",I9=""),"",IF(I9=0,"",IF(I9<K9,12,IF(K9="",12,24)))) ->  | O9: =IF(M9="","",IF(Q9="x","",IF(M9=12,I9/12,(I9+K9)/24))) ->  | T9: Tax Exempt Interest | V9: 2a | X9: Taxable Interest | Z9: 2a
B10: Tax Exempt Interest | C10: Source: | M10: =IF(AND(K10="",I10=""),"",IF(I10=0,"",IF(I10<K10,12,IF(K10="",12,24)))) ->  | O10: =IF(M10="","",IF(Q10="x","",IF(M10=12,I10/12,(I10+K10)/24))) ->  | T10: Taxable Interest | V10: 2b | X10: Tax Exempt Interest | Z10: 2b
B11: Dividends | C11: Source: | T11: Dividends | V11: 3b | X11: Dividends | Z11: 3b
B12: Total IRA/Pensions/Annuities | T12: IRA Distributions | V12: 4a/4b | X12: IRA Distributions | Z12: 4a/4b
B13: Alimony | T13: Pensions/Annuitites | V13: 5a/5b | X13: Pensions/Annuitites | Z13: 5a/5b
B14: Capital Gains/Losses | T14: Total Social Security Benefits | V14: 6a | X14: Total Social Security Benefits | Z14: 6a
B15: Unemployment Compensation | T15: Social Security Benefits Taxable | V15: 6b | X15: Social Security Benefits Taxable | Z15: 6b
B16: Other Income | T16: Capital Gain/Loss | V16: 7 | X16: Capital Gain/Loss | Z16: 7
E17: ="Yr"&I7 -> Yr2024 | G17: ="Yr" & K7 -> Yr2023 | T17: Schedule 1 | X17: Schedule 1
B18: Total Social Security Benefits | T18: Alimony Income | V18: 2a | X18: Alimony Income | Z18: 2a
B19: Social Security Benefits Taxable | I19: =IF(E19="","",E19) ->  | M19: =IF(I19="","",12) ->  | T19: Unemployment Comp | V19: 7 | X19: Unemployment Comp | Z19: 7
B20: Non Taxable Social Security | E20: Gross Up %: | G20: 1 | I20: =IF(E18="","",IF(E18="","",E18-E19)*G20) ->  | M20: =IF(I20="","",12) ->  | O20: =IF(M20="","",IF(Q20="x","",IF(M20=12,I20/12,(I20+K20)/24))) ->  | T20: Other Income | V20: 8 | X20: Other Income | Z20: 8
B25: Comments:
B31: Other Income / Loss | T31: 2020 Tax Lines on 1040
T32: Taxable Interest | V32: 2a
E33: Document Description | I33: Monthly Income | T33: Tax Exempt Interest | V33: 2b
O34: d | T34: Dividends | V34: 3b
B35: Child Support | T35: IRA Distributions | V35: 4b/4d
B36: Note Receivable | T36: Pensions/Annuitites | V36: 5a/5b
B37: Social Security | T37: Total Social Security Benefits | V37: 6a
B38: Pension | T38: Social Security Benefits Taxable | V38: 6b
B39: Disability Income | T39: Capital Gain/Loss | V39: 7
B40: Alimony | T40: Schedule 1
B41: Other | T41: Alimony Income | V41: 2a
B42: Other | T42: Unemployment Comp | V42: 7
B43: Other | T43: Other Income | V43: 8
B44: Other
B47: Comments: | I47: =SUM(I35:I44) -> 0

Sheet 1040 (B2)
B1: 1040 (B2) | G1: Borrower's Name: | J1: =IF(Input!C5=0,"",Input!C5) ->  | L1: Date Reviewed: | N1: =IF(Input!I9=0,"",Input!I9) ->  | Q1: "X if Not Included in IA | V1: 2011
G2: Co Borrower's Name: | J2: =IF(Input!C7=0,"",Input!C7) ->  | L2: Loan Number: | N2: =IF(Input!I5=0,"",Input!I5) ->  | V2: 2010
G3: Calculated By: | J3: =IF(Input!C9=0,"",Input!C9) ->  | L3: Ticket Number: | N3: =IF(Input!I7=0,"",Input!I7) ->  | V3: 2009
K4: 21 | V4: 2008
I7: =Input!C13 -> 2024 | K7: =I7-1 -> 2023 | M7: Divide by # of months | O7: Monthly Income
T8: 2022 Tax Lines on 1040 | X8: 2021 Tax Lines on 1040
B9: Taxable Interest | C9: Source: | M9: =IF(AND(K9="",I9=""),"",IF(I9=0,"",IF(I9<K9,12,IF(K9="",12,24)))) ->  | O9: =IF(M9="","",IF(Q9="x","",IF(M9=12,I9/12,(I9+K9)/24))) ->  | T9: Tax Exempt Interest | V9: 2a | X9: Taxable Interest | Z9: 2a
B10: Tax Exempt Interest | C10: Source: | M10: =IF(AND(K10="",I10=""),"",IF(I10=0,"",IF(I10<K10,12,IF(K10="",12,24)))) ->  | O10: =IF(M10="","",IF(Q10="x","",IF(M10=12,I10/12,(I10+K10)/24))) ->  | T10: Taxable Interest | V10: 2b | X10: Tax Exempt Interest | Z10: 2b
B11: Dividends | C11: Source: | T11: Dividends | V11: 3b | X11: Dividends | Z11: 3b
B12: Total IRA/Pensions/Annuities | T12: IRA Distributions | V12: 4a/4b | X12: IRA Distributions | Z12: 4a/4b
B13: Alimony | T13: Pensions/Annuitites | V13: 5a/5b | X13: Pensions/Annuitites | Z13: 5a/5b
B14: Capital Gains/Losses | T14: Total Social Security Benefits | V14: 6a | X14: Total Social Security Benefits | Z14: 6a
B15: Unemployment Compensation | T15: Social Security Benefits Taxable | V15: 6b | X15: Social Security Benefits Taxable | Z15: 6b
B16: Other Income | T16: Capital Gain/Loss | V16: 7 | X16: Capital Gain/Loss | Z16: 7
E17: ="Yr"&I7 -> Yr2024 | G17: ="Yr" & K7 -> Yr2023 | T17: Schedule 1 | X17: Schedule 1
B18: Total Social Security Benefits | T18: Alimony Income | V18: 2a | X18: Alimony Income | Z18: 2a
B19: Social Security Benefits Taxable | I19: =IF(E19="","",E19) ->  | M19: =IF(I19="","",12) ->  | T19: Unemployment Comp | V19: 7 | X19: Unemployment Comp | Z19: 7
B20: Non Taxable Social Security | E20: Gross Up %: | G20: 1 | I20: =IF(E18="","",IF(E18="","",E18-E19)*G20) ->  | M20: =IF(I20="","",12) ->  | O20: =IF(M20="","",IF(Q20="x","",IF(M20=12,I20/12,(I20+K20)/24))) ->  | T20: Other Income | V20: 8 | X20: Other Income | Z20: 8
B25: Comments:
B31: Other Income / Loss | T31: 2020 Tax Lines on 1040
T32: Taxable Interest | V32: 2a
E33: Document Description | I33: Monthly Income | T33: Tax Exempt Interest | V33: 2b
O34: d | T34: Dividends | V34: 3b
B35: Child Support | T35: IRA Distributions | V35: 4b/4d
B36: Note Receivable | T36: Pensions/Annuitites | V36: 5a/5b
B37: Social Security | T37: Total Social Security Benefits | V37: 6a
B38: Pension | T38: Social Security Benefits Taxable | V38: 6b
B39: Disability Income | T39: Capital Gain/Loss | V39: 7
B40: Alimony | T40: Schedule 1
B41: Other | T41: Alimony Income | V41: 2a
B42: Other | T42: Unemployment Comp | V42: 7
B43: Other | T43: Other Income | V43: 8
B44: Other
B47: Comments: | I47: =SUM(I35:I44) -> 0

Sheet Sch C
B1: Schedule C - Sole Proprietorship Income | J1: Borrower's Name: | M1: =IF(Input!C5=0,"",Input!C5) ->  | O1: Date Reviewed: | Q1: =IF(Input!I9=0,"",Input!I9) ->  | U1: 2011
J2: Co Borrower's Name: | M2: =IF(Input!C7=0,"",Input!C7) ->  | O2: Loan Number: | Q2: =IF(Input!I5=0,"",Input!I5) ->  | U2: 2010
J3: Calculated By: | M3: =IF(Input!C9=0,"",Input!C9) ->  | O3: Ticket Number: | Q3: =IF(Input!I7=0,"",Input!I7) ->  | U3: 2009
K4: 21 | V4: 2008
B6: Business Name:
B7: Owner's Name: | I7: =Input!$C$13 -> 2024 | K7: =I7-1 -> 2023
B9: Net Profit: | G9: (+) | X9: Tax Lines on Schedule C (est)
B10: Loss: | G10: (-) | T10: 2014 | U10: 0.23
B11: Nonrecurring Other (Income) loss: | G11: (+/-) | T11: 2013 | U11: 0.23 | X11: Net Profit: | Z11: 31
B12: Depletion: | G12: (+) | O12: =IF(SUM(O10:O11,O1:O7)=0,"",SUM(O10:O11,O1:O7)) ->  | T12: 2012 | U12: 0.23 | X12: Loss: | Z12: 31
B13: Depreciation: | G13: (+) | Q13: "X if Not Included in IA | T13: 2011 | U13: 0.22 | X13: Nonrecurring Other (Income) loss: | Z13: 6
B14: Amortization/Casualty loss: | G14: (+) | T14: 2010 | U14: 0.23 | X14: Depletion: | Z14: 12
B15: Business Use of Home: | G15: (+) | O15: =IF(SUM(O4:O11)=0,"",SUM(O13:O14,O4:O10)) ->  | X15: Depreciation: | Z15: 13
B16: Meals & Entertainment: | C16: ="Yr"&I7 -> Yr2024 | E16: ="Yr"&K7 -> Yr2023 | G16: (-) | X16: Amortization/Casualty loss: | Z16: (Page 2, Part V Only if Noted)
B17: Business Miles | F17: Depreciation Rate | I17: =IF(I7=2023,0.28,IF(I7=2024,0.3,IF(I7=2021,0.26,IF(I7=2022,0.26,"")))) -> 0.3 | K17: =IF(K7=2023,0.28,IF(K7=2020,0.27,IF(K7=2021,0.26,IF(K7=2022,0.26,"")))) -> 0.28
B18: Total Business Miles Add back: | I18: =I17*C17 -> 0 | K18: =K17*E17 -> 0 | O18: Divide by # | S18: Monthly
B19: Other Adjustment: | G19: (+/-) | O19: of months | S19: Income | X19: Business Use of Home: | Z19: 30
C20: Total Income | I20: =IF((SUMIF(I9:I16,">0")-SUMIF(I9:I16,"<0"))=0,"",SUM(I9:I16,I18:I19)) ->  | K20: =IF((SUMIF(K9:K16,">0")-SUMIF(K9:K16,"<0"))=0,"",SUM(K9:K16,K18:K19)) ->  | O20: =IF(AND(K20="",I20=""),"",IF(I20="","",IF(I20>K20,24,IF(I20="",12,12)))) ->  | S20: =IF(O20="","",IF(Q20="x","",IF(O20=12,I20/12,(I20+K20)/24))) ->  | X20: Meals & Entertainment: | Z20: 24b
X21: Business miles: | Z21: Page 2, Part IV line 44a
B23: Comments:
B27: Business Name:
B28: Owner's Name: | I28: =Input!$C$13 -> 2024 | K28: =I28-1 -> 2023
B30: Net Profit: | G30: (+)
B31: Loss: | G31: (-)
B32: Nonrecurring Other (Income) loss: | G32: (+/-)
B33: Depletion: | G33: (+) | O33: =IF(SUM(O31:O32,O22:O28)=0,"",SUM(O31:O32,O22:O28)) -> 
B34: Depreciation: | G34: (+) | Q34: "X if Not Included in IA
B35: Amortization/Casualty loss: | G35: (+)
B36: Business Use of Home: | G36: (+) | O36: =IF(SUM(O25:O32)=0,"",SUM(O34:O35,O25:O31)) -> 
B37: Meals & Entertainment: | C37: ="Yr"&I28 -> Yr2024 | E37: ="Yr"&K28 -> Yr2023 | G37: (-)
B38: Business Miles | F38: Depreciation Rate | I38: =IF(I28=2023,0.28,IF(I28=2024,0.3,IF(I28=2021,0.26,IF(I28=2022,0.26,"")))) -> 0.3 | K38: =IF(K28=2023,0.28,IF(K28=2020,0.27,IF(K28=2021,0.26,IF(K28=2022,0.26,"")))) -> 0.28
B39: Total Business Miles Add back: | I39: =I38*C38 -> 0 | K39: =K38*E38 -> 0 | O39: Divide by # | S39: Monthly
B40: Other Adjustment: | G40: (+/-) | O40: of months | S40: Income
C41: Total Income | I41: =IF((SUMIF(I30:I37,">0")-SUMIF(I30:I37,"<0"))=0,"",SUM(I30:I37,I39:I40)) ->  | K41: =IF((SUMIF(K30:K37,">0")-SUMIF(K30:K37,"<0"))=0,"",SUM(K30:K37,K39:K40)) ->  | O41: =IF(AND(K41="",I41=""),"",IF(I41="","",IF(I41>K41,24,IF(I41="",12,12)))) ->  | S41: =IF(O41="","",IF(Q41="x","",IF(O41=12,I41/12,(I41+K41)/24))) -> 
B44: Comments:
B48: Business Name:
B49: Owner's Name: | I49: =Input!$C$13 -> 2024 | K49: =I49-1 -> 2023
B51: Net Profit: | G51: (+)
B52: Loss: | G52: (-)
B53: Nonrecurring Other (Income) loss: | G53: (+/-)
B54: Depletion: | G54: (+) | O54: =IF(SUM(O52:O53,O43:O49)=0,"",SUM(O52:O53,O43:O49)) -> 
B55: Depreciation: | G55: (+) | Q55: "X if Not Included in IA
B56: Amortization/Casualty loss: | G56: (+)
B57: Business Use of Home: | G57: (+) | O57: =IF(SUM(O46:O53)=0,"",SUM(O55:O56,O46:O52)) -> 
B58: Meals & Entertainment: | C58: ="Yr"&I49 -> Yr2024 | E58: ="Yr"&K49 -> Yr2023 | G58: (-)
B59: Business Miles | F59: Depreciation Rate | I59: =IF(I49=2023,0.28,IF(I49=2024,0.3,IF(I49=2021,0.26,IF(I49=2022,0.26,"")))) -> 0.3 | K59: =IF(K49=2023,0.28,IF(K49=2020,0.27,IF(K49=2021,0.26,IF(K49=2022,0.26,"")))) -> 0.28
B60: Total Business Miles Add back: | I60: =I59*C59 -> 0 | K60: =K59*E59 -> 0 | O60: Divide by # | S60: Monthly
B61: Other Adjustment: | G61: (+/-) | O61: of months | S61: Income
C62: Total Income | I62: =IF((SUMIF(I51:I58,">0")-SUMIF(I51:I58,"<0"))=0,"",SUM(I51:I58,I60:I61)) ->  | K62: =IF((SUMIF(K51:K58,">0")-SUMIF(K51:K58,"<0"))=0,"",SUM(K51:K58,K60:K61)) ->  | O62: =IF(AND(K62="",I62=""),"",IF(I62="","",IF(I62>K62,24,IF(I62="",12,12)))) ->  | S62: =IF(O62="","",IF(Q62="x","",IF(O62=12,I62/12,(I62+K62)/24))) -> 
B65: Comments:

Sheet Master (hidden)
B3: Sch_C Template:
B6: Business Name:
B7: Owner's Name: | I7: =K7-1 -> 2023 | K7: =Input!$C$13 -> 2024 | M7: YTD P&L
B9: Net Profit: | G9: (+)
B10: Loss: | G10: (-)
B11: Nonrecurring Other (Income) loss: | G11: (+/-)
B12: Depletion: | G12: (+) | O12: =IF(SUM(O10:O11,O1:O7)=0,"",SUM(O10:O11,O1:O7)) -> 
B13: Depreciation: | G13: (+) | Q13: "X if Not Included in IA
B14: Amortization/Casualty loss: | G14: (+)
B15: Business Use of Home: | G15: (+) | O15: =IF(SUM(O4:O11)=0,"",SUM(O13:O14,O4:O10)) -> 
B16: Meals & Entertainment: | C16: ="Yr"&K7 -> Yr2024 | E16: ="Yr"&I7 -> Yr2023 | G16: (-)
B17: Business Miles | F17: Depreciation Rate | I17: =IF(I7=2015,0.24,IF(I7=2014,0.22,IF(I7=2013,0.23,""))) ->  | K17: =IF(K7=2015,0.24,IF(K7=2014,0.22,IF(K7=2013,0.23,""))) ->  | M17: =IF(M7=2015,0.24,IF(M7=2014,0.22,IF(M7=2013,0.23,""))) -> 
B18: Total Business Miles Add back: | I18: =IF(E17="","",E17*I17) ->  | K18: =IF(C17="","",C17*K17) ->  | O18: Divide by # | S18: Monthly
B19: Other Adjustment: | G19: (+/-) | O19: of months | S19: Income
C20: Total Income | I20: =IF((SUMIF(I9:I16,">0")-SUMIF(I9:I16,"<0"))=0,"",SUM(I9:I16,I18:I19)) ->  | K20: =IF((SUMIF(K9:K16,">0")-SUMIF(K9:K16,"<0"))=0,"",SUM(K9:K16,K18:K19)) ->  | M20: =IF((SUMIF(M9:M16,">0")-SUMIF(M9:M16,"<0"))=0,"",SUM(M9:M16,M18:M19)) ->  | O20: =IF(AND(K20="",I20=""),"",IF(I20="","",IF(I20>K20,12,IF(K20="",12,24)))) ->  | S20: =IF(O20="","",IF(Q20="x","",IF(O20=12,K20/12,(I20+K20)/24))) -> 
B23: Comments:

Sheet YTD P&L (Sch C)
B1: Year-to-Date Profit and Loss | H1: Borrower's Name: | L1: =IF(Input!C5=0,"",Input!C5) ->  | O1: Date Reviewed: | Q1: =IF(Input!I9=0,"",Input!I9) -> 
H2: Co Borrower's Name: | L2: =IF(Input!C7=0,"",Input!C7) ->  | O2: Loan Number: | Q2: =IF(Input!I5=0,"",Input!I5) -> 
H3: Calculated By: | L3: =IF(Input!C9=0,"",Input!C9) ->  | O3: Ticket #: | Q3: =IF(Input!I7=0,"",Input!I7) -> 
U4: Accrual
B5: Business Name:
B7: Owner's Name: | T7: Cash
B9: Percent Ownership | E9: % | N9: Total # of Months of the P&L | T9: Accrual
B11: W2 Earnings | Q11: = | R11: =IF(F11="","",F11) -> 
B13: Net Profit (Loss): | G13: x | H13: =IF($D$9=0,"",$D$9) ->  | I13: % | J13: Multiply by % of Ownership | Q13: = | R13: =IF(F13="","",F13*H13%) -> 
B15: Depreciation: | G15: x | H15: =IF($D$9=0,"",$D$9) ->  | I15: % | J15: Multiply by % of Ownership | Q15: = | R15: =IF(F15="","",F15*H15%) -> 
B17: Other Adjustment: | G17: x | H17: =IF($D$9=0,"",$D$9) ->  | I17: % | J17: Multiply by % of Ownership | Q17: = | R17: =IF(F17="","",F17*H17%) -> 
H19: Year-to-Date Total | Q19: = | R19: =IF(SUM(R11:S17)=0,"",SUM(R11:S17)) -> 
H21: Monthly Total | Q21: = | R21: =IF(S9=0,"",IF(R19=0,0,R19/S9)) -> 
B24: Comparative Analysis with YTD:
L26: "X to Include in Analysis
D28: Total | F28: Total | H28: Total | J28: Monthly YTD | L28: Normal Averaging Prior 2 YR | N28: YTD & Prior Yr | P28: YTD & Prior 2 Yrs
D29: YTD | F29: =Input!$C$13 -> 2024 | H29: =Input!$D$13 -> 2023
D31: =R19 ->  | J31: =IF(S9=0,"",R21) ->  | L31: =IF(F31=0,"",IF(H31=0,(F31/12),IF(F31<H31,F31/12,(F31+H31)/24))) ->  | N31: =IF(F31=0,"",IF(S9=0,0,IF(F31=0,0,(F31+D31)/(12+S9)))) ->  | P31: =IF(F31=0,"",IF(S9=0,0,IF(F31=0,0,(D31+F31+H31)/(24+S9)))) -> 
B33: Comments:
B37: Business Name:
B39: Owner's Name: | T39: Cash
B41: Percent Ownership | E41: % | N41: Total # of Months of the P&L | T41: Accrual
B43: 1. W2 Earnings | Q43: = | R43: =IF(F43="","",F43) -> 
B45: 2. Net Profit (Loss): | G45: x | H45: =IF($D$41=0,"",$D$41) ->  | I45: % | J45: Multiply by % of Ownership | Q45: = | R45: =IF(F45="","",F45*H45%) -> 
B47: 3. Depreciation: | G47: x | H47: =IF($D$41=0,"",$D$41) ->  | I47: % | J47: Multiply by % of Ownership | Q47: = | R47: =IF(F47="","",F47*H47%) -> 
B49: 4. Other Adjustment: | G49: x | H49: =IF($D$41=0,"",$D$41) ->  | I49: % | J49: Multiply by % of Ownership | Q49: = | R49: =IF(F49="","",F49*H49%) -> 
H51: Year-to-Date Total | Q51: = | R51: =IF(SUM(R43:S49)=0,"",SUM(R43:S49)) -> 
H53: Monthly Total | Q53: = | R53: =IF(S41=0,"",IF(R51=0,0,R51/S41)) -> 
B56: Comparative Analysis with YTD:
L59: "X to Include in Analysis
D60: Total | F60: Total | H60: Total | J60: Monthly YTD | L60: Normal Averaging Prior 2 YR | N60: YTD & Prior Yr | P60: YTD & Prior 2 Yrs
D61: YTD | F61: =Input!$C$13 -> 2024 | H61: =Input!$D$13 -> 2023
D63: =R51 ->  | J63: =IF(S41=0,"",R53) ->  | L63: =IF(F63=0,"",IF(H63=0,(F63/12),IF(F63<H63,F63/12,(F63+H63)/24))) ->  | N63: =IF(F63=0,"",IF(S41=0,0,IF(F63=0,0,(F63+D63)/(12+S41)))) ->  | P63: =IF(F63=0,"",IF(S41=0,0,IF(F63=0,0,(D63+F63+H63)/(24+S41)))) -> 
B65: Comments:
B69: Business Name:
B71: Owner's Name: | T71: Cash
B73: Percent Ownership | E73: % | N73: Total # of Months of the P&L | T73: Accrual
B75: 1. Salary/Draws to Individual: | Q75: = | R75: =IF(F75="","",F75) -> 
B77: 2. Net Profit (Loss): | G77: x | H77: =IF($D$73=0,"",$D$73) ->  | I77: % | J77: Multiply by % of Ownership | Q77: = | R77: =IF(F77="","",F77*H77%) -> 
B79: 3. Depreciation: | G79: x | H79: =IF($D$73=0,"",$D$73) ->  | I79: % | J79: Multiply by % of Ownership | Q79: = | R79: =IF(F79="","",F79*H79%) -> 
B81: 4. Other Adjustment: | G81: x | H81: =IF($D$73=0,"",$D$73) ->  | I81: % | J81: Multiply by % of Ownership | Q81: = | R81: =IF(F81="","",F81*H81%) -> 
H83: Year-to-Date Total | Q83: = | R83: =IF(SUM(R75:S81)=0,"",SUM(R75:S81)) -> 
H85: Monthly Total | Q85: = | R85: =IF(S73=0,"",IF(R83=0,0,R83/S73)) -> 
B88: Comparative Analysis with YTD:
L91: "X to Include in Analysis
D92: Total | F92: Total | H92: Total | J92: Monthly YTD | L92: Normal Averaging Prior 2 YR | N92: YTD & Prior Yr | P92: YTD & Prior 2 Yrs
D93: YTD | F93: =Input!$C$13 -> 2024 | H93: =Input!$D$13 -> 2023
D95: =R83 ->  | J95: =IF(S73=0,"",R85) ->  | L95: =IF(F95=0,"",IF(H95=0,(F95/12),IF(F95<H95,F95/12,(F95+H95)/24))) ->  | N95: =IF(F95=0,"",IF(S73=0,0,IF(F95=0,0,(F95+D95)/(12+S73)))) ->  | P95: =IF(F95=0,"",IF(S73=0,0,IF(F95=0,0,(D95+F95+H95)/(24+S73)))) -> 
B97: Comments:
J113: YTD
I114: 1 | J114: =IF(J26="x",J31,"") -> 
I115: 2 | J115: =IF(J59="x",J63,"") -> 
I116: 3 | J116: =IF(J91="X",J95,"") -> 
J117: =SUM(J114:J116) -> 0

Sheet Rental
B1: Rental Income | E1: Borrower's Name: | H1: =IF(Input!C5=0,"",Input!C5) ->  | J1: Date Reviewed: | L1: =IF(Input!I9=0,"",Input!I9) -> 
E2: Co Borrower's Name: | H2: =IF(Input!C7=0,"",Input!C7) ->  | J2: Loan Number: | L2: =IF(Input!I5=0,"",Input!I5) -> 
E3: Calculated By: | H3: =IF(Input!C9=0,"",Input!C9) ->  | J3: Ticket #: | L3: =IF(Input!I7=0,"",Input!I7) -> 
G5: =Input!$C$13 -> 2024 | I5: =G5-1 -> 2023 | K5: Current Lease: | O5: Vacancy Factor:
B7: Property Address: | C7: Rents Received: | E7: (+) | S7: Tax Lines on Schedule E
C8: Insurance: | E8: (+) | K8: Lease Override:
C9: Mortgage Interest: | E9: (+) | S9: Rents Recieved: | U9: 3
C10: Taxes: | E10: (+) | S10: Insurance: | U10: 9
C11: Depreciation: | E11: (+) | M11: "X if Not Included in IA | S11: Mortgage Interest: | U11: 12
C12: HOA Dues: | E12: (+) | S12: Taxes: | U12: 16
C13: Amortization/Casualty Loss: | E13: (+) | S13: Depreciation: | U13: 18
C14: Non-recurring other: | E14: (+) | K14: Divide by # | O14: Monthly | S14: Total Expenses: | U14: 20
C15: Total Expenses: | E15: (-) | K15: of months | O15: Income | S15: HOA Dues: | U15: Line 19 (only if noted)
D16: Total Rental Income | G16: =IF((SUMIF(G7:G15,">0")-SUMIF(G7:G15,"<0"))=0,"",SUM(G7:G15)) ->  | I16: =IF((SUMIF(I7:I15,">0")-SUMIF(I7:I15,"<0"))=0,"",SUM(I7:I15)) ->  | K16: =IF(AND(I16="",G16=""),"",IF(G16="","",IF(G16<I16,12,IF(I16="",12,24)))) ->  | O16: =IF(M8<>"",K6*O6,IF(K16="","",IF(K16=12,G16/12,(G16+I16)/24))) -> 
I17: Monthly Principal & Interest | Q17: =IF(AND(H18="x",I20=""),(G10+G8)/12) -> FALSE | R17: =IF(AND(H19="x",H18="x",I20=""),G12/12) -> FALSE
D18: X to exclude taxes from calculation | I18: Taxes/Insurance/HOA Dues | O18: =IF(AND(H18="",H19="",I20=""),SUM(G10,G12,G8)/12,IF(AND(H18="x",H19="x",I20=""),R17,IF(AND(H18="x",I20=""),Q17,IF(AND(H19="x",I20=""),Q18,I20)))) -> 0 | Q18: =IF(AND(H19="x",I20=""),(G12+G10)/12) -> FALSE | S18: Amortization/Casualty Loss: | U18: Line 19 (only if noted)
D19: X to exclude insurance from calculation | K19: Net Rental | O19: =IF(O16="","",IF(M19="X","",O16-O17-O18)) -> 
B20: Monthly Taxes/Insurance/HOA Dues from current bills, if applicable | L20: =SUM('Rental '!O74,'Rental '!#REF!) -> 
B22: Comments:
G28: =Input!$C$13 -> 2024 | I28: =G28-1 -> 2023 | K28: Current Lease: | O28: Vacancy Factor:
B30: Property Address: | C30: Rents Received: | E30: (+)
C31: Insurance: | E31: (+) | K31: Lease Override:
C32: Mortgage Interest: | E32: (+)
C33: Taxes: | E33: (+)
C34: Depreciation: | E34: (+) | M34: "X if Not Included in IA
C35: HOA Dues: | E35: (+)
C36: Amortization/Casualty Loss: | E36: (+)
C37: Non-recurring other: | E37: (+) | K37: Divide by # | O37: Monthly
C38: Total Expenses: | E38: (-) | K38: of months | O38: Income
D39: Total Rental Income | G39: =IF((SUMIF(G30:G38,">0")-SUMIF(G30:G38,"<0"))=0,"",SUM(G30:G38)) ->  | I39: =IF((SUMIF(I30:I38,">0")-SUMIF(I30:I38,"<0"))=0,"",SUM(I30:I38)) ->  | K39: =IF(AND(I39="",G39=""),"",IF(G39="","",IF(G39<I39,12,IF(I39="",12,24)))) ->  | O39: =IF(M31<>"",K29*O29,IF(K39="","",IF(K39=12,G39/12,(G39+I39)/24))) -> 
I40: Monthly Principal & Interest | Q40: =IF(AND(H41="x",I43=""),(G33+G31)/12) -> FALSE | R40: =IF(AND(H42="x",H41="x",I43=""),G35/12) -> FALSE
D41: X to exclude taxes from calculation | I41: Taxes/Insurance/HOA Dues | O41: =IF(AND(H41="",H42="",I43=""),SUM(G33,G35,G31)/12,IF(AND(H41="x",H42="x",I43=""),R40,IF(AND(H41="x",I43=""),Q40,IF(AND(H42="x",I43=""),Q41,I43)))) -> 0 | Q41: =IF(AND(H42="x",I43=""),(G35+G33)/12) -> FALSE | S41: =IF(AND(H42="x",H41="x",I43=""),G36/12) -> FALSE | T41: =IF(AND(H41="x",H42="x",H43="x"),0,"") -> 
D42: X to exclude insurance from calculation | K42: Net Rental | O42: =IF(O39="","",IF(M42="X","",O39-O40-O41)) ->  | R42: =IF(AND(H42="x",I43=""),(G35+G36)/12) -> FALSE
B43: Monthly Taxes/Insurance/HOA Dues from current bills, if applicable
B45: Comments:
G51: =Input!$C$13 -> 2024 | I51: =G51-1 -> 2023 | K51: Current Lease: | O51: Vacancy Factor:
B53: Property Address: | C53: Rents Received: | E53: (+)
C54: Insurance: | E54: (+) | K54: Lease Override:
C55: Mortgage Interest: | E55: (+)
C56: Taxes: | E56: (+)
C57: Depreciation: | E57: (+) | M57: "X if Not Included in IA
C58: HOA Dues: | E58: (+)
C59: Amortization/Casualty Loss: | E59: (+)
C60: Non-recurring other: | E60: (+) | K60: Divide by # | O60: Monthly
C61: Total Expenses: | E61: (-) | K61: of months | O61: Income
D62: Total Rental Income | G62: =IF((SUMIF(G53:G61,">0")-SUMIF(G53:G61,"<0"))=0,"",SUM(G53:G61)) ->  | I62: =IF((SUMIF(I53:I61,">0")-SUMIF(I53:I61,"<0"))=0,"",SUM(I53:I61)) ->  | K62: =IF(AND(I62="",G62=""),"",IF(G62="","",IF(G62<I62,12,IF(I62="",12,24)))) ->  | O62: =IF(M54<>"",K52*O52,IF(K62="","",IF(K62=12,G62/12,(G62+I62)/24))) -> 
I63: Monthly Principal & Interest | Q63: =IF(AND(H64="x",I66=""),(G56+G54)/12) -> FALSE | R63: =IF(AND(H65="x",H64="x",I66=""),G58/12) -> FALSE
D64: X to exclude taxes from calculation | I64: Taxes/Insurance/HOA Dues | O64: =IF(AND(H64="",H65="",I66=""),SUM(G56,G58,G54)/12,IF(AND(H64="x",H65="x",I66=""),R63,IF(AND(H64="x",I66=""),Q63,IF(AND(H65="x",I66=""),Q64,I66)))) -> 0 | Q64: =IF(AND(H65="x",I66=""),(G58+G56)/12) -> FALSE | T64: =IF(AND(H64="x",H65="x",H66="x"),0,"") -> 
D65: X to exclude insurance from calculation | K65: Net Rental | O65: =IF(O62="","",IF(M65="X","",O62-O63-O64)) ->  | R65: =IF(AND(H65="x",I66=""),(G58+G59)/12) -> FALSE
B66: Monthly Taxes/Insurance/HOA Dues from current bills, if applicable
B68: Comments:
G74: =Input!$C$13 -> 2024 | I74: =G74-1 -> 2023 | K74: Current Lease: | O74: Vacancy Factor:
B76: Property Address: | C76: Rents Received: | E76: (+)
C77: Insurance: | E77: (+) | K77: Lease Override:
C78: Mortgage Interest: | E78: (+)
C79: Taxes: | E79: (+)
C80: Depreciation: | E80: (+) | M80: "X if Not Included in IA
C81: HOA Dues: | E81: (+)
C82: Amortization/Casualty Loss: | E82: (+)
C83: Non-recurring other: | E83: (+) | K83: Divide by # | O83: Monthly
C84: Total Expenses: | E84: (-) | K84: of months | O84: Income
D85: Total Rental Income | G85: =IF((SUMIF(G76:G84,">0")-SUMIF(G76:G84,"<0"))=0,"",SUM(G76:G84)) ->  | I85: =IF((SUMIF(I76:I84,">0")-SUMIF(I76:I84,"<0"))=0,"",SUM(I76:I84)) ->  | K85: =IF(AND(I85="",G85=""),"",IF(G85="","",IF(G85<I85,12,IF(I85="",12,24)))) ->  | O85: =IF(M77<>"",K75*O75,IF(K85="","",IF(K85=12,G85/12,(G85+I85)/24))) -> 
I86: Monthly Principal & Interest | Q86: =IF(AND(H87="x",I89=""),(G79+G77)/12) -> FALSE | R86: =IF(AND(H88="x",H87="x",I89=""),G81/12) -> FALSE
D87: X to exclude taxes from calculation | I87: Taxes/Insurance/HOA Dues | O87: =IF(AND(H87="",H88="",I89=""),SUM(G79,G81,G77)/12,IF(AND(H87="x",H88="x",I89=""),R86,IF(AND(H87="x",I89=""),Q86,IF(AND(H88="x",I89=""),Q87,I89)))) -> 0 | Q87: =IF(AND(H88="x",I89=""),(G81+G79)/12) -> FALSE
D88: X to exclude insurance from calculation | K88: Net Rental | O88: =IF(O85="","",IF(M88="X","",O85-O86-O87)) -> 
B89: Monthly Taxes/Insurance/HOA Dues from current bills, if applicable
B91: Comments:
G97: =Input!$C$13 -> 2024 | I97: =G97-1 -> 2023 | K97: Current Lease: | O97: Vacancy Factor:
B99: Property Address: | C99: Rents Received: | E99: (+)
C100: Insurance: | E100: (+) | K100: Lease Override:
C101: Mortgage Interest: | E101: (+)
C102: Taxes: | E102: (+)
C103: Depreciation: | E103: (+) | M103: "X if Not Included in IA
C104: HOA Dues: | E104: (+)
C105: Amortization/Casualty Loss: | E105: (+)
C106: Non-recurring other: | E106: (+) | K106: Divide by # | O106: Monthly
C107: Total Expenses: | E107: (-) | K107: of months | O107: Income
D108: Total Rental Income | G108: =IF((SUMIF(G99:G107,">0")-SUMIF(G99:G107,"<0"))=0,"",SUM(G99:G107)) ->  | I108: =IF((SUMIF(I99:I107,">0")-SUMIF(I99:I107,"<0"))=0,"",SUM(I99:I107)) ->  | K108: =IF(AND(I108="",G108=""),"",IF(G108="","",IF(G108<I108,12,IF(I108="",12,24)))) ->  | O108: =IF(M100<>"",K98*O98,IF(K108="","",IF(K108=12,G108/12,(G108+I108)/24))) -> 
I109: Monthly Principal & Interest | Q109: =IF(AND(H110="x",I112=""),(G102+G100)/12) -> FALSE | R109: =IF(AND(H111="x",H110="x",I112=""),G104/12) -> FALSE
D110: X to exclude taxes from calculation | I110: Taxes/Insurance/HOA Dues | O110: =IF(AND(H110="",H111="",I112=""),SUM(G102,G104,G100)/12,IF(AND(H110="x",H111="x",I112=""),R109,IF(AND(H110="x",I112=""),Q109,IF(AND(H111="x",I112=""),Q110,I112)))) -> 0 | Q110: =IF(AND(H111="x",I112=""),(G104+G102)/12) -> FALSE
D111: X to exclude insurance from calculation | K111: Net Rental | O111: =IF(O108="","",IF(M111="X","",O108-O109-O110)) -> 
B112: Monthly Taxes/Insurance/HOA Dues from current bills, if applicable
B114: Comments:
G120: =Input!$C$13 -> 2024 | I120: =G120-1 -> 2023 | K120: Current Lease: | O120: Vacancy Factor:
B122: Property Address: | C122: Rents Received: | E122: (+)
C123: Insurance: | E123: (+) | K123: Lease Override:
C124: Mortgage Interest: | E124: (+)
C125: Taxes: | E125: (+)
C126: Depreciation: | E126: (+) | M126: "X if Not Included in IA
C127: HOA Dues: | E127: (+)
C128: Amortization/Casualty Loss: | E128: (+)
C129: Non-recurring other: | E129: (+) | K129: Divide by # | O129: Monthly
C130: Total Expenses: | E130: (-) | K130: of months | O130: Income
D131: Total Rental Income | G131: =IF((SUMIF(G122:G130,">0")-SUMIF(G122:G130,"<0"))=0,"",SUM(G122:G130)) ->  | I131: =IF((SUMIF(I122:I130,">0")-SUMIF(I122:I130,"<0"))=0,"",SUM(I122:I130)) ->  | K131: =IF(AND(I131="",G131=""),"",IF(G131="","",IF(G131<I131,12,IF(I131="",12,24)))) ->  | O131: =IF(M123<>"",K121*O121,IF(K131="","",IF(K131=12,G131/12,(G131+I131)/24))) -> 
I132: Monthly Principal & Interest | Q132: =IF(AND(H133="x",I135=""),(G125+G123)/12) -> FALSE | R132: =IF(AND(H134="x",H133="x",I135=""),G127/12) -> FALSE
D133: X to exclude taxes from calculation | I133: Taxes/Insurance/HOA Dues | O133: =IF(AND(H133="",H134="",I135=""),SUM(G125,G127,G123)/12,IF(AND(H133="x",H134="x",I135=""),R132,IF(AND(H133="x",I135=""),Q132,IF(AND(H134="x",I135=""),Q133,I135)))) -> 0 | Q133: =IF(AND(H134="x",I135=""),(G127+G125)/12) -> FALSE
D134: X to exclude insurance from calculation | K134: Net Rental | O134: =IF(O131="","",IF(M134="X","",O131-O132-O133)) -> 
B135: Monthly Taxes/Insurance/HOA Dues from current bills, if applicable
B137: Comments:

Sheet Rental (2)
B1: Rental Income | E1: Borrower's Name: | H1: =IF(Input!C5=0,"",Input!C5) ->  | J1: Date Reviewed: | L1: =IF(Input!I9=0,"",Input!I9) -> 
E2: Co Borrower's Name: | H2: =IF(Input!C7=0,"",Input!C7) ->  | J2: Loan Number: | L2: =IF(Input!I5=0,"",Input!I5) -> 
E3: Calculated By: | H3: =IF(Input!C9=0,"",Input!C9) ->  | J3: Ticket #: | L3: =IF(Input!I7=0,"",Input!I7) -> 
G5: =Input!$C$13 -> 2024 | I5: =G5-1 -> 2023 | K5: Current Lease: | O5: Vacancy Factor:
B7: Property Address: | C7: Rents Received: | E7: (+) | S7: Tax Lines on Schedule E
C8: Insurance: | E8: (+) | K8: Lease Override:
C9: Mortgage Interest: | E9: (+) | S9: Rents Recieved: | U9: 3
C10: Taxes: | E10: (+) | S10: Insurance: | U10: 9
C11: Depreciation: | E11: (+) | M11: "X if Not Included in IA | S11: Mortgage Interest: | U11: 12
C12: HOA Dues: | E12: (+) | S12: Taxes: | U12: 16
C13: Amortization/Casualty Loss: | E13: (+) | S13: Depreciation: | U13: 18
C14: Non-recurring other: | E14: (+) | K14: Divide by # | O14: Monthly | S14: Total Expenses: | U14: 20
C15: Total Expenses: | E15: (-) | K15: of months | O15: Income | S15: HOA Dues: | U15: Line 19 (only if noted)
D16: Total Rental Income | G16: =IF((SUMIF(G7:G15,">0")-SUMIF(G7:G15,"<0"))=0,"",SUM(G7:G15)) ->  | I16: =IF((SUMIF(I7:I15,">0")-SUMIF(I7:I15,"<0"))=0,"",SUM(I7:I15)) ->  | K16: =IF(AND(I16="",G16=""),"",IF(G16="","",IF(G16<I16,12,IF(I16="",12,24)))) ->  | O16: =IF(M8<>"",K6*O6,IF(K16="","",IF(K16=12,G16/12,(G16+I16)/24))) -> 
I17: Monthly Principal & Interest | Q17: =IF(AND(H18="x",I20=""),(G10+G8)/12) -> FALSE | R17: =IF(AND(H19="x",H18="x",I20=""),G12/12) -> FALSE
D18: X to exclude taxes from calculation | I18: Taxes/Insurance/HOA Dues | O18: =IF(AND(H18="",H19="",I20=""),SUM(G10,G12,G8)/12,IF(AND(H18="x",H19="x",I20=""),R17,IF(AND(H18="x",I20=""),Q17,IF(AND(H19="x",I20=""),Q18,I20)))) -> 0 | Q18: =IF(AND(H19="x",I20=""),(G12+G10)/12) -> FALSE | S18: Amortization/Casualty Loss: | U18: Line 19 (only if noted)
D19: X to exclude insurance from calculation | K19: Net Rental | O19: =IF(O16="","",IF(M19="X","",O16-O17-O18)) -> 
B20: Monthly Taxes/Insurance/HOA Dues from current bills, if applicable | L20: =SUM('Rental (2)'!O74,'Rental (2)'!#REF!) -> 
B22: Comments:
G28: =Input!$C$13 -> 2024 | I28: =G28-1 -> 2023 | K28: Current Lease: | O28: Vacancy Factor:
B30: Property Address: | C30: Rents Received: | E30: (+)
C31: Insurance: | E31: (+) | K31: Lease Override:
C32: Mortgage Interest: | E32: (+)
C33: Taxes: | E33: (+)
C34: Depreciation: | E34: (+) | M34: "X if Not Included in IA
C35: HOA Dues: | E35: (+)
C36: Amortization/Casualty Loss: | E36: (+)
C37: Non-recurring other: | E37: (+) | K37: Divide by # | O37: Monthly
C38: Total Expenses: | E38: (-) | K38: of months | O38: Income
D39: Total Rental Income | G39: =IF((SUMIF(G30:G38,">0")-SUMIF(G30:G38,"<0"))=0,"",SUM(G30:G38)) ->  | I39: =IF((SUMIF(I30:I38,">0")-SUMIF(I30:I38,"<0"))=0,"",SUM(I30:I38)) ->  | K39: =IF(AND(I39="",G39=""),"",IF(G39="","",IF(G39<I39,12,IF(I39="",12,24)))) ->  | O39: =IF(M31<>"",K29*O29,IF(K39="","",IF(K39=12,G39/12,(G39+I39)/24))) -> 
I40: Monthly Principal & Interest | Q40: =IF(AND(H41="x",I43=""),(G33+G31)/12) -> FALSE | R40: =IF(AND(H42="x",H41="x",I43=""),G35/12) -> FALSE
D41: X to exclude taxes from calculation | I41: Taxes/Insurance/HOA Dues | O41: =IF(AND(H41="",H42="",I43=""),SUM(G33,G35,G31)/12,IF(AND(H41="x",H42="x",I43=""),R40,IF(AND(H41="x",I43=""),Q40,IF(AND(H42="x",I43=""),Q41,I43)))) -> 0 | Q41: =IF(AND(H42="x",I43=""),(G35+G33)/12) -> FALSE | S41: =IF(AND(H42="x",H41="x",I43=""),G36/12) -> FALSE | T41: =IF(AND(H41="x",H42="x",H43="x"),0,"") -> 
D42: X to exclude insurance from calculation | K42: Net Rental | O42: =IF(O39="","",IF(M42="X","",O39-O40-O41)) ->  | R42: =IF(AND(H42="x",I43=""),(G35+G36)/12) -> FALSE
B43: Monthly Taxes/Insurance/HOA Dues from current bills, if applicable
B45: Comments:
G51: =Input!$C$13 -> 2024 | I51: =G51-1 -> 2023 | K51: Current Lease: | O51: Vacancy Factor:
B53: Property Address: | C53: Rents Received: | E53: (+)
C54: Insurance: | E54: (+) | K54: Lease Override:
C55: Mortgage Interest: | E55: (+)
C56: Taxes: | E56: (+)
C57: Depreciation: | E57: (+) | M57: "X if Not Included in IA
C58: HOA Dues: | E58: (+)
C59: Amortization/Casualty Loss: | E59: (+)
C60: Non-recurring other: | E60: (+) | K60: Divide by # | O60: Monthly
C61: Total Expenses: | E61: (-) | K61: of months | O61: Income
D62: Total Rental Income | G62: =IF((SUMIF(G53:G61,">0")-SUMIF(G53:G61,"<0"))=0,"",SUM(G53:G61)) ->  | I62: =IF((SUMIF(I53:I61,">0")-SUMIF(I53:I61,"<0"))=0,"",SUM(I53:I61)) ->  | K62: =IF(AND(I62="",G62=""),"",IF(G62="","",IF(G62<I62,12,IF(I62="",12,24)))) ->  | O62: =IF(M54<>"",K52*O52,IF(K62="","",IF(K62=12,G62/12,(G62+I62)/24))) -> 
I63: Monthly Principal & Interest | Q63: =IF(AND(H64="x",I66=""),(G56+G54)/12) -> FALSE | R63: =IF(AND(H65="x",H64="x",I66=""),G58/12) -> FALSE
D64: X to exclude taxes from calculation | I64: Taxes/Insurance/HOA Dues | O64: =IF(AND(H64="",H65="",I66=""),SUM(G56,G58,G54)/12,IF(AND(H64="x",H65="x",I66=""),R63,IF(AND(H64="x",I66=""),Q63,IF(AND(H65="x",I66=""),Q64,I66)))) -> 0 | Q64: =IF(AND(H65="x",I66=""),(G58+G56)/12) -> FALSE | T64: =IF(AND(H64="x",H65="x",H66="x"),0,"") -> 
D65: X to exclude insurance from calculation | K65: Net Rental | O65: =IF(O62="","",IF(M65="X","",O62-O63-O64)) ->  | R65: =IF(AND(H65="x",I66=""),(G58+G59)/12) -> FALSE
B66: Monthly Taxes/Insurance/HOA Dues from current bills, if applicable
B68: Comments:
G74: =Input!$C$13 -> 2024 | I74: =G74-1 -> 2023 | K74: Current Lease: | O74: Vacancy Factor:
B76: Property Address: | C76: Rents Received: | E76: (+)
C77: Insurance: | E77: (+) | K77: Lease Override:
C78: Mortgage Interest: | E78: (+)
C79: Taxes: | E79: (+)
C80: Depreciation: | E80: (+) | M80: "X if Not Included in IA
C81: HOA Dues: | E81: (+)
C82: Amortization/Casualty Loss: | E82: (+)
C83: Non-recurring other: | E83: (+) | K83: Divide by # | O83: Monthly
C84: Total Expenses: | E84: (-) | K84: of months | O84: Income
D85: Total Rental Income | G85: =IF((SUMIF(G76:G84,">0")-SUMIF(G76:G84,"<0"))=0,"",SUM(G76:G84)) ->  | I85: =IF((SUMIF(I76:I84,">0")-SUMIF(I76:I84,"<0"))=0,"",SUM(I76:I84)) ->  | K85: =IF(AND(I85="",G85=""),"",IF(G85="","",IF(G85<I85,12,IF(I85="",12,24)))) ->  | O85: =IF(M77<>"",K75*O75,IF(K85="","",IF(K85=12,G85/12,(G85+I85)/24))) -> 
I86: Monthly Principal & Interest | Q86: =IF(AND(H87="x",I89=""),(G79+G77)/12) -> FALSE | R86: =IF(AND(H88="x",H87="x",I89=""),G81/12) -> FALSE
D87: X to exclude taxes from calculation | I87: Taxes/Insurance/HOA Dues | O87: =IF(AND(H87="",H88="",I89=""),SUM(G79,G81,G77)/12,IF(AND(H87="x",H88="x",I89=""),R86,IF(AND(H87="x",I89=""),Q86,IF(AND(H88="x",I89=""),Q87,I89)))) -> 0 | Q87: =IF(AND(H88="x",I89=""),(G81+G79)/12) -> FALSE
D88: X to exclude insurance from calculation | K88: Net Rental | O88: =IF(O85="","",IF(M88="X","",O85-O86-O87)) -> 
B89: Monthly Taxes/Insurance/HOA Dues from current bills, if applicable
B91: Comments:
G97: =Input!$C$13 -> 2024 | I97: =G97-1 -> 2023 | K97: Current Lease: | O97: Vacancy Factor:
B99: Property Address: | C99: Rents Received: | E99: (+)
C100: Insurance: | E100: (+) | K100: Lease Override:
C101: Mortgage Interest: | E101: (+)
C102: Taxes: | E102: (+)
C103: Depreciation: | E103: (+) | M103: "X if Not Included in IA
C104: HOA Dues: | E104: (+)
C105: Amortization/Casualty Loss: | E105: (+)
C106: Non-recurring other: | E106: (+) | K106: Divide by # | O106: Monthly
C107: Total Expenses: | E107: (-) | K107: of months | O107: Income
D108: Total Rental Income | G108: =IF((SUMIF(G99:G107,">0")-SUMIF(G99:G107,"<0"))=0,"",SUM(G99:G107)) ->  | I108: =IF((SUMIF(I99:I107,">0")-SUMIF(I99:I107,"<0"))=0,"",SUM(I99:I107)) ->  | K108: =IF(AND(I108="",G108=""),"",IF(G108="","",IF(G108<I108,12,IF(I108="",12,24)))) ->  | O108: =IF(M100<>"",K98*O98,IF(K108="","",IF(K108=12,G108/12,(G108+I108)/24))) -> 
I109: Monthly Principal & Interest | Q109: =IF(AND(H110="x",I112=""),(G102+G100)/12) -> FALSE | R109: =IF(AND(H111="x",H110="x",I112=""),G104/12) -> FALSE
D110: X to exclude taxes from calculation | I110: Taxes/Insurance/HOA Dues | O110: =IF(AND(H110="",H111="",I112=""),SUM(G102,G104,G100)/12,IF(AND(H110="x",H111="x",I112=""),R109,IF(AND(H110="x",I112=""),Q109,IF(AND(H111="x",I112=""),Q110,I112)))) -> 0 | Q110: =IF(AND(H111="x",I112=""),(G104+G102)/12) -> FALSE
D111: X to exclude insurance from calculation | K111: Net Rental | O111: =IF(O108="","",IF(M111="X","",O108-O109-O110)) -> 
B112: Monthly Taxes/Insurance/HOA Dues from current bills, if applicable
B114: Comments:
G120: =Input!$C$13 -> 2024 | I120: =G120-1 -> 2023 | K120: Current Lease: | O120: Vacancy Factor:
B122: Property Address: | C122: Rents Received: | E122: (+)
C123: Insurance: | E123: (+) | K123: Lease Override:
C124: Mortgage Interest: | E124: (+)
C125: Taxes: | E125: (+)
C126: Depreciation: | E126: (+) | M126: "X if Not Included in IA
C127: HOA Dues: | E127: (+)
C128: Amortization/Casualty Loss: | E128: (+)
C129: Non-recurring other: | E129: (+) | K129: Divide by # | O129: Monthly
C130: Total Expenses: | E130: (-) | K130: of months | O130: Income
D131: Total Rental Income | G131: =IF((SUMIF(G122:G130,">0")-SUMIF(G122:G130,"<0"))=0,"",SUM(G122:G130)) ->  | I131: =IF((SUMIF(I122:I130,">0")-SUMIF(I122:I130,"<0"))=0,"",SUM(I122:I130)) ->  | K131: =IF(AND(I131="",G131=""),"",IF(G131="","",IF(G131<I131,12,IF(I131="",12,24)))) ->  | O131: =IF(M123<>"",K121*O121,IF(K131="","",IF(K131=12,G131/12,(G131+I131)/24))) -> 
I132: Monthly Principal & Interest | Q132: =IF(AND(H133="x",I135=""),(G125+G123)/12) -> FALSE | R132: =IF(AND(H134="x",H133="x",I135=""),G127/12) -> FALSE
D133: X to exclude taxes from calculation | I133: Taxes/Insurance/HOA Dues | O133: =IF(AND(H133="",H134="",I135=""),SUM(G125,G127,G123)/12,IF(AND(H133="x",H134="x",I135=""),R132,IF(AND(H133="x",I135=""),Q132,IF(AND(H134="x",I135=""),Q133,I135)))) -> 0 | Q133: =IF(AND(H134="x",I135=""),(G127+G125)/12) -> FALSE
D134: X to exclude insurance from calculation | K134: Net Rental | O134: =IF(O131="","",IF(M134="X","",O131-O132-O133)) -> 
B135: Monthly Taxes/Insurance/HOA Dues from current bills, if applicable
B137: Comments:

Sheet Rental (3)
B1: Rental Income | E1: Borrower's Name: | H1: =IF(Input!C5=0,"",Input!C5) ->  | J1: Date Reviewed: | L1: =IF(Input!I9=0,"",Input!I9) -> 
E2: Co Borrower's Name: | H2: =IF(Input!C7=0,"",Input!C7) ->  | J2: Loan Number: | L2: =IF(Input!I5=0,"",Input!I5) -> 
E3: Calculated By: | H3: =IF(Input!C9=0,"",Input!C9) ->  | J3: Ticket #: | L3: =IF(Input!I7=0,"",Input!I7) -> 
G5: =Input!$C$13 -> 2024 | I5: =G5-1 -> 2023 | K5: Current Lease: | O5: Vacancy Factor:
B7: Property Address: | C7: Rents Received: | E7: (+) | S7: Tax Lines on Schedule E
C8: Insurance: | E8: (+) | K8: Lease Override:
C9: Mortgage Interest: | E9: (+) | S9: Rents Recieved: | U9: 3
C10: Taxes: | E10: (+) | S10: Insurance: | U10: 9
C11: Depreciation: | E11: (+) | M11: "X if Not Included in IA | S11: Mortgage Interest: | U11: 12
C12: HOA Dues: | E12: (+) | S12: Taxes: | U12: 16
C13: Amortization/Casualty Loss: | E13: (+) | S13: Depreciation: | U13: 18
C14: Non-recurring other: | E14: (+) | K14: Divide by # | O14: Monthly | S14: Total Expenses: | U14: 20
C15: Total Expenses: | E15: (-) | K15: of months | O15: Income | S15: HOA Dues: | U15: Line 19 (only if noted)
D16: Total Rental Income | G16: =IF((SUMIF(G7:G15,">0")-SUMIF(G7:G15,"<0"))=0,"",SUM(G7:G15)) ->  | I16: =IF((SUMIF(I7:I15,">0")-SUMIF(I7:I15,"<0"))=0,"",SUM(I7:I15)) ->  | K16: =IF(AND(I16="",G16=""),"",IF(G16="","",IF(G16<I16,12,IF(I16="",12,24)))) ->  | O16: =IF(M8<>"",K6*O6,IF(K16="","",IF(K16=12,G16/12,(G16+I16)/24))) -> 
I17: Monthly Principal & Interest | Q17: =IF(AND(H18="x",I20=""),(G10+G8)/12) -> FALSE | R17: =IF(AND(H19="x",H18="x",I20=""),G12/12) -> FALSE
D18: X to exclude taxes from calculation | I18: Taxes/Insurance/HOA Dues | O18: =IF(AND(H18="",H19="",I20=""),SUM(G10,G12,G8)/12,IF(AND(H18="x",H19="x",I20=""),R17,IF(AND(H18="x",I20=""),Q17,IF(AND(H19="x",I20=""),Q18,I20)))) -> 0 | Q18: =IF(AND(H19="x",I20=""),(G12+G10)/12) -> FALSE | S18: Amortization/Casualty Loss: | U18: Line 19 (only if noted)
D19: X to exclude insurance from calculation | K19: Net Rental | O19: =IF(O16="","",IF(M19="X","",O16-O17-O18)) -> 
B20: Monthly Taxes/Insurance/HOA Dues from current bills, if applicable | L20: =SUM('Rental (3)'!O74,'Rental (3)'!#REF!) -> 
B22: Comments:
G28: =Input!$C$13 -> 2024 | I28: =G28-1 -> 2023 | K28: Current Lease: | O28: Vacancy Factor:
B30: Property Address: | C30: Rents Received: | E30: (+)
C31: Insurance: | E31: (+) | K31: Lease Override:
C32: Mortgage Interest: | E32: (+)
C33: Taxes: | E33: (+)
C34: Depreciation: | E34: (+) | M34: "X if Not Included in IA
C35: HOA Dues: | E35: (+)
C36: Amortization/Casualty Loss: | E36: (+)
C37: Non-recurring other: | E37: (+) | K37: Divide by # | O37: Monthly
C38: Total Expenses: | E38: (-) | K38: of months | O38: Income
D39: Total Rental Income | G39: =IF((SUMIF(G30:G38,">0")-SUMIF(G30:G38,"<0"))=0,"",SUM(G30:G38)) ->  | I39: =IF((SUMIF(I30:I38,">0")-SUMIF(I30:I38,"<0"))=0,"",SUM(I30:I38)) ->  | K39: =IF(AND(I39="",G39=""),"",IF(G39="","",IF(G39<I39,12,IF(I39="",12,24)))) ->  | O39: =IF(M31<>"",K29*O29,IF(K39="","",IF(K39=12,G39/12,(G39+I39)/24))) -> 
I40: Monthly Principal & Interest | Q40: =IF(AND(H41="x",I43=""),(G33+G31)/12) -> FALSE | R40: =IF(AND(H42="x",H41="x",I43=""),G35/12) -> FALSE
D41: X to exclude taxes from calculation | I41: Taxes/Insurance/HOA Dues | O41: =IF(AND(H41="",H42="",I43=""),SUM(G33,G35,G31)/12,IF(AND(H41="x",H42="x",I43=""),R40,IF(AND(H41="x",I43=""),Q40,IF(AND(H42="x",I43=""),Q41,I43)))) -> 0 | Q41: =IF(AND(H42="x",I43=""),(G35+G33)/12) -> FALSE | S41: =IF(AND(H42="x",H41="x",I43=""),G36/12) -> FALSE | T41: =IF(AND(H41="x",H42="x",H43="x"),0,"") -> 
D42: X to exclude insurance from calculation | K42: Net Rental | O42: =IF(O39="","",IF(M42="X","",O39-O40-O41)) ->  | R42: =IF(AND(H42="x",I43=""),(G35+G36)/12) -> FALSE
B43: Monthly Taxes/Insurance/HOA Dues from current bills, if applicable
B45: Comments:
G51: =Input!$C$13 -> 2024 | I51: =G51-1 -> 2023 | K51: Current Lease: | O51: Vacancy Factor:
B53: Property Address: | C53: Rents Received: | E53: (+)
C54: Insurance: | E54: (+) | K54: Lease Override:
C55: Mortgage Interest: | E55: (+)
C56: Taxes: | E56: (+)
C57: Depreciation: | E57: (+) | M57: "X if Not Included in IA
C58: HOA Dues: | E58: (+)
C59: Amortization/Casualty Loss: | E59: (+)
C60: Non-recurring other: | E60: (+) | K60: Divide by # | O60: Monthly
C61: Total Expenses: | E61: (-) | K61: of months | O61: Income
D62: Total Rental Income | G62: =IF((SUMIF(G53:G61,">0")-SUMIF(G53:G61,"<0"))=0,"",SUM(G53:G61)) ->  | I62: =IF((SUMIF(I53:I61,">0")-SUMIF(I53:I61,"<0"))=0,"",SUM(I53:I61)) ->  | K62: =IF(AND(I62="",G62=""),"",IF(G62="","",IF(G62<I62,12,IF(I62="",12,24)))) ->  | O62: =IF(M54<>"",K52*O52,IF(K62="","",IF(K62=12,G62/12,(G62+I62)/24))) -> 
I63: Monthly Principal & Interest | Q63: =IF(AND(H64="x",I66=""),(G56+G54)/12) -> FALSE | R63: =IF(AND(H65="x",H64="x",I66=""),G58/12) -> FALSE
D64: X to exclude taxes from calculation | I64: Taxes/Insurance/HOA Dues | O64: =IF(AND(H64="",H65="",I66=""),SUM(G56,G58,G54)/12,IF(AND(H64="x",H65="x",I66=""),R63,IF(AND(H64="x",I66=""),Q63,IF(AND(H65="x",I66=""),Q64,I66)))) -> 0 | Q64: =IF(AND(H65="x",I66=""),(G58+G56)/12) -> FALSE | T64: =IF(AND(H64="x",H65="x",H66="x"),0,"") -> 
D65: X to exclude insurance from calculation | K65: Net Rental | O65: =IF(O62="","",IF(M65="X","",O62-O63-O64)) ->  | R65: =IF(AND(H65="x",I66=""),(G58+G59)/12) -> FALSE
B66: Monthly Taxes/Insurance/HOA Dues from current bills, if applicable
B68: Comments:
G74: =Input!$C$13 -> 2024 | I74: =G74-1 -> 2023 | K74: Current Lease: | O74: Vacancy Factor:
B76: Property Address: | C76: Rents Received: | E76: (+)
C77: Insurance: | E77: (+) | K77: Lease Override:
C78: Mortgage Interest: | E78: (+)
C79: Taxes: | E79: (+)
C80: Depreciation: | E80: (+) | M80: "X if Not Included in IA
C81: HOA Dues: | E81: (+)
C82: Amortization/Casualty Loss: | E82: (+)
C83: Non-recurring other: | E83: (+) | K83: Divide by # | O83: Monthly
C84: Total Expenses: | E84: (-) | K84: of months | O84: Income
D85: Total Rental Income | G85: =IF((SUMIF(G76:G84,">0")-SUMIF(G76:G84,"<0"))=0,"",SUM(G76:G84)) ->  | I85: =IF((SUMIF(I76:I84,">0")-SUMIF(I76:I84,"<0"))=0,"",SUM(I76:I84)) ->  | K85: =IF(AND(I85="",G85=""),"",IF(G85="","",IF(G85<I85,12,IF(I85="",12,24)))) ->  | O85: =IF(M77<>"",K75*O75,IF(K85="","",IF(K85=12,G85/12,(G85+I85)/24))) -> 
I86: Monthly Principal & Interest | Q86: =IF(AND(H87="x",I89=""),(G79+G77)/12) -> FALSE | R86: =IF(AND(H88="x",H87="x",I89=""),G81/12) -> FALSE
D87: X to exclude taxes from calculation | I87: Taxes/Insurance/HOA Dues | O87: =IF(AND(H87="",H88="",I89=""),SUM(G79,G81,G77)/12,IF(AND(H87="x",H88="x",I89=""),R86,IF(AND(H87="x",I89=""),Q86,IF(AND(H88="x",I89=""),Q87,I89)))) -> 0 | Q87: =IF(AND(H88="x",I89=""),(G81+G79)/12) -> FALSE
D88: X to exclude insurance from calculation | K88: Net Rental | O88: =IF(O85="","",IF(M88="X","",O85-O86-O87)) -> 
B89: Monthly Taxes/Insurance/HOA Dues from current bills, if applicable
B91: Comments:
G97: =Input!$C$13 -> 2024 | I97: =G97-1 -> 2023 | K97: Current Lease: | O97: Vacancy Factor:
B99: Property Address: | C99: Rents Received: | E99: (+)
C100: Insurance: | E100: (+) | K100: Lease Override:
C101: Mortgage Interest: | E101: (+)
C102: Taxes: | E102: (+)
C103: Depreciation: | E103: (+) | M103: "X if Not Included in IA
C104: HOA Dues: | E104: (+)
C105: Amortization/Casualty Loss: | E105: (+)
C106: Non-recurring other: | E106: (+) | K106: Divide by # | O106: Monthly
C107: Total Expenses: | E107: (-) | K107: of months | O107: Income
D108: Total Rental Income | G108: =IF((SUMIF(G99:G107,">0")-SUMIF(G99:G107,"<0"))=0,"",SUM(G99:G107)) ->  | I108: =IF((SUMIF(I99:I107,">0")-SUMIF(I99:I107,"<0"))=0,"",SUM(I99:I107)) ->  | K108: =IF(AND(I108="",G108=""),"",IF(G108="","",IF(G108<I108,12,IF(I108="",12,24)))) ->  | O108: =IF(M100<>"",K98*O98,IF(K108="","",IF(K108=12,G108/12,(G108+I108)/24))) -> 
I109: Monthly Principal & Interest | Q109: =IF(AND(H110="x",I112=""),(G102+G100)/12) -> FALSE | R109: =IF(AND(H111="x",H110="x",I112=""),G104/12) -> FALSE
D110: X to exclude taxes from calculation | I110: Taxes/Insurance/HOA Dues | O110: =IF(AND(H110="",H111="",I112=""),SUM(G102,G104,G100)/12,IF(AND(H110="x",H111="x",I112=""),R109,IF(AND(H110="x",I112=""),Q109,IF(AND(H111="x",I112=""),Q110,I112)))) -> 0 | Q110: =IF(AND(H111="x",I112=""),(G104+G102)/12) -> FALSE
D111: X to exclude insurance from calculation | K111: Net Rental | O111: =IF(O108="","",IF(M111="X","",O108-O109-O110)) -> 
B112: Monthly Taxes/Insurance/HOA Dues from current bills, if applicable
B114: Comments:
G120: =Input!$C$13 -> 2024 | I120: =G120-1 -> 2023 | K120: Current Lease: | O120: Vacancy Factor:
B122: Property Address: | C122: Rents Received: | E122: (+)
C123: Insurance: | E123: (+) | K123: Lease Override: | M123: x
C124: Mortgage Interest: | E124: (+)
C125: Taxes: | E125: (+)
C126: Depreciation: | E126: (+) | M126: "X if Not Included in IA
C127: HOA Dues: | E127: (+)
C128: Amortization/Casualty Loss: | E128: (+)
C129: Non-recurring other: | E129: (+) | K129: Divide by # | O129: Monthly
C130: Total Expenses: | E130: (-) | K130: of months | O130: Income
D131: Total Rental Income | G131: =IF((SUMIF(G122:G130,">0")-SUMIF(G122:G130,"<0"))=0,"",SUM(G122:G130)) ->  | I131: =IF((SUMIF(I122:I130,">0")-SUMIF(I122:I130,"<0"))=0,"",SUM(I122:I130)) ->  | K131: =IF(AND(I131="",G131=""),"",IF(G131="","",IF(G131<I131,12,IF(I131="",12,24)))) ->  | O131: =IF(M123<>"",K121*O121,IF(K131="","",IF(K131=12,G131/12,(G131+I131)/24))) -> 0
I132: Monthly Principal & Interest | Q132: =IF(AND(H133="x",I135=""),(G125+G123)/12) -> FALSE | R132: =IF(AND(H134="x",H133="x",I135=""),G127/12) -> FALSE
D133: X to exclude taxes from calculation | I133: Taxes/Insurance/HOA Dues | O133: =IF(AND(H133="",H134="",I135=""),SUM(G125,G127,G123)/12,IF(AND(H133="x",H134="x",I135=""),R132,IF(AND(H133="x",I135=""),Q132,IF(AND(H134="x",I135=""),Q133,I135)))) -> 0 | Q133: =IF(AND(H134="x",I135=""),(G127+G125)/12) -> FALSE
D134: X to exclude insurance from calculation | K134: Net Rental | O134: =IF(O131="","",IF(M134="X","",O131-O132-O133)) -> 0
B135: Monthly Taxes/Insurance/HOA Dues from current bills, if applicable
B137: Comments:

Sheet 1065<25%
B1: 1065 < 25% - Partnership Income | H1: Borrower's Name: | L1: =IF(Input!C5=0,"",Input!C5) ->  | N1: Date Reviewed: | P1: =IF(Input!I9=0,"",Input!I9) ->  | U1: 2011
H2: Co Borrower's Name: | L2: =IF(Input!C7=0,"",Input!C7) ->  | N2: Loan Number: | P2: =IF(Input!I5=0,"",Input!I5) ->  | U2: 2010
H3: Calculated By: | L3: =IF(Input!C9=0,"",Input!C9) ->  | N3: Ticket #: | P3: =IF(Input!I7=0,"",Input!I7) ->  | U3: 2009
J4: 21 | U4: 2008
B6: Business Name:
B7: Owner's Name: | J7: =Input!$C$13 -> 2024 | L7: =J7-1 -> 2023 | U7: Tax Lines from K1 (est)
B8: Percent Ownership: | D8: %
B9: W2 earnings or Guaranteed Payments: | G9: (+) | P9: "X if Not Included in IA | U9: Guaranteed Payments : | W9: 4
B10: Ordinary Income (loss) : | G10: (+/-) | U10: Ordinary Income (loss) : | W10: 1
B11: Net Rental Income(loss) : | G11: (+/-) | U11: Net Rental Income(loss): | W11: 2
B12: Other Rental Income (loss): | G12: (+/-) | U12: Other Rental Income (loss): | W12: 3
B13: Distributions | G13: (+)
B14: Lesser of Ordinary Income/Distributions
B15: Interest : | G15: (+) | U15: Interest: | W15: 5 (see notes)
B16: Dividends : | G16: (+) | N16: Divide by # | R16: Monthly | U16: Dividends: | W16: 6a (see notes)
B17: Unreimbursed Partnership Expenses/Other Adj: | G17: (+/-) | N17: of months | R17: Income | W17: Found on schedule E part 2 on the 1040
C18: Total Income From K-1 | J18: =IF(C8="","",SUM(J9,J10,J11,J12,J15,J16,J17)) ->  | L18: =IF(L9+L10+L11+L12=0,"",SUM(L9,L10,L11,L12,L15,L16,L17)) ->  | N18: =IF(AND(L18="",J18=""),"",IF(J18="","",IF(J18<L18,12,IF(L18="",12,24)))) ->  | R18: =IF(P18="x","",IF(N18="","",IF(N18=12,J18/12,(J18+L18)/24))) ->  | U18: Unreimbursed partnership expenses
B22: Comments:
B26: Business Name:
B27: Owner's Name: | J27: =Input!$C$13 -> 2024 | L27: =J27-1 -> 2023
B28: Percent Ownership: | D28: %
B29: W2 earnings or Guaranteed Payments: | G29: (+) | P29: "X if Not Included in IA
B30: Ordinary Income (loss) : | G30: (+/-)
B31: Net Rental Income(loss) : | G31: (+/-)
B32: Other Rental Income (loss): | G32: (+/-)
B33: Distributions | G33: (+)
B34: Lesser of Ordinary Income/Distributions
B35: Interest : | G35: (+)
B36: Dividends : | G36: (+) | N36: Divide by # | R36: Monthly
B37: Unreimbursed Partnership Expenses/ Other Adj: | G37: (+/-) | N37: of months | R37: Income
C38: Total Income From K-1 | J38: =IF(C28="","",SUM(J29,J30,J31,J32,J35,J36,J37)) ->  | L38: =IF(L29+L30+L31+L32=0,"",SUM(L29,L30,L31,L32,L35,L36,L37)) ->  | N38: =IF(AND(L38="",J38=""),"",IF(J38="","",IF(J38<L38,12,IF(L38="",12,24)))) ->  | R38: =IF(P38="x","",IF(N38="","",IF(N38=12,J38/12,(J38+L38)/24))) -> 
B42: Comments:
B46: Business Name:
B47: Owner's Name: | J47: =Input!$C$13 -> 2024 | L47: =J47-1 -> 2023
B48: Percent Ownership: | D48: %
B49: W2 earnings or Guaranteed Payments: | G49: (+) | P49: "X if Not Included in IA
B50: Ordinary Income (loss) : | G50: (+/-)
B51: Net Rental Income(loss) : | G51: (+/-)
B52: Other Rental Income (loss): | G52: (+/-)
B53: Distributions | G53: (+)
B54: Lesser of Ordinary Income/Distributions
B55: Interest : | G55: (+)
B56: Dividends : | G56: (+) | N56: Divide by # | R56: Monthly
B57: Unreimbursed Partnership Expenses/ Other Adj: | G57: (+/-) | N57: of months | R57: Income
C58: Total Income From K-1 | J58: =IF(C48="","",SUM(J49,J50,J51,J52,J55,J56,J57)) ->  | L58: =IF(L49+L50+L51+L52=0,"",SUM(L49,L50,L51,L52,L55,L56,L57)) ->  | N58: =IF(AND(L58="",J58=""),"",IF(J58="","",IF(J58<L58,12,IF(L58="",12,24)))) ->  | R58: =IF(P58="x","",IF(N58="","",IF(N58=12,J58/12,(J58+L58)/24))) -> 
B62: Comments:
B66: Business Name:
B67: Owner's Name: | J67: =Input!$C$13 -> 2024 | L67: =J67-1 -> 2023
B68: Percent Ownership: | D68: %
B69: W2 earnings or Guaranteed Payments: | G69: (+) | P69: "X if Not Included in IA
B70: Ordinary Income (loss) : | G70: (+/-)
B71: Net Rental Income(loss) : | G71: (+/-)
B72: Other Rental Income (loss): | G72: (+/-)
B73: Distributions | G73: (+)
B74: Lesser of Ordinary Income/Distributions
B75: Interest : | G75: (+)
B76: Dividends : | G76: (+) | N76: Divide by # | R76: Monthly
B77: Unreimbursed Partnership Expenses/ Other Adj: | G77: (+/-) | N77: of months | R77: Income
C78: Total Income From K-1 | J78: =IF(C68="","",SUM(J69,J70,J71,J72,J75,J76,J77)) ->  | L78: =IF(L69+L70+L71+L72=0,"",SUM(L69,L70,L71,L72,L75,L76,L77)) ->  | N78: =IF(AND(L78="",J78=""),"",IF(J78="","",IF(J78<L78,12,IF(L78="",12,24)))) ->  | R78: =IF(P78="x","",IF(N78="","",IF(N78=12,J78/12,(J78+L78)/24))) -> 
B82: Comments:
B86: Business Name:
B87: Owner's Name: | J87: =Input!$C$13 -> 2024 | L87: =J87-1 -> 2023
B88: Percent Ownership: | D88: %
B89: W2 earnings or Guaranteed Payments: | G89: (+) | P89: "X if Not Included in IA
B90: Ordinary Income (loss) : | G90: (+/-)
B91: Net Rental Income(loss) : | G91: (+/-)
B92: Other Rental Income (loss): | G92: (+/-)
B93: Distributions | G93: (+)
B94: Lesser of Ordinary Income/Distributions
B95: Interest : | G95: (+)
B96: Dividends : | G96: (+) | N96: Divide by # | R96: Monthly
B97: Unreimbursed Partnership Expenses/ Other Adj: | G97: (+/-) | N97: of months | R97: Income
C98: Total Income From K-1 | J98: =IF(C88="","",SUM(J89,J90,J91,J92,J95,J96,J97)) ->  | L98: =IF(L89+L90+L91+L92=0,"",SUM(L89,L90,L91,L92,L95,L96,L97)) ->  | N98: =IF(AND(L98="",J98=""),"",IF(J98="","",IF(J98<L98,12,IF(L98="",12,24)))) ->  | R98: =IF(P98="x","",IF(N98="","",IF(N98=12,J98/12,(J98+L98)/24))) -> 
B102: Comments:
B106: Business Name:
B107: Owner's Name: | J107: =Input!$C$13 -> 2024 | L107: =J107-1 -> 2023
B108: Percent Ownership: | D108: %
B109: W2 earnings or Guaranteed Payments: | G109: (+) | P109: "X if Not Included in IA
B110: Ordinary Income (loss) : | G110: (+/-)
B111: Net Rental Income(loss) : | G111: (+/-)
B112: Other Rental Income (loss): | G112: (+/-)
B113: Distributions | G113: (+)
B114: Lesser of Ordinary Income/Distributions
B115: Interest : | G115: (+)
B116: Dividends : | G116: (+) | N116: Divide by # | R116: Monthly
B117: Unreimbursed Partnership Expenses/ Other Adj: | G117: (+/-) | N117: of months | R117: Income
C118: Total Income From K-1 | J118: =IF(C108="","",SUM(J109,J110,J111,J112,J115,J116,J117)) ->  | L118: =IF(L109+L110+L111+L112=0,"",SUM(L109,L110,L111,L112,L115,L116,L117)) ->  | N118: =IF(AND(L118="",J118=""),"",IF(J118="","",IF(J118<L118,12,IF(L118="",12,24)))) ->  | R118: =IF(P118="x","",IF(N118="","",IF(N118=12,J118/12,(J118+L118)/24))) -> 
B122: Comments:
B126: Business Name:
B127: Owner's Name: | J127: =Input!$C$13 -> 2024 | L127: =J127-1 -> 2023
B128: Percent Ownership: | D128: %
B129: W2 earnings or Guaranteed Payments: | G129: (+) | P129: "X if Not Included in IA
B130: Ordinary Income (loss) : | G130: (+/-)
B131: Net Rental Income(loss) : | G131: (+/-)
B132: Other Rental Income (loss): | G132: (+/-)
B133: Distributions | G133: (+)
B134: Lesser of Ordinary Income/Distributions
B135: Interest : | G135: (+)
B136: Dividends : | G136: (+) | N136: Divide by # | R136: Monthly
B137: Unreimbursed Partnership Expenses/ Other Adj: | G137: (+/-) | N137: of months | R137: Income
C138: Total Income From K-1 | J138: =IF(C128="","",SUM(J129,J130,J131,J132,J135,J136,J137)) ->  | L138: =IF(L129+L130+L131+L132=0,"",SUM(L129,L130,L131,L132,L135,L136,L137)) ->  | N138: =IF(AND(L138="",J138=""),"",IF(J138="","",IF(J138<L138,12,IF(L138="",12,24)))) ->  | R138: =IF(P138="x","",IF(N138="","",IF(N138=12,J138/12,(J138+L138)/24))) -> 
B142: Comments:
B146: Business Name:
B147: Owner's Name: | J147: =Input!$C$13 -> 2024 | L147: =J147-1 -> 2023
B148: Percent Ownership: | D148: %
B149: W2 earnings or Guaranteed Payments: | G149: (+) | P149: "X if Not Included in IA
B150: Ordinary Income (loss) : | G150: (+/-)
B151: Net Rental Income(loss) : | G151: (+/-)
B152: Other Rental Income (loss): | G152: (+/-)
B153: Distributions | G153: (+)
B154: Lesser of Ordinary Income/Distributions
B155: Interest : | G155: (+)
B156: Dividends : | G156: (+) | N156: Divide by # | R156: Monthly
B157: Unreimbursed Partnership Expenses/ Other Adj: | G157: (+/-) | N157: of months | R157: Income
C158: Total Income From K-1 | J158: =IF(C148="","",SUM(J149,J150,J151,J152,J155,J156,J157)) ->  | L158: =IF(L149+L150+L151+L152=0,"",SUM(L149,L150,L151,L152,L155,L156,L157)) ->  | N158: =IF(AND(L158="",J158=""),"",IF(J158="","",IF(J158<L158,12,IF(L158="",12,24)))) ->  | R158: =IF(P158="x","",IF(N158="","",IF(N158=12,J158/12,(J158+L158)/24))) -> 
B162: Comments:
B166: Business Name:
B167: Owner's Name: | J167: =Input!$C$13 -> 2024 | L167: =J167-1 -> 2023
B168: Percent Ownership: | D168: %
B169: W2 earnings or Guaranteed Payments: | G169: (+) | P169: "X if Not Included in IA
B170: Ordinary Income (loss) : | G170: (+/-)
B171: Net Rental Income(loss) : | G171: (+/-)
B172: Other Rental Income (loss): | G172: (+/-)
B173: Distributions | G173: (+)
B174: Lesser of Ordinary Income/Distributions
B175: Interest : | G175: (+)
B176: Dividends : | G176: (+) | N176: Divide by # | R176: Monthly
B177: Unreimbursed Partnership Expenses/ Other Adj: | G177: (+/-) | N177: of months | R177: Income
C178: Total Income From K-1 | J178: =IF(C168="","",SUM(J169,J170,J171,J172,J175,J176,J177)) ->  | L178: =IF(L169+L170+L171+L172=0,"",SUM(L169,L170,L171,L172,L175,L176,L177)) ->  | N178: =IF(AND(L178="",J178=""),"",IF(J178="","",IF(J178<L178,12,IF(L178="",12,24)))) ->  | R178: =IF(P178="x","",IF(N178="","",IF(N178=12,J178/12,(J178+L178)/24))) -> 
B182: Comments:
B186: Business Name:
B187: Owner's Name: | J187: =Input!$C$13 -> 2024 | L187: =J187-1 -> 2023
B188: Percent Ownership: | D188: %
B189: W2 earnings or Guaranteed Payments: | G189: (+) | P189: "X if Not Included in IA
B190: Ordinary Income (loss) : | G190: (+/-)
B191: Net Rental Income(loss) : | G191: (+/-)
B192: Other Rental Income (loss): | G192: (+/-)
B193: Distributions | G193: (+)
B194: Lesser of Ordinary Income/Distributions
B195: Interest : | G195: (+)
B196: Dividends : | G196: (+) | N196: Divide by # | R196: Monthly
B197: Unreimbursed Partnership Expenses/ Other Adj: | G197: (+/-) | N197: of months | R197: Income
C198: Total Income From K-1 | J198: =IF(C188="","",SUM(J189,J190,J191,J192,J195,J196,J197)) ->  | L198: =IF(L189+L190+L191+L192=0,"",SUM(L189,L190,L191,L192,L195,L196,L197)) ->  | N198: =IF(AND(L198="",J198=""),"",IF(J198="","",IF(J198<L198,12,IF(L198="",12,24)))) ->  | R198: =IF(P198="x","",IF(N198="","",IF(N198=12,J198/12,(J198+L198)/24))) -> 
B202: Comments:
B206: Business Name:
B207: Owner's Name: | J207: =Input!$C$13 -> 2024 | L207: =J207-1 -> 2023
B208: Percent Ownership: | D208: %
B209: W2 earnings or Guaranteed Payments: | G209: (+) | P209: "X if Not Included in IA
B210: Ordinary Income (loss) : | G210: (+/-)
B211: Net Rental Income(loss) : | G211: (+/-)
B212: Other Rental Income (loss): | G212: (+/-)
B213: Distributions | G213: (+)
B214: Lesser of Ordinary Income/Distributions
B215: Interest : | G215: (+)
B216: Dividends : | G216: (+) | N216: Divide by # | R216: Monthly
B217: Unreimbursed Partnership Expenses/ Other Adj: | G217: (+/-) | N217: of months | R217: Income
C218: Total Income From K-1 | J218: =IF(C208="","",SUM(J209,J210,J211,J212,J215,J216,J217)) ->  | L218: =IF(L209+L210+L211+L212=0,"",SUM(L209,L210,L211,L212,L215,L216,L217)) ->  | N218: =IF(AND(L218="",J218=""),"",IF(J218="","",IF(J218<L218,12,IF(L218="",12,24)))) ->  | R218: =IF(P218="x","",IF(N218="","",IF(N218=12,J218/12,(J218+L218)/24))) -> 
B222: Comments:
B226: Business Name:
B227: Owner's Name: | J227: =Input!$C$13 -> 2024 | L227: =J227-1 -> 2023
B228: Percent Ownership: | D228: %
B229: W2 earnings or Guaranteed Payments: | G229: (+) | P229: "X if Not Included in IA
B230: Ordinary Income (loss) : | G230: (+/-)
B231: Net Rental Income(loss) : | G231: (+/-)
B232: Other Rental Income (loss): | G232: (+/-)
B233: Distributions | G233: (+)
B234: Lesser of Ordinary Income/Distributions
B235: Interest : | G235: (+)
B236: Dividends : | G236: (+) | N236: Divide by # | R236: Monthly
B237: Unreimbursed Partnership Expenses/ Other Adj: | G237: (+/-) | N237: of months | R237: Income
C238: Total Income From K-1 | J238: =IF(C228="","",SUM(J229,J230,J231,J232,J235,J236,J237)) ->  | L238: =IF(L229+L230+L231+L232=0,"",SUM(L229,L230,L231,L232,L235,L236,L237)) ->  | N238: =IF(AND(L238="",J238=""),"",IF(J238="","",IF(J238<L238,12,IF(L238="",12,24)))) ->  | R238: =IF(P238="x","",IF(N238="","",IF(N238=12,J238/12,(J238+L238)/24))) -> 
B242: Comments:
R247: total
J248: =SUM(J238,J218,J198,J178,J158,J138,J118,J98,J78,J58,J38,J18) -> 0 | L248: =SUM(L238,L218,L198,L178,L158,L138,L118,L98,L78,L58,L38,L18) -> 0 | M248: =SUM(M18,#REF!,#REF!,#REF!,#REF!,#REF!,#REF!,#REF!,#REF!,#REF!,#REF!,#REF!) ->  | P248: =SUM(P18,#REF!,#REF!,#REF!,#REF!,#REF!,#REF!,#REF!,#REF!,#REF!,#REF!,#REF!) ->  | R248: =SUM(R238,R218,R198,R178,R158,R138,R118,R98,R78,R58,R38,R18) -> 0
B253: =C6 -> 0 | C253: =C7 -> 0 | E253: =J18 ->  | G253: =L18 ->  | H253: 0 | J253: 0 | K253: 0 | L253: 0 | N253: =S16 -> 0 | R253: =B23 -> 0
B254: =#REF! ->  | C254: =#REF! ->  | E254: =#REF! ->  | G254: =#REF! ->  | H254: =#REF! ->  | I254: =#REF! ->  | J254: =#REF! ->  | K254: =#REF! ->  | L254: =#REF! ->  | M254: =#REF! ->  | N254: =#REF! ->  | R254: =#REF! -> 
B255: =#REF! ->  | C255: =#REF! ->  | E255: =#REF! ->  | G255: =#REF! ->  | H255: =#REF! ->  | I255: =#REF! ->  | J255: =#REF! ->  | K255: =#REF! ->  | L255: =#REF! ->  | M255: =#REF! ->  | N255: =#REF! ->  | R255: =#REF! -> 
B256: =#REF! ->  | C256: =#REF! ->  | E256: =#REF! ->  | G256: =#REF! ->  | H256: =#REF! ->  | I256: =#REF! ->  | J256: =#REF! ->  | K256: =#REF! ->  | L256: =#REF! ->  | M256: =#REF! ->  | N256: =#REF! ->  | R256: =#REF! -> 
B257: =#REF! ->  | C257: =#REF! ->  | E257: =#REF! ->  | G257: =#REF! ->  | H257: =#REF! ->  | I257: =#REF! ->  | J257: =#REF! ->  | K257: =#REF! ->  | L257: =#REF! ->  | M257: =#REF! ->  | N257: =#REF! ->  | R257: =#REF! -> 
B258: =#REF! ->  | C258: =#REF! ->  | E258: =#REF! ->  | G258: =#REF! ->  | H258: =#REF! ->  | I258: =#REF! ->  | J258: =#REF! ->  | K258: =#REF! ->  | L258: =#REF! ->  | M258: =#REF! ->  | N258: =#REF! ->  | R258: =#REF! -> 
B259: =#REF! ->  | C259: =#REF! ->  | E259: =#REF! ->  | G259: =#REF! ->  | H259: =#REF! ->  | I259: =#REF! ->  | J259: =#REF! ->  | K259: =#REF! ->  | L259: =#REF! ->  | M259: =#REF! ->  | N259: =#REF! ->  | R259: =#REF! -> 
B260: =#REF! ->  | C260: =#REF! ->  | E260: =#REF! ->  | G260: =#REF! ->  | H260: =#REF! ->  | I260: =#REF! ->  | J260: =#REF! ->  | K260: =#REF! ->  | L260: =#REF! ->  | M260: =#REF! ->  | N260: =#REF! ->  | R260: =#REF! -> 
B261: =#REF! ->  | C261: =#REF! ->  | E261: =#REF! ->  | G261: =#REF! ->  | H261: =#REF! ->  | I261: =#REF! ->  | J261: =#REF! ->  | K261: =#REF! ->  | L261: =#REF! ->  | M261: =#REF! ->  | N261: =#REF! ->  | R261: =#REF! -> 
B262: =#REF! ->  | C262: =#REF! ->  | E262: =#REF! ->  | G262: =#REF! ->  | H262: =#REF! ->  | I262: =#REF! ->  | J262: =#REF! ->  | K262: =#REF! ->  | L262: =#REF! ->  | M262: =#REF! ->  | N262: =#REF! ->  | R262: =#REF! -> 
B263: =#REF! ->  | C263: =#REF! ->  | E263: =#REF! ->  | G263: =#REF! ->  | H263: =#REF! ->  | I263: =#REF! ->  | J263: =#REF! ->  | K263: =#REF! ->  | L263: =#REF! ->  | M263: =#REF! ->  | N263: =#REF! ->  | R263: =#REF! -> 
B264: =#REF! ->  | C264: =#REF! ->  | E264: =#REF! ->  | G264: =#REF! ->  | H264: =#REF! ->  | I264: =#REF! ->  | J264: =#REF! ->  | K264: =#REF! ->  | L264: =#REF! ->  | M264: =#REF! ->  | N264: =#REF! ->  | R264: =#REF! -> 

Sheet 1065 25% +
B1: 1065 ≥ 25% - Partnership Income | I1: Borrower's Name: | L1: =IF(Input!C5=0,"",Input!C5) ->  | N1: Date Reviewed: | O1: =IF(Input!I9=0,"",Input!I9) ->  | U1: 2011
I2: Co Borrower's Name: | L2: =IF(Input!C7=0,"",Input!C7) ->  | N2: Loan Number: | O2: =IF(Input!I5=0,"",Input!I5) ->  | U2: 2010
I3: Calculated By: | L3: =IF(Input!C9=0,"",Input!C9) ->  | N3: Ticket #: | P3: =IF(Input!I7=0,"",Input!I7) ->  | U3: 2009
J4: 21 | U4: 2008
B6: Business Name:
B7: Owner's Name:
J8: K-1 Income
B9: Business Code
J10: =Input!$C$13 -> 2024 | L10: =J10-1 -> 2023
B11: W2 earnings or Guaranteed Payments: | G11: + | U11: Tax Lines from K1 (est)
B12: Ordinary Income (loss) : | G12: (+/-)
B13: Net Rental Income(loss): | G13: (+/-) | U13: Guaranteed Payments : | W13: 4
B14: Other Rental Income (loss): | G14: (+/-) | U14: Ordinary Income (loss) : | W14: 1
B15: Interest : | G15: (+) | U15: Net Rental Income (loss) | W15: 2
B16: Dividends : | G16: (+) | U16: Other Rental Income (loss): | W16: 3
B17: UPE / Other Adj: | G17: (+/-) | U17: Interest: | W17: 5 (see notes)
U18: Dividends: | W18: 6a (see notes)
J20: 1065 Adjustments | U20: UPE | V20: Found on schedule E part 2 on the 1040
B21: Pass-through (Income) Loss: | G21: (+/-)
B22: Nonrecurring Other (Income) Loss: | G22: (+/-) | U22: Tax Lines from 1065
B23: Depreciation: | G23: (+)
B24: Depletion: | G24: (+) | U24: Pass-through (Income) Loss: | W24: 4
B25: Amortization/Casualty Loss: | G25: (+) | P25: "X if Not Included in IA | U25: Nonrecurring Other (Income) Loss: | W25: 5 & 6 & 7
B26: Meals & Entertainment: | G26: (-) | U26: Depreciation: | W26: 16a or Form 8825
B27: Mortgages, Notes, Bonds Payable < 1yr: | G27: (-) | U27: Depletion: | W27: 17
B28: Other Adjustment: | G28: (+/-) | N28: =IF(SUM(N21:N27)=0,"",SUM(N21:N27)) ->  | U28: Amortization/Casualty Loss: | W28: 20 (only if noted)
B29: Subtotal | G29: = | J29: =IF(SUM(J21:J28)=0,"",SUM(J21:J28)) ->  | L29: =IF(SUM(L21:L28)=0,"",SUM(L21:L28)) ->  | U29: Meals & Entertainment: | W29: M-1 Line 4b
B30: Percentage of Ownerhsip | G30: % | N30: Divide by # | R30: Monthly | U30: Mortgages, Notes, Bonds Payable < 1yr: | W30: Sch L line 16
B31: Ownership Share of Business Operations: | G31: = | J31: =IF(J29="","",J29*J30) ->  | L31: =IF(L29="","",L29*L30) ->  | N31: of months | R31: Income
B32: Total Income Available to Partner | J32: =IF(J30="","",SUM(J11,J12:J14,J15,J16,J17,J31)) ->  | L32: =IF(L30="","",SUM(L11,L12:L14,L15,L16,L17,L31)) ->  | N32: =IF(AND(L32="",J32=""),"",IF(J32="","",IF(J32<L32,12,IF(L32="",12,24)))) ->  | R32: =IF(N32="","",IF(P32="x","",IF(N32=12,J32/12,(J32+L32)/24))) -> 
B35: Comments:
B41: Business Name:
B42: Owner's Name:
J43: K-1 Income
J44: =Input!$C$13 -> 2024 | L44: =J44-1 -> 2023
B45: W2 earnings or Guaranteed Payments: | G45: +
B46: Ordinary Income (loss) : | G46: (+/-)
B47: Net Rental Income(loss): | G47: (+/-)
B48: Other Rental Income (loss): | G48: (+/-)
B49: Interest : | G49: (+)
B50: Dividends : | G50: (+)
B51: UPE / Other Adj: | G51: (+/-)
J54: 1065 Adjustments
B55: Pass-through (Income) Loss: | G55: (+/-)
B56: Nonrecurring Other (Income) Loss: | G56: (+/-)
B57: Depreciation: | G57: (+)
B58: Depletion: | G58: (+)
B59: Amortization/Casualty Loss: | G59: (+) | P59: "X if Not Included in IA
B60: Meals & Entertainment: | G60: (-)
B61: Mortgages, Notes, Bonds Payable < 1yr: | G61: (-)
B62: Other Adjustment: | G62: (+/-) | N62: =IF(SUM(N55:N61)=0,"",SUM(N55:N61)) -> 
B63: Subtotal | G63: = | J63: =IF(SUM(J55:J62)=0,"",SUM(J55:J62)) ->  | L63: =IF(SUM(L55:L62)=0,"",SUM(L55:L62)) -> 
B64: Percentage of Ownerhsip | G64: % | N64: Divide by # | R64: Monthly
B65: Ownership Share of Business Operations: | G65: = | J65: =IF(J63="","",J63*J64) ->  | L65: =IF(L63="","",L63*L64) ->  | N65: of months | R65: Income
B66: Total Income Available to Partner | J66: =IF(J64="","",SUM(J45,J46:J48,J49,J50,J51,J65)) ->  | L66: =IF(L64="","",SUM(L45,L46:L48,L49,L50,L51,L65)) ->  | N66: =IF(AND(L66="",J66=""),"",IF(J66="","",IF(J66<L66,12,IF(L66="",12,24)))) ->  | R66: =IF(N66="","",IF(P66="x","",IF(N66=12,J66/12,(J66+L66)/24))) -> 
B69: Comments:
B75: Business Name:
B76: Owner's Name:
J77: K-1 Income
J78: =Input!$C$13 -> 2024 | L78: =J78-1 -> 2023
B79: W2 earnings or Guaranteed Payments: | G79: +
B80: Ordinary Income (loss) : | G80: (+/-)
B81: Net Rental Income(loss): | G81: (+/-)
B82: Other Rental Income (loss): | G82: (+/-)
B83: Interest : | G83: (+)
B84: Dividends : | G84: (+)
B85: UPE / Other Adj: | G85: (+/-)
J87: 1065 Adjustments
B88: Pass-through (Income) Loss: | G88: (+/-)
B89: Nonrecurring Other (Income) Loss: | G89: (+/-)
B90: Depreciation: | G90: (+)
B91: Depletion: | G91: (+)
B92: Amortization/Casualty Loss: | G92: (+) | P92: "X if Not Included in IA
B93: Meals & Entertainment: | G93: (-)
B94: Mortgages, Notes, Bonds Payable < 1yr: | G94: (-)
B95: Other Adjustment: | G95: (+/-) | N95: =IF(SUM(N88:N94)=0,"",SUM(N88:N94)) -> 
B96: Subtotal | G96: = | J96: =IF(SUM(J88:J95)=0,"",SUM(J88:J95)) ->  | L96: =IF(SUM(L88:L95)=0,"",SUM(L88:L95)) -> 
B97: Percentage of Ownerhsip | G97: % | N97: Divide by # | R97: Monthly
B98: Ownership Share of Business Operations: | G98: = | J98: =IF(J96="","",J96*J97) ->  | L98: =IF(L96="","",L96*L97) ->  | N98: of months | R98: Income
B99: Total Income Available to Partner | J99: =IF(J97="","",SUM(J79:J85,J82,J83,J84,J98)) ->  | L99: =IF(L97="","",SUM(L79:L85,L82,L83,L84,L98)) ->  | N99: =IF(AND(L99="",J99=""),"",IF(J99="","",IF(J99<L99,12,IF(L99="",12,24)))) ->  | R99: =IF(N99="","",IF(P99="x","",IF(N99=12,J99/12,(J99+L99)/24))) -> 
B102: Comments:
B109: Business Name:
B110: Owner's Name:
J111: K-1 Income
J112: =Input!$C$13 -> 2024 | L112: =J112-1 -> 2023
B113: W2 earnings or Guaranteed Payments: | G113: +
B114: Ordinary Income (loss) : | G114: (+/-)
B115: Net Rental Income(loss): | G115: (+/-)
B116: Other Rental Income (loss): | G116: (+/-)
B117: Interest : | G117: (+)
B118: Dividends : | G118: (+)
B119: UPE / Other Adj: | G119: (+/-)
J122: 1065 Adjustments
B123: Pass-through (Income) Loss: | G123: (+/-)
B124: Nonrecurring Other (Income) Loss: | G124: (+/-)
B125: Depreciation: | G125: (+)
B126: Depletion: | G126: (+)
B127: Amortization/Casualty Loss: | G127: (+) | P127: "X if Not Included in IA
B128: Meals & Entertainment: | G128: (-)
B129: Mortgages, Notes, Bonds Payable < 1yr: | G129: (-)
B130: Other Adjustment: | G130: (+/-) | N130: =IF(SUM(N123:N129)=0,"",SUM(N123:N129)) -> 
B131: Subtotal | G131: = | J131: =IF(SUM(J123:J130)=0,"",SUM(J123:J130)) ->  | L131: =IF(SUM(L123:L130)=0,"",SUM(L123:L130)) -> 
B132: Percentage of Ownerhsip | G132: % | N132: Divide by # | R132: Monthly
B133: Ownership Share of Business Operations: | G133: = | J133: =IF(J131="","",J131*J132) ->  | L133: =IF(L131="","",L131*L132) ->  | N133: of months | R133: Income
B134: Total Income Available to Partner | J134: =IF(J132="","",SUM(J113,J114:J116,J117,J118,J119,J133)) ->  | L134: =IF(L132="","",SUM(L113,L114:L116,L117,L118,L119,L133)) ->  | N134: =IF(AND(L134="",J134=""),"",IF(J134="","",IF(J134<L134,12,IF(L134="",12,24)))) ->  | R134: =IF(N134="","",IF(P134="x","",IF(N134=12,J134/12,(J134+L134)/24))) -> 
B137: Comments:
B144: Business Name:
B145: Owner's Name:
J146: K-1 Income
J147: =Input!$C$13 -> 2024 | L147: =J147-1 -> 2023
B148: W2 earnings or Guaranteed Payments: | G148: +
B149: Ordinary Income (loss) : | G149: (+/-)
B150: Net Rental Income(loss): | G150: (+/-)
B151: Other Rental Income (loss): | G151: (+/-)
B152: Interest : | G152: (+)
B153: Dividends : | G153: (+)
B154: UPE / Other Adj: | G154: (+/-)
J157: 1065 Adjustments
B158: Pass-through (Income) Loss: | G158: (+/-)
B159: Nonrecurring Other (Income) Loss: | G159: (+/-)
B160: Depreciation: | G160: (+)
B161: Depletion: | G161: (+)
B162: Amortization/Casualty Loss: | G162: (+) | P162: "X if Not Included in IA
B163: Meals & Entertainment: | G163: (-)
B164: Mortgages, Notes, Bonds Payable < 1yr: | G164: (-)
B165: Other Adjustment: | G165: (+/-) | N165: =IF(SUM(N158:N164)=0,"",SUM(N158:N164)) -> 
B166: Subtotal | G166: = | J166: =IF(SUM(J158:J165)=0,"",SUM(J158:J165)) ->  | L166: =IF(SUM(L158:L165)=0,"",SUM(L158:L165)) -> 
B167: Percentage of Ownerhsip | G167: % | N167: Divide by # | R167: Monthly
B168: Ownership Share of Business Operations: | G168: = | J168: =IF(J166="","",J166*J167) ->  | L168: =IF(L166="","",L166*L167) ->  | N168: of months | R168: Income
B169: Total Income Available to Partner | J169: =IF(J167="","",SUM(J148,J149:J151,J152,J153,J154,J168)) ->  | L169: =IF(L167="","",SUM(L148,L149:L151,L152,L153,L154,L168)) ->  | N169: =IF(AND(L169="",J169=""),"",IF(J169="","",IF(J169<L169,12,IF(L169="",12,24)))) ->  | R169: =IF(N169="","",IF(P169="x","",IF(N169=12,J169/12,(J169+L169)/24))) -> 
B172: Comments:

Sheet YTD P&L (1065)
B1: 1065 Year-to-Date Profit and Loss | H1: Borrower's Name: | L1: =IF(Input!C5=0,"",Input!C5) ->  | O1: Date Reviewed: | Q1: =IF(Input!I9=0,"",Input!I9) -> 
H2: Co Borrower's Name: | L2: =IF(Input!C7=0,"",Input!C7) ->  | O2: Loan Number: | Q2: =IF(Input!I5=0,"",Input!I5) -> 
H3: Calculated By: | L3: =IF(Input!C9=0,"",Input!C9) ->  | O3: Ticket #: | Q3: =IF(Input!I7=0,"",Input!I7) -> 
U4: Accrual
B5: Business Name:
B7: Owner's Name: | N7: Method Used Cash or Accrual | T7: Cash
B9: Percent Ownership | E9: % | N9: Total # of Months of the P&L | T9: Accrual
B11: 1. Salary/Draws to Individual: | Q11: = | R11: =IF(F11="","",F11) -> 
B13: 2. Net Profit (Loss): | G13: x | H13: =IF($D$9=0,"",$D$9) ->  | I13: % | J13: Multiply by % of Ownership | Q13: = | R13: =IF(F13="","",F13*H13%) -> 
B15: 3. Depreciation: | G15: x | H15: =IF($D$9=0,"",$D$9) ->  | I15: % | J15: Multiply by % of Ownership | Q15: = | R15: =IF(F15="","",F15*H15%) -> 
B17: 4. Other Adjustment: | G17: x | H17: =IF($D$9=0,"",$D$9) ->  | I17: % | J17: Multiply by % of Ownership | Q17: = | R17: =IF(F17="","",F17*H17%) -> 
H19: Year-to-Date Total | Q19: = | R19: =IF(SUM(R11:S17)=0,"",SUM(R11:S17)) -> 
H21: Monthly Total | Q21: = | R21: =IF(S9=0,"",IF(R19=0,0,R19/S9)) -> 
B24: Comparative Analysis with YTD:
L26: "X to Include in Analysis
D28: Total | F28: Total | H28: Total | J28: Monthly YTD | L28: Normal Averaging Prior 2 YR | N28: YTD & Prior Yr | P28: YTD & Prior 2 Yrs
D29: YTD | F29: =Input!$C$13 -> 2024 | H29: =Input!$D$13 -> 2023
D31: =R19 ->  | J31: =IF(S9=0,"",R21) ->  | L31: =IF(F31=0,"",IF(H31=0,(F31/12),IF(F31<H31,F31/12,(F31+H31)/24))) ->  | N31: =IF(F31=0,"",IF(S9=0,0,IF(F31=0,0,(F31+D31)/(12+S9)))) ->  | P31: =IF(F31=0,"",IF(S9=0,0,IF(F31=0,0,(D31+F31+H31)/(24+S9)))) -> 
B33: Comments:
B37: Business Name:
B39: Owner's Name: | N39: Method Used Cash or Accrual | T39: Cash
B41: Percent Ownership | E41: % | N41: Total # of Months of the P&L | T41: Accrual
B43: 1. Salary/Draws to Individual: | Q43: = | R43: =IF(F43="","",F43) -> 
B45: 2. Net Profit (Loss): | G45: x | H45: =IF($D$41=0,"",$D$41) ->  | I45: % | J45: Multiply by % of Ownership | Q45: = | R45: =IF(F45="","",F45*H45%) -> 
B47: 3. Depreciation: | G47: x | H47: =IF($D$41=0,"",$D$41) ->  | I47: % | J47: Multiply by % of Ownership | Q47: = | R47: =IF(F47="","",F47*H47%) -> 
B49: 4. Other Adjustment: | G49: x | H49: =IF($D$41=0,"",$D$41) ->  | I49: % | J49: Multiply by % of Ownership | Q49: = | R49: =IF(F49="","",F49*H49%) -> 
H51: Year-to-Date Total | Q51: = | R51: =IF(SUM(R43:S49)=0,"",SUM(R43:S49)) -> 
H53: Monthly Total | Q53: = | R53: =IF(S41=0,"",IF(R51=0,0,R51/S41)) -> 
B56: Comparative Analysis with YTD:
L59: "X to Include in Analysis
D60: Total | F60: Total | H60: Total | J60: Monthly YTD | L60: Normal Averaging Prior 2 YR | N60: YTD & Prior Yr | P60: YTD & Prior 2 Yrs
D61: YTD | F61: =Input!$C$13 -> 2024 | H61: =Input!$D$13 -> 2023
D63: =R51 ->  | J63: =IF(S41=0,"",R53) ->  | L63: =IF(F63=0,"",IF(H63=0,(F63/12),IF(F63<H63,F63/12,(F63+H63)/24))) ->  | N63: =IF(F63=0,"",IF(S41=0,0,IF(F63=0,0,(F63+D63)/(12+S41)))) ->  | P63: =IF(F63=0,"",IF(S41=0,0,IF(F63=0,0,(D63+F63+H63)/(24+S41)))) -> 
B65: Comments:
B69: Business Name & EIN #:
B71: Owner's Name: | N71: Method Used Cash or Accrual | T71: Cash
B73: Percent Ownership | E73: % | N73: Total # of Months of the P&L | T73: Accrual
B75: 1. Salary/Draws to Individual: | Q75: = | R75: =IF(F75="","",F75) -> 
B77: 2. Net Profit (Loss): | G77: x | H77: =IF($D$73=0,"",$D$73) ->  | I77: % | J77: Multiply by % of Ownership | Q77: = | R77: =IF(F77="","",F77*H77%) -> 
B79: 3. Depreciation: | G79: x | H79: =IF($D$73=0,"",$D$73) ->  | I79: % | J79: Multiply by % of Ownership | Q79: = | R79: =IF(F79="","",F79*H79%) -> 
B81: 4. Other Adjustment: | G81: x | H81: =IF($D$73=0,"",$D$73) ->  | I81: % | J81: Multiply by % of Ownership | Q81: = | R81: =IF(F81="","",F81*H81%) -> 
H83: Year-to-Date Total | Q83: = | R83: =IF(SUM(R75:S81)=0,"",SUM(R75:S81)) -> 
H85: Monthly Total | Q85: = | R85: =IF(S73=0,"",IF(R83=0,0,R83/S73)) -> 
B88: Comparative Analysis with YTD:
L91: "X to Include in Analysis
D92: Total | F92: Total | H92: Total | J92: Monthly YTD | L92: Normal Averaging Prior 2 YR | N92: YTD & Prior Yr | P92: YTD & Prior 2 Yrs
D93: YTD | F93: =Input!$C$13 -> 2024 | H93: =Input!$D$13 -> 2023
D95: =R83 ->  | J95: =IF(S73=0,"",R85) ->  | L95: =IF(F95=0,"",IF(H95=0,(F95/12),IF(F95<H95,F95/12,(F95+H95)/24))) ->  | N95: =IF(F95=0,"",IF(S73=0,0,IF(F95=0,0,(F95+D95)/(12+S73)))) ->  | P95: =IF(F95=0,"",IF(S73=0,0,IF(F95=0,0,(D95+F95+H95)/(24+S73)))) -> 
B97: Comments:
B101: Business Name:
B103: Owner's Name: | N103: Method Used Cash or Accrual
B105: Percent Ownership | E105: % | N105: Total # of Months of the P&L
B107: 1. Salary/Draws to Individual: | Q107: = | R107: =IF(F107="","",F107) -> 
B109: 2. Net Profit (Loss): | G109: x | H109: =IF($D$105=0,"",$D$105) ->  | I109: % | J109: Multiply by % of Ownership | Q109: = | R109: =IF(F109="","",F109*H109%) -> 
B111: 3. Depreciation: | G111: x | H111: =IF($D$105=0,"",$D$105) ->  | I111: % | J111: Multiply by % of Ownership | Q111: = | R111: =IF(F111="","",F111*H111%) -> 
B113: 4. Other Adjustment: | G113: x | H113: =IF($D$105=0,"",$D$105) ->  | I113: % | J113: Multiply by % of Ownership | Q113: = | R113: =IF(F113="","",F113*H113%) -> 
H115: Year-to-Date Total | Q115: = | R115: =IF(SUM(R107:S113)=0,"",SUM(R107:S113)) -> 
H117: Monthly Total | Q117: = | R117: =IF(S105=0,"",IF(R115=0,0,R115/S105)) -> 
B120: Comparative Analysis with YTD:
L123: "X to Include in Analysis
D124: Total | F124: Total | H124: Total | J124: Monthly YTD | L124: Normal Averaging Prior 2 YR | N124: YTD & Prior Yr | P124: YTD & Prior 2 Yrs
D125: YTD | F125: =Input!$C$13 -> 2024 | H125: =Input!$D$13 -> 2023
D127: =R115 ->  | J127: =IF(S105=0,"",R117) ->  | L127: =IF(F127=0,"",IF(H127=0,(F127/12),IF(F127<H127,F127/12,(F127+H127)/24))) ->  | N127: =IF(F127=0,"",IF(S105=0,0,IF(F127=0,0,(F127+D127)/(12+S105)))) ->  | P127: =IF(F127=0,"",IF(S105=0,0,IF(F127=0,0,(D127+F127+H127)/(24+S105)))) -> 
B129: Comments:
B133: Business Name:
B135: Owner's Name: | N135: Method Used Cash or Accrual
B137: Percent Ownership | E137: % | N137: Total # of Months of the P&L
B139: 1. Salary/Draws to Individual: | Q139: = | R139: =IF(F139="","",F139) -> 
B141: 2. Net Profit (Loss): | G141: x | H141: =IF($D$137=0,"",$D$137) ->  | I141: % | J141: Multiply by % of Ownership | Q141: = | R141: =IF(F141="","",F141*H141%) -> 
B143: 3. Depreciation: | G143: x | H143: =IF($D$137=0,"",$D$137) ->  | I143: % | J143: Multiply by % of Ownership | Q143: = | R143: =IF(F143="","",F143*H143%) -> 
B145: 4. Other Adjustment: | G145: x | H145: =IF($D$137=0,"",$D$137) ->  | I145: % | J145: Multiply by % of Ownership | Q145: = | R145: =IF(F145="","",F145*H145%) -> 
H147: Year-to-Date Total | Q147: = | R147: =IF(SUM(R139:S145)=0,"",SUM(R139:S145)) -> 
H149: Monthly Total | Q149: = | R149: =IF(S137=0,"",IF(R147=0,0,R147/S137)) -> 
B152: Comparative Analysis with YTD:
L155: "X to Include in Analysis
D156: Total | F156: Total | H156: Total | J156: Monthly YTD | L156: Normal Averaging Prior 2 YR | N156: YTD & Prior Yr | P156: YTD & Prior 2 Yrs
D157: YTD | F157: =Input!$C$13 -> 2024 | H157: =Input!$D$13 -> 2023
D159: =R147 ->  | J159: =IF(S137=0,"",R149) ->  | L159: =IF(F159=0,"",IF(H159=0,(F159/12),IF(F159<H159,F159/12,(F159+H159)/24))) ->  | N159: =IF(F159=0,"",IF(S137=0,0,IF(F159=0,0,(F159+D159)/(12+S137)))) ->  | P159: =IF(F159=0,"",IF(S137=0,0,IF(F159=0,0,(D159+F159+H159)/(24+S137)))) -> 
B161: Comments:

Sheet 1120S<25%
B1: 1120S < 25% - S Corporation | I1: Borrower's Name: | L1: =IF(Input!C5=0,"",Input!C5) ->  | N1: Date Reviewed: | P1: =IF(Input!I9=0,"",Input!I9) ->  | U1: 2011
I2: Co Borrower's Name: | L2: =IF(Input!C7=0,"",Input!C7) ->  | N2: Loan Number: | P2: =IF(Input!I5=0,"",Input!I5) ->  | U2: 2010
I3: Calculated By: | L3: =IF(Input!C9=0,"",Input!C9) ->  | N3: Ticket Number: | P3: =IF(Input!I7=0,"",Input!I7) ->  | U3: 2009
J4: 21 | U4: 2008
B6: Business Name & EIN #: | U6: Tax Lines from K1 (est)
B7: Owner's Name: | J7: =Input!$C$13 -> 2024 | L7: =J7-1 -> 2023
B8: Percent Ownership: | U8: Ordinary Income (loss) : | W8: 1
B9: W2 earnings | G9: (+) | P9: "X if Not Included in IA | U9: Net Rental Income(loss): | W9: 2
B10: Ordinary Income (loss) : | G10: (+/-) | U10: Other Rental Income (loss): | W10: 3
B11: Net Rental Income(loss) : | G11: (+/-) | U11: Interest: | W11: 4 (see notes)
B12: Other Rental Income (loss): | G12: (+/-) | U12: Dividends: | W12: 5a (see notes)
B13: Distribution | G13: (+)
B14: Lesser of Ordinary Income/Distributions
B15: Interest : | G15: (+)
B16: Dividends : | G16: (+) | N16: Divide by # | R16: Monthly
B17: Other Adjustment: | G17: (+/-) | N17: of months | R17: Income
C18: Total Income From K-1 | J18: =IF(C8="","",SUM(J9,J10,J11,J12,J15,J16,J17)) ->  | L18: =IF(L9+L10+L11+L12=0,"",SUM(L9,L10,L11,L12,L15,L16,L17)) ->  | N18: =IF(AND(L18="",J18=""),"",IF(J18="","",IF(J18<L18,12,IF(L18="",12,24)))) ->  | R18: =IF(P18="x","",IF(N18="","",IF(N18=12,J18/12,(J18+L18)/24))) -> 
B21: Comments:
B25: Business Name & EIN #:
B26: Owner's Name: | J26: =Input!$C$13 -> 2024 | L26: =J26-1 -> 2023
B27: Percent Ownership: | D27: %
B28: W2 earnings | G28: (+) | P28: "X if Not Included in IA
B29: Ordinary Income (loss) : | G29: (+/-)
B30: Net Rental Income(loss) : | G30: (+/-)
B31: Other Rental Income (loss): | G31: (+/-)
B32: Distribution | G32: (+)
B33: Lesser of Ordinary Income/Distributions
B34: Interest : | G34: (+)
B35: Dividends : | G35: (+) | N35: Divide by # | R35: Monthly
B36: Other Adjustment: | G36: (+/-) | N36: of months | R36: Income
C37: Total Income From K-1 | J37: =IF(C27="","",SUM(J28,J29,J30,J31,J34,J35,J36)) ->  | L37: =IF(L28+L29+L30+L31=0,"",SUM(L28,L29,L30,L31,L34,L35,L36)) ->  | N37: =IF(AND(L37="",J37=""),"",IF(J37="","",IF(J37<L37,12,IF(L37="",12,24)))) ->  | R37: =IF(P37="x","",IF(N37="","",IF(N37=12,J37/12,(J37+L37)/24))) -> 
B40: Comments:
B44: Business Name & EIN #:
B45: Owner's Name: | J45: =Input!$C$13 -> 2024 | L45: =J45-1 -> 2023
B46: Percent Ownership: | D46: %
B47: W2 earnings | G47: (+) | P47: "X if Not Included in IA
B48: Ordinary Income (loss) : | G48: (+/-)
B49: Net Rental Income(loss) : | G49: (+/-)
B50: Other Rental Income (loss): | G50: (+/-)
B51: Distribution | G51: (+)
B52: Lesser of Ordinary Income/Distributions
B53: Interest : | G53: (+)
B54: Dividends : | G54: (+) | N54: Divide by # | R54: Monthly
B55: Other Adjustment: | G55: (+/-) | N55: of months | R55: Income
C56: Total Income From K-1 | J56: =IF(C46="","",SUM(J47,J48,J49,J50,J53,J54,J55)) ->  | L56: =IF(L47+L48+L49+L50=0,"",SUM(L47,L48,L49,L50,L53,L54,L55)) ->  | N56: =IF(AND(L56="",J56=""),"",IF(J56="","",IF(J56<L56,12,IF(L56="",12,24)))) ->  | R56: =IF(P56="x","",IF(N56="","",IF(N56=12,J56/12,(J56+L56)/24))) -> 
B59: Comments:
B63: Business Name & EIN #:
B64: Owner's Name: | J64: =Input!$C$13 -> 2024 | L64: =J64-1 -> 2023
B65: Percent Ownership: | D65: %
B66: W2 earnings | G66: (+) | P66: "X if Not Included in IA
B67: Ordinary Income (loss) : | G67: (+/-)
B68: Net Rental Income(loss) : | G68: (+/-)
B69: Other Rental Income (loss): | G69: (+/-)
B70: Distribution | G70: (+)
B71: Lesser of Ordinary Income/Distributions
B72: Interest : | G72: (+)
B73: Dividends : | G73: (+) | N73: Divide by # | R73: Monthly
B74: Other Adjustment: | G74: (+/-) | N74: of months | R74: Income
C75: Total Income From K-1 | J75: =IF(C65="","",SUM(J66,J67,J68,J69,J72,J73,J74)) ->  | L75: =IF(L66+L67+L68+L69=0,"",SUM(L66,L67,L68,L69,L72,L73,L74)) ->  | N75: =IF(AND(L75="",J75=""),"",IF(J75="","",IF(J75<L75,12,IF(L75="",12,24)))) ->  | R75: =IF(P75="x","",IF(N75="","",IF(N75=12,J75/12,(J75+L75)/24))) -> 
B78: Comments:
B82: Business Name & EIN #:
B83: Owner's Name: | J83: =Input!$C$13 -> 2024 | L83: =J83-1 -> 2023
B84: Percent Ownership: | D84: %
B85: W2 earnings | G85: (+) | P85: "X if Not Included in IA
B86: Ordinary Income (loss) : | G86: (+/-)
B87: Net Rental Income(loss) : | G87: (+/-)
B88: Other Rental Income (loss): | G88: (+/-)
B89: Distribution | G89: (+)
B90: Lesser of Ordinary Income/Distributions
B91: Interest : | G91: (+)
B92: Dividends : | G92: (+) | N92: Divide by # | R92: Monthly
B93: Other Adjustment: | G93: (+/-) | N93: of months | R93: Income
C94: Total Income From K-1 | J94: =IF(C84="","",SUM(J85,J86,J87,J88,J91,J92,J93)) ->  | L94: =IF(L85+L86+L87+L88=0,"",SUM(L85,L86,L87,L88,L91,L92,L93)) ->  | N94: =IF(AND(L94="",J94=""),"",IF(J94="","",IF(J94<L94,12,IF(L94="",12,24)))) ->  | R94: =IF(P94="x","",IF(N94="","",IF(N94=12,J94/12,(J94+L94)/24))) -> 
B97: Comments:
B101: Business Name & EIN #:
B102: Owner's Name: | J102: =Input!$C$13 -> 2024 | L102: =J102-1 -> 2023
B103: Percent Ownership: | D103: %
B104: W2 earnings | G104: (+) | P104: "X if Not Included in IA
B105: Ordinary Income (loss) : | G105: (+/-)
B106: Net Rental Income(loss) : | G106: (+/-)
B107: Other Rental Income (loss): | G107: (+/-)
B108: Distribution | G108: (+)
B109: Lesser of Ordinary Income/Distributions
B110: Interest : | G110: (+)
B111: Dividends : | G111: (+) | N111: Divide by # | R111: Monthly
B112: Other Adjustment: | G112: (+/-) | N112: of months | R112: Income
C113: Total Income From K-1 | J113: =IF(C103="","",SUM(J104,J105,J106,J107,J110,J111,J112)) ->  | L113: =IF(L104+L105+L106+L107=0,"",SUM(L104,L105,L106,L107,L110,L111,L112)) ->  | N113: =IF(AND(L113="",J113=""),"",IF(J113="","",IF(J113<L113,12,IF(L113="",12,24)))) ->  | R113: =IF(P113="x","",IF(N113="","",IF(N113=12,J113/12,(J113+L113)/24))) -> 
B116: Comments:
B120: Business Name & EIN #:
B121: Owner's Name: | J121: =Input!$C$13 -> 2024 | L121: =J121-1 -> 2023
B122: Percent Ownership: | D122: %
B123: W2 earnings | G123: (+) | P123: "X if Not Included in IA
B124: Ordinary Income (loss) : | G124: (+/-)
B125: Net Rental Income(loss) : | G125: (+/-)
B126: Other Rental Income (loss): | G126: (+/-)
B127: Distribution | G127: (+)
B128: Lesser of Ordinary Income/Distributions
B129: Interest : | G129: (+)
B130: Dividends : | G130: (+) | N130: Divide by # | R130: Monthly
B131: Other Adjustment: | G131: (+/-) | N131: of months | R131: Income
C132: Total Income From K-1 | J132: =IF(C122="","",SUM(J123,J124,J125,J126,J129,J130,J131)) ->  | L132: =IF(L123+L124+L125+L126=0,"",SUM(L123,L124,L125,L126,L129,L130,L131)) ->  | N132: =IF(AND(L132="",J132=""),"",IF(J132="","",IF(J132<L132,12,IF(L132="",12,24)))) ->  | R132: =IF(P132="x","",IF(N132="","",IF(N132=12,J132/12,(J132+L132)/24))) -> 
B135: Comments:
B139: Business Name & EIN #:
B140: Owner's Name: | J140: =Input!$C$13 -> 2024 | L140: =J140-1 -> 2023
B141: Percent Ownership: | D141: %
B142: W2 earnings | G142: (+) | P142: "X if Not Included in IA
B143: Ordinary Income (loss) : | G143: (+/-)
B144: Net Rental Income(loss) : | G144: (+/-)
B145: Other Rental Income (loss): | G145: (+/-)
B146: Distribution | G146: (+)
B147: Lesser of Ordinary Income/Distributions
B148: Interest : | G148: (+)
B149: Dividends : | G149: (+) | N149: Divide by # | R149: Monthly
B150: Other Adjustment: | G150: (+/-) | N150: of months | R150: Income
C151: Total Income From K-1 | J151: =IF(C141="","",SUM(J142,J143,J144,J145,J148,J149,J150)) ->  | L151: =IF(L142+L143+L144+L145=0,"",SUM(L142,L143,L144,L145,L148,L149,L150)) ->  | N151: =IF(AND(L151="",J151=""),"",IF(J151="","",IF(J151<L151,12,IF(L151="",12,24)))) ->  | R151: =IF(P151="x","",IF(N151="","",IF(N151=12,J151/12,(J151+L151)/24))) -> 
B154: Comments:
B158: Business Name & EIN #:
B159: Owner's Name: | J159: =Input!$C$13 -> 2024 | L159: =J159-1 -> 2023
B160: Percent Ownership: | D160: %
B161: W2 earnings | G161: (+) | P161: "X if Not Included in IA
B162: Ordinary Income (loss) : | G162: (+/-)
B163: Net Rental Income(loss) : | G163: (+/-)
B164: Other Rental Income (loss): | G164: (+/-)
B165: Distribution | G165: (+)
B166: Lesser of Ordinary Income/Distributions
B167: Interest : | G167: (+)
B168: Dividends : | G168: (+) | N168: Divide by # | R168: Monthly
B169: Other Adjustment: | G169: (+/-) | N169: of months | R169: Income
C170: Total Income From K-1 | J170: =IF(C160="","",SUM(J161,J162,J163,J164,J167,J168,J169)) ->  | L170: =IF(L161+L162+L163+L164=0,"",SUM(L161,L162,L163,L164,L167,L168,L169)) ->  | N170: =IF(AND(L170="",J170=""),"",IF(J170="","",IF(J170<L170,12,IF(L170="",12,24)))) ->  | R170: =IF(P170="x","",IF(N170="","",IF(N170=12,J170/12,(J170+L170)/24))) -> 
B173: Comments:
B177: Business Name & EIN #:
B178: Owner's Name: | J178: =Input!$C$13 -> 2024 | L178: =J178-1 -> 2023
B179: Percent Ownership: | D179: %
B180: W2 earnings | G180: (+) | P180: "X if Not Included in IA
B181: Ordinary Income (loss) : | G181: (+/-)
B182: Net Rental Income(loss) : | G182: (+/-)
B183: Other Rental Income (loss): | G183: (+/-)
B184: Distribution | G184: (+)
B185: Lesser of Ordinary Income/Distributions
B186: Interest : | G186: (+)
B187: Dividends : | G187: (+) | N187: Divide by # | R187: Monthly
B188: Other Adjustment: | G188: (+/-) | N188: of months | R188: Income
C189: Total Income From K-1 | J189: =IF(C179="","",SUM(J180,J181,J182,J183,J186,J187,J188)) ->  | L189: =IF(L180+L181+L182+L183=0,"",SUM(L180,L181,L182,L183,L186,L187,L188)) ->  | N189: =IF(AND(L189="",J189=""),"",IF(J189="","",IF(J189<L189,12,IF(L189="",12,24)))) ->  | R189: =IF(P189="x","",IF(N189="","",IF(N189=12,J189/12,(J189+L189)/24))) -> 
B192: Comments:
J196: =SUM(J18,J37,J56,J75,J94,J113,J132,J151,J170,J189,#REF!,#REF!) ->  | L196: =SUM(L18,L37,L56,L75,L94,L113,L132,L151,L170,L189,#REF!,#REF!) ->  | M196: =SUM(M18,M37,M56,M75,M94,M113,M132,M151,M170,M189,#REF!,#REF!) ->  | R196: =SUM(R18,R37,R56,R75,R94,R113,R132,R151,R170,R189,#REF!,#REF!) -> 
B201: =C6 -> 0 | C201: =C7 -> 0 | E201: =J18 ->  | G201: =L18 ->  | H201: =M18 -> 0 | I201: =N18 ->  | K201: =R18 ->  | L201: =B22 -> 0
B202: =#REF! ->  | C202: =#REF! ->  | E202: =#REF! ->  | G202: =#REF! ->  | H202: =#REF! ->  | I202: =#REF! ->  | K202: =#REF! ->  | L202: =#REF! -> 
B203: =#REF! ->  | C203: =#REF! ->  | E203: =#REF! ->  | G203: =#REF! ->  | H203: =#REF! ->  | I203: =#REF! ->  | K203: =#REF! ->  | L203: =#REF! -> 
B204: =#REF! ->  | C204: =#REF! ->  | E204: =#REF! ->  | G204: =#REF! ->  | H204: =#REF! ->  | I204: =#REF! ->  | K204: =#REF! ->  | L204: =#REF! -> 
B205: =#REF! ->  | C205: =#REF! ->  | E205: =#REF! ->  | G205: =#REF! ->  | H205: =#REF! ->  | I205: =#REF! ->  | K205: =#REF! ->  | L205: =#REF! -> 
B206: =#REF! ->  | C206: =#REF! ->  | E206: =#REF! ->  | G206: =#REF! ->  | H206: =#REF! ->  | I206: =#REF! ->  | K206: =#REF! ->  | L206: =#REF! -> 
B207: =#REF! ->  | C207: =#REF! ->  | E207: =#REF! ->  | G207: =#REF! ->  | H207: =#REF! ->  | I207: =#REF! ->  | K207: =#REF! ->  | L207: =#REF! -> 
B208: =#REF! ->  | C208: =#REF! ->  | E208: =#REF! ->  | G208: =#REF! ->  | H208: =#REF! ->  | I208: =#REF! ->  | K208: =#REF! ->  | L208: =#REF! -> 
B209: =#REF! ->  | C209: =#REF! ->  | E209: =#REF! ->  | G209: =#REF! ->  | H209: =#REF! ->  | I209: =#REF! ->  | K209: =#REF! ->  | L209: =#REF! -> 
B210: =#REF! ->  | C210: =#REF! ->  | E210: =#REF! ->  | G210: =#REF! ->  | H210: =#REF! ->  | I210: =#REF! ->  | K210: =#REF! ->  | L210: =#REF! -> 
B211: =#REF! ->  | C211: =#REF! ->  | E211: =#REF! ->  | G211: =#REF! ->  | H211: =#REF! ->  | I211: =#REF! ->  | K211: =#REF! ->  | L211: =#REF! -> 
B212: =#REF! ->  | C212: =#REF! ->  | E212: =#REF! ->  | G212: =#REF! ->  | H212: =#REF! ->  | I212: =#REF! ->  | K212: =#REF! ->  | L212: =#REF! -> 

Sheet 1120S 25%+
B1: 1120S ≥ 25% - S Corporation | H1: Borrower's Name: | L1: =IF(Input!C5=0,"",Input!C5) ->  | N1: Date Reviewed: | P1: =IF(Input!I9=0,"",Input!I9) ->  | U1: 2011
H2: Co Borrower's Name: | L2: =IF(Input!C7=0,"",Input!C7) ->  | N2: Loan Number: | P2: =IF(Input!I5=0,"",Input!I5) ->  | U2: 2010
H3: Calculated By: | L3: =IF(Input!C9=0,"",Input!C9) ->  | N3: Ticket Number: | P3: =IF(Input!I7=0,"",Input!I7) ->  | U3: 2009
J4: 21 | U4: 2008
B6: Business Name:
B7: Owner's Name:
H8: K1 Income
I10: Yr | J10: =Input!$C$13 -> 2024 | L10: =J10-1 -> 2023
B11: W2 earnings: | G11: + | T11: Tax Lines from K1 (est)
B12: Ordinary Income (loss) : | G12: (+/-)
B13: Net Rental Income(loss): | G13: (+/-) | T13: Ordinary Income (loss) : | V13: 1
B14: Other Rental Income (loss): | G14: (+/-) | T14: Net Rental Income(loss): | V14: 2
B15: Interest : | G15: (+) | T15: Other Rental Income (loss): | V15: 3
B16: Dividends : | G16: (+) | T16: Interest: | V16: 4 (see notes)
B17: Other Adjustment: | G17: (+/-) | T17: Dividends: | V17: 5a (see notes)
J19: 1120S Adjustment | T19: Tax Lines from 1120S
B21: Nonrecurring Other (Income) Loss: | G21: (+/-) | T21: Nonrecurring Other (Income) Loss: | V21: 4 & 5
B22: Depreciation: | G22: (+) | T22: Depreciation: | V22: 14 or Form 8825
B23: Depletion: | G23: (+) | T23: Depletion: | V23: 15
B24: Amortization/Casualty Loss: | G24: (+) | P24: "X if Not Included in IA | T24: Amortization/Casualty Loss: | V24: 19 (if noted)
B25: Meals & Entertainment: | G25: (-) | T25: Meals & Entertainment: | V25: M-1 Line 3b
B26: Mortgages, Notes, Bonds Payable < 1yr: | G26: (-) | T26: Mortgages, Notes, Bonds Payable < 1yr: | V26: Sch L line 17
B27: Other Adjustment: | G27: (+/-) | N27: =IF(SUM(N21:N26)=0,"",SUM(N21:N26)) -> 
B28: Subtotal | G28: = | J28: =IF(SUM(J21:J27)=0,"",SUM(J21:J27)) ->  | L28: =IF(SUM(L21:L27)=0,"",SUM(L21:L27)) -> 
B29: Percent of Ownership | G29: % | N29: Divide by # | R29: Monthly
B30: Ownership Share of Business Operations: | G30: = | J30: =IF(J28="","",J28*J29) ->  | L30: =IF(L28="","",L28*L29) ->  | N30: of months | R30: Income
B31: Total Income Available to Partner | J31: =IF(J29="","",SUM(J11,J12,J13,J14,J15,J16,J17,J30)) ->  | L31: =IF(L29="","",SUM(L11,L12,L13,L14,L15,L16,L17,L30)) ->  | N31: =IF(AND(L31="",J31=""),"",IF(J31="","",IF(J31<L31,12,IF(L31="",12,24)))) ->  | R31: =IF(N31="","",IF(P31="x","",IF(N31=12,J31/12,(J31+L31)/24))) -> 
B33: Comments: | J33: . | L33: .
B40: Business Name:
B41: Owner's Name:
H42: K1 Income
I44: Yr | J44: =Input!$C$13 -> 2024 | L44: =J44-1 -> 2023
B45: W2 earnings: | G45: +
B46: Ordinary Income (loss) : | G46: (+/-)
B47: Net Rental Income(loss): | G47: (+/-)
B48: Other Rental Income (loss): | G48: (+/-)
B49: Interest : | G49: (+)
B50: Dividends : | G50: (+)
B51: Other Adjustment: | G51: (+/-)
J53: 1120S Adjustment
B55: Nonrecurring Other (Income) Loss: | G55: (+/-)
B56: Depreciation: | G56: (+)
B57: Depletion: | G57: (+)
B58: Amortization/Casualty Loss: | G58: (+) | P58: "X if Not Included in IA
B59: Meals & Entertainment: | G59: (-)
B60: Mortgages, Notes, Bonds Payable < 1yr: | G60: (-)
B61: Other Adjustment: | G61: (+/-) | N61: =IF(SUM(N55:N60)=0,"",SUM(N55:N60)) -> 
B62: Subtotal | G62: = | J62: =IF(SUM(J55:J61)=0,"",SUM(J55:J61)) ->  | L62: =IF(SUM(L55:L61)=0,"",SUM(L55:L61)) -> 
B63: Percent of Ownership | G63: % | N63: Divide by # | R63: Monthly
B64: Ownership Share of Business Operations: | G64: = | J64: =IF(J62="","",J62*J63) ->  | L64: =IF(L62="","",L62*L63) ->  | N64: of months | R64: Income
B65: Total Income Available to Partner | J65: =IF(J63="","",SUM(J45,J46,J47,J48,J49,J50,J51,J64)) ->  | L65: =IF(L63="","",SUM(L45,L46,L47,L48,L49,L50,L51,L64)) ->  | N65: =IF(AND(L65="",J65=""),"",IF(J65="","",IF(J65<L65,12,IF(L65="",12,24)))) ->  | R65: =IF(N65="","",IF(P65="x","",IF(N65=12,J65/12,(J65+L65)/24))) -> 
B67: Comments: | J67: . | L67: .
B74: Business Name:
B75: Owner's Name:
H76: K1 Income
I78: Yr | J78: =Input!$C$13 -> 2024 | L78: =J78-1 -> 2023
B79: W2 earnings: | G79: +
B80: Ordinary Income (loss) : | G80: (+/-)
B81: Net Rental Income(loss): | G81: (+/-)
B82: Other Rental Income (loss): | G82: (+/-)
B83: Interest : | G83: (+)
B84: Dividends : | G84: (+)
B85: Other Adjustment: | G85: (+/-)
J87: 1120S Adjustment
B89: Nonrecurring Other (Income) Loss: | G89: (+/-)
B90: Depreciation: | G90: (+)
B91: Depletion: | G91: (+)
B92: Amortization/Casualty Loss: | G92: (+) | P92: "X if Not Included in IA
B93: Meals & Entertainment: | G93: (-)
B94: Mortgages, Notes, Bonds Payable < 1yr: | G94: (-)
B95: Other Adjustment: | G95: (+/-) | N95: =IF(SUM(N89:N94)=0,"",SUM(N89:N94)) -> 
B96: Subtotal | G96: = | J96: =IF(SUM(J89:J95)=0,"",SUM(J89:J95)) ->  | L96: =IF(SUM(L89:L95)=0,"",SUM(L89:L95)) -> 
B97: Percent of Ownership | G97: % | N97: Divide by # | R97: Monthly
B98: Ownership Share of Business Operations: | G98: = | J98: =IF(J96="","",J96*J97) ->  | L98: =IF(L96="","",L96*L97) ->  | N98: of months | R98: Income
B99: Total Income Available to Partner | J99: =IF(J97="","",SUM(J79,J80,J81,J82,J83,J84,J85,J98)) ->  | L99: =IF(L97="","",SUM(L79,L80,L81,L82,L83,L84,L85,L98)) ->  | N99: =IF(AND(L99="",J99=""),"",IF(J99="","",IF(J99<L99,12,IF(L99="",12,24)))) ->  | R99: =IF(N99="","",IF(P99="x","",IF(N99=12,J99/12,(J99+L99)/24))) -> 
B101: Comments: | J101: . | L101: .
B108: Business Name:
B109: Owner's Name:
H110: K1 Income
I112: Yr | J112: =Input!$C$13 -> 2024 | L112: =J112-1 -> 2023
B113: W2 earnings: | G113: +
B114: Ordinary Income (loss) : | G114: (+/-)
B115: Net Rental Income(loss): | G115: (+/-)
B116: Other Rental Income (loss): | G116: (+/-)
B117: Interest : | G117: (+)
B118: Dividends : | G118: (+)
B119: Other Adjustment: | G119: (+/-)
J121: 1120S Adjustment
B123: Nonrecurring Other (Income) Loss: | G123: (+/-)
B124: Depreciation: | G124: (+)
B125: Depletion: | G125: (+)
B126: Amortization/Casualty Loss: | G126: (+) | P126: "X if Not Included in IA
B127: Meals & Entertainment: | G127: (-)
B128: Mortgages, Notes, Bonds Payable < 1yr: | G128: (-)
B129: Other Adjustment: | G129: (+/-) | N129: =IF(SUM(N123:N128)=0,"",SUM(N123:N128)) -> 
B130: Subtotal | G130: = | J130: =IF(SUM(J123:J129)=0,"",SUM(J123:J129)) ->  | L130: =IF(SUM(L123:L129)=0,"",SUM(L123:L129)) -> 
B131: Percent of Ownership | G131: % | N131: Divide by # | R131: Monthly
B132: Ownership Share of Business Operations: | G132: = | J132: =IF(J130="","",J130*J131) ->  | L132: =IF(L130="","",L130*L131) ->  | N132: of months | R132: Income
B133: Total Income Available to Partner | J133: =IF(J131="","",SUM(J113,J114,J115,J116,J117,J118,J119,J132)) ->  | L133: =IF(L131="","",SUM(L113,L114,L115,L116,L117,L118,L119,L132)) ->  | N133: =IF(AND(L133="",J133=""),"",IF(J133="","",IF(J133<L133,12,IF(L133="",12,24)))) ->  | R133: =IF(N133="","",IF(P133="x","",IF(N133=12,J133/12,(J133+L133)/24))) -> 
B135: Comments: | J135: . | L135: .
B142: Business Name:
B143: Owner's Name:
H144: K1 Income
I146: Yr | J146: =Input!$C$13 -> 2024 | L146: =J146-1 -> 2023
B147: W2 earnings: | G147: +
B148: Ordinary Income (loss) : | G148: (+/-)
B149: Net Rental Income(loss): | G149: (+/-)
B150: Other Rental Income (loss): | G150: (+/-)
B151: Interest : | G151: (+)
B152: Dividends : | G152: (+)
B153: Other Adjustment: | G153: (+/-)
J155: 1120S Adjustment
B157: Nonrecurring Other (Income) Loss: | G157: (+/-)
B158: Depreciation: | G158: (+)
B159: Depletion: | G159: (+)
B160: Amortization/Casualty Loss: | G160: (+) | P160: "X if Not Included in IA
B161: Meals & Entertainment: | G161: (-)
B162: Mortgages, Notes, Bonds Payable < 1yr: | G162: (-)
B163: Other Adjustment: | G163: (+/-) | N163: =IF(SUM(N157:N162)=0,"",SUM(N157:N162)) -> 
B164: Subtotal | G164: = | J164: =IF(SUM(J157:J163)=0,"",SUM(J157:J163)) ->  | L164: =IF(SUM(L157:L163)=0,"",SUM(L157:L163)) -> 
B165: Percent of Ownership | G165: % | N165: Divide by # | R165: Monthly
B166: Ownership Share of Business Operations: | G166: = | J166: =IF(J164="","",J164*J165) ->  | L166: =IF(L164="","",L164*L165) ->  | N166: of months | R166: Income
B167: Total Income Available to Partner | J167: =IF(J165="","",SUM(J147,J148,J149,J150,J151,J152,J153,J166)) ->  | L167: =IF(L165="","",SUM(L147,L148,L149,L150,L151,L152,L153,L166)) ->  | N167: =IF(AND(L167="",J167=""),"",IF(J167="","",IF(J167<L167,12,IF(L167="",12,24)))) ->  | R167: =IF(N167="","",IF(P167="x","",IF(N167=12,J167/12,(J167+L167)/24))) -> 
B169: Comments: | J169: . | L169: .

Sheet YTD P&L (1120S)
B1: Year-to-Date Profit and Loss | H1: Borrower's Name: | L1: =IF(Input!C5=0,"",Input!C5) ->  | O1: Date Reviewed: | Q1: =IF(Input!I9=0,"",Input!I9) -> 
H2: Co Borrower's Name: | L2: =IF(Input!C7=0,"",Input!C7) ->  | O2: Loan Number: | Q2: =IF(Input!I5=0,"",Input!I5) -> 
H3: Calculated By: | L3: =IF(Input!C9=0,"",Input!C9) ->  | O3: Ticket Number: | Q3: =IF(Input!I7=0,"",Input!I7) -> 
U4: Accrual
B5: Business Name:
B7: Owner's Name: | N7: Method Used Cash or Accrual | T7: Cash
B9: Percent Ownership | E9: % | N9: Total # of Months of the P&L | T9: Accrual
B11: 1. Salary/Draws to Individual: | Q11: = | R11: =IF(F11="","",F11) -> 
B13: 2. Net Profit (Loss): | G13: x | H13: =IF($D$9=0,"",$D$9) ->  | I13: % | J13: Multiply by % of Ownership | Q13: = | R13: =IF(F13="","",F13*H13%) -> 
B15: 3. Depreciation: | G15: x | H15: =IF($D$9=0,"",$D$9) ->  | I15: % | J15: Multiply by % of Ownership | Q15: = | R15: =IF(F15="","",F15*H15%) -> 
B17: 4. Other Adjustment: | G17: x | H17: =IF($D$9=0,"",$D$9) ->  | I17: % | J17: Multiply by % of Ownership | Q17: = | R17: =IF(F17="","",F17*H17%) -> 
H19: Year-to-Date Total | Q19: = | R19: =IF(SUM(R11:S17)=0,"",SUM(R11:S17)) -> 
H21: Monthly Total | Q21: = | R21: =IF(S9=0,"",IF(R19=0,0,R19/S9)) -> 
B24: Comparative Analysis with YTD:
L26: "X to Include in Analysis
D28: Total | F28: Total | H28: Total | J28: Monthly YTD | L28: Normal Averaging Prior 2 YR | N28: YTD & Prior Yr | P28: YTD & Prior 2 Yrs
D29: YTD | F29: =Input!$C$13 -> 2024 | H29: =Input!$D$13 -> 2023
D31: =R19 ->  | J31: =IF(S9=0,"",R21) ->  | L31: =IF(F31=0,"",IF(H31=0,(F31/12),IF(F31<H31,F31/12,(F31+H31)/24))) ->  | N31: =IF(F31=0,"",IF(S9=0,0,IF(F31=0,0,(F31+D31)/(12+S9)))) ->  | P31: =IF(F31=0,"",IF(S9=0,0,IF(F31=0,0,(D31+F31+H31)/(24+S9)))) -> 
B33: Comments:
B37: Business Name:
B39: Owner's Name: | N39: Method Used Cash or Accrual | T39: Cash
B41: Percent Ownership | E41: % | N41: Total # of Months of the P&L | T41: Accrual
B43: 1. Salary/Draws to Individual: | Q43: = | R43: =IF(F43="","",F43) -> 
B45: 2. Net Profit (Loss): | G45: x | H45: =IF($D$41=0,"",$D$41) ->  | I45: % | J45: Multiply by % of Ownership | Q45: = | R45: =IF(F45="","",F45*H45%) -> 
B47: 3. Depreciation: | G47: x | H47: =IF($D$41=0,"",$D$41) ->  | I47: % | J47: Multiply by % of Ownership | Q47: = | R47: =IF(F47="","",F47*H47%) -> 
B49: 4. Other Adjustment: | G49: x | H49: =IF($D$41=0,"",$D$41) ->  | I49: % | J49: Multiply by % of Ownership | Q49: = | R49: =IF(F49="","",F49*H49%) -> 
H51: Year-to-Date Total | Q51: = | R51: =IF(SUM(R43:S49)=0,"",SUM(R43:S49)) -> 
H53: Monthly Total | Q53: = | R53: =IF(S41=0,"",IF(R51=0,0,R51/S41)) -> 
B56: Comparative Analysis with YTD:
A58: 0
L59: "X to Include in Analysis
D60: Total | F60: Total | H60: Total | J60: Monthly YTD | L60: Normal Averaging Prior 2 YR | N60: YTD & Prior Yr | P60: YTD & Prior 2 Yrs
D61: YTD | F61: =Input!$C$13 -> 2024 | H61: =Input!$D$13 -> 2023
D63: =R51 ->  | J63: =IF(S41=0,"",R53) ->  | L63: =IF(F63=0,"",IF(H63=0,(F63/12),IF(F63<H63,F63/12,(F63+H63)/24))) ->  | N63: =IF(F63=0,"",IF(S41=0,0,IF(F63=0,0,(F63+D63)/(12+S41)))) ->  | P63: =IF(F63=0,"",IF(S41=0,0,IF(F63=0,0,(D63+F63+H63)/(24+S41)))) -> 
B65: Comments:
B69: Business Name:
B71: Owner's Name: | N71: Method Used Cash or Accrual | T71: Cash
B73: Percent Ownership | E73: % | N73: Total # of Months of the P&L | T73: Accrual
B75: 1. Salary/Draws to Individual: | Q75: = | R75: =IF(F75="","",F75) -> 
B77: 2. Net Profit (Loss): | G77: x | H77: =IF($D$73=0,"",$D$73) ->  | I77: % | J77: Multiply by % of Ownership | Q77: = | R77: =IF(F77="","",F77*H77%) -> 
B79: 3. Depreciation: | G79: x | H79: =IF($D$73=0,"",$D$73) ->  | I79: % | J79: Multiply by % of Ownership | Q79: = | R79: =IF(F79="","",F79*H79%) -> 
B81: 4. Other Adjustment: | G81: x | H81: =IF($D$73=0,"",$D$73) ->  | I81: % | J81: Multiply by % of Ownership | Q81: = | R81: =IF(F81="","",F81*H81%) -> 
H83: Year-to-Date Total | Q83: = | R83: =IF(SUM(R75:S81)=0,"",SUM(R75:S81)) -> 
H85: Monthly Total | Q85: = | R85: =IF(S73=0,"",IF(R83=0,0,R83/S73)) -> 
B88: Comparative Analysis with YTD:
L91: "X to Include in Analysis
D92: Total | F92: Total | H92: Total | J92: Monthly YTD | L92: Normal Averaging Prior 2 YR | N92: YTD & Prior Yr | P92: YTD & Prior 2 Yrs
D93: YTD | F93: =Input!$C$13 -> 2024 | H93: =Input!$D$13 -> 2023
D95: =R83 ->  | J95: =IF(S73=0,"",R85) ->  | L95: =IF(F95=0,"",IF(H95=0,(F95/12),IF(F95<H95,F95/12,(F95+H95)/24))) ->  | N95: =IF(F95=0,"",IF(S73=0,0,IF(F95=0,0,(F95+D95)/(12+S73)))) ->  | P95: =IF(F95=0,"",IF(S73=0,0,IF(F95=0,0,(D95+F95+H95)/(24+S73)))) -> 
B97: Comments:
B101: Business Name:
B103: Owner's Name: | N103: Method Used Cash or Accrual
B105: Percent Ownership | E105: % | N105: Total # of Months of the P&L
B107: 1. Salary/Draws to Individual: | Q107: = | R107: =IF(F107="","",F107) -> 
B109: 2. Net Profit (Loss): | G109: x | H109: =IF($D$105=0,"",$D$105) ->  | I109: % | J109: Multiply by % of Ownership | Q109: = | R109: =IF(F109="","",F109*H109%) -> 
B111: 3. Depreciation: | G111: x | H111: =IF($D$105=0,"",$D$105) ->  | I111: % | J111: Multiply by % of Ownership | Q111: = | R111: =IF(F111="","",F111*H111%) -> 
B113: 4. Other Adjustment: | G113: x | H113: =IF($D$105=0,"",$D$105) ->  | I113: % | J113: Multiply by % of Ownership | Q113: = | R113: =IF(F113="","",F113*H113%) -> 
H115: Year-to-Date Total | Q115: = | R115: =IF(SUM(R107:S113)=0,"",SUM(R107:S113)) -> 
H117: Monthly Total | Q117: = | R117: =IF(S105=0,"",IF(R115=0,0,R115/S105)) -> 
B120: Comparative Analysis with YTD:
L123: "X to Include in Analysis
D124: Total | F124: Total | H124: Total | J124: Monthly YTD | L124: Normal Averaging Prior 2 YR | N124: YTD & Prior Yr | P124: YTD & Prior 2 Yrs
D125: YTD | F125: =Input!$C$13 -> 2024 | H125: =Input!$D$13 -> 2023
D127: =R115 ->  | J127: =IF(S105=0,"",R117) ->  | L127: =IF(F127=0,"",IF(H127=0,(F127/12),IF(F127<H127,F127/12,(F127+H127)/24))) ->  | N127: =IF(F127=0,"",IF(S105=0,0,IF(F127=0,0,(F127+D127)/(12+S105)))) ->  | P127: =IF(F127=0,"",IF(S105=0,0,IF(F127=0,0,(D127+F127+H127)/(24+S105)))) -> 
B129: Comments:
B133: Business Name:
B135: Owner's Name: | N135: Method Used Cash or Accrual
B137: Percent Ownership | E137: % | N137: Total # of Months of the P&L
B139: 1. Salary/Draws to Individual: | Q139: = | R139: =IF(F139="","",F139) -> 
B141: 2. Net Profit (Loss): | G141: x | H141: =IF($D$137=0,"",$D$137) ->  | I141: % | J141: Multiply by % of Ownership | Q141: = | R141: =IF(F141="","",F141*H141%) -> 
B143: 3. Depreciation: | G143: x | H143: =IF($D$137=0,"",$D$137) ->  | I143: % | J143: Multiply by % of Ownership | Q143: = | R143: =IF(F143="","",F143*H143%) -> 
B145: 4. Other Adjustment: | G145: x | H145: =IF($D$137=0,"",$D$137) ->  | I145: % | J145: Multiply by % of Ownership | Q145: = | R145: =IF(F145="","",F145*H145%) -> 
H147: Year-to-Date Total | Q147: = | R147: =IF(SUM(R139:S145)=0,"",SUM(R139:S145)) -> 
H149: Monthly Total | Q149: = | R149: =IF(S137=0,"",IF(R147=0,0,R147/S137)) -> 
B152: Comparative Analysis with YTD:
L155: "X to Include in Analysis
D156: Total | F156: Total | H156: Total | J156: Monthly YTD | L156: Normal Averaging Prior 2 YR | N156: YTD & Prior Yr | P156: YTD & Prior 2 Yrs
D157: YTD | F157: =Input!$C$13 -> 2024 | H157: =Input!$D$13 -> 2023
D159: =R147 ->  | J159: =IF(S137=0,"",R149) ->  | L159: =IF(F159=0,"",IF(H159=0,(F159/12),IF(F159<H159,F159/12,(F159+H159)/24))) ->  | N159: =IF(F159=0,"",IF(S137=0,0,IF(F159=0,0,(F159+D159)/(12+S137)))) ->  | P159: =IF(F159=0,"",IF(S137=0,0,IF(F159=0,0,(D159+F159+H159)/(24+S137)))) -> 
B161: Comments:

Sheet 1120
B1: 1120 ≥ 25% - Corporation Income | I1: Borrower's Name: | L1: =IF(Input!C5=0,"",Input!C5) ->  | N1: Date Reviewed: | P1: =IF(Input!I9=0,"",Input!I9) ->  | U1: 2011
I2: Co Borrower's Name: | L2: =IF(Input!C7=0,"",Input!C7) ->  | N2: Loan Number: | P2: =IF(Input!I5=0,"",Input!I5) ->  | U2: 2010
I3: Calculated By: | L3: =IF(Input!C9=0,"",Input!C9) ->  | N3: Ticket Number: | P3: =IF(Input!I7=0,"",Input!I7) ->  | U3: 2009
J4: 21 | U4: 2008
B7: Business Name:
B8: Owner's Name: | J8: =Input!$C$13 -> 2024 | L8: =J8-1 -> 2023
B10: W2 earnings + Dividends (if applicable) | G10: + | T10: Tax Lines from 1120 (est)
B11: Taxable Income (before NOL & SD): | G11: (+) | T11: Taxable Income or Loss (before NOL & Special Deductions): | V11: 28
B12: Taxable Loss: | G12: (-) | T12: Total Tax: | V12: 31
B13: Total Tax: | G13: (-) | T13: Nonrecurring Other (Income) Loss: | V13: 9 & 10
B14: Nonrecurring Other (Income) Loss: | G14: (+/-) | T14: Depreciation (Deductions Section): | V14: 20
B15: Depreciation: | G15: (+) | T15: Depletion: | V15: 21
B16: Depletion: | G16: (+) | T16: Amortization/Casualty Loss: | V16: 26 (only if noted)
B17: Amortization/Casualty Loss: | G17: (+) | T17: Meals & Entertainment: Schedule M-1: | V17: M-1 Line 5c
B18: Meals & Entertainment: Schedule M-1: | G18: (-) | T18: Mortgages, Notes, Bonds Payable < 1yr: | V18: Sch L Line 17
B19: Mortgages, Notes, Bonds Payable < 1yr: | G19: (-) | P19: "X if Not Included in IA
B20: Other Adjustment: | G20: (+/-)
B21: Subtotal | G21: = | J21: =IF(SUM(J11:J20)=0,"",SUM(J11:J20)) ->  | L21: =IF(SUM(L11:L20)=0,"",SUM(L11:L20)) -> 
B22: Times Individual Percentage of Ownership: | G22: %
B23: Ownership Share of Business Operations: | G23: = | J23: =IF(J21="","",J21*J22) ->  | L23: =IF(L21="","",L21*L22) -> 
B24: Less: Dividends Paid to Borrower: | G24: - | N24: Divide by # | R24: Monthly
C25: Subtotal | G25: = | J25: =IF(J23="","",J23+J24) ->  | L25: =IF(L23="","",L23+L24) ->  | N25: of months | R25: Income
B26: Total Income Available to Partner | J26: =IF(J22="","",IF(AND(J22<100%,J25<0),SUM(J10,J25),IF(J22<100%,SUM(J10),IF(J22=100%,SUM(J25,J10))))) ->  | L26: =IF(L22="","",IF(AND(L22<100%,L25<0),SUM(L10,L25),IF(L22<100%,SUM(L10),IF(L22=100%,SUM(L25,L10))))) ->  | N26: =IF(AND(L26="",J26=""),"",IF(J26="","",IF(J26<L26,12,IF(L26="",12,24)))) ->  | R26: =IF(N26="","",IF(P26="X","",IF(N26=12,J26/12,(J26+L26)/24))) -> 
B29: Comments:
B35: Business Name:
B36: Owner's Name: | J36: =Input!$C$13 -> 2024 | L36: =J36-1 -> 2023
B38: W2 earnings + Dividends (if applicable) | G38: +
B39: Taxable Income (before NOL and SD): | G39: (+)
B40: Taxable Loss: | G40: (-)
B41: Total Tax: | G41: (-)
B42: Nonrecurring Other (Income) Loss: | G42: (+/-)
B43: Depreciation: | G43: (+)
B44: Depletion: | G44: (+)
B45: Amortization/Casualty Loss: | G45: (+)
B46: Meals & Entertainment: Schedule M-1: | G46: (-)
B47: Mortgages, Notes, Bonds Payable < 1yr: | G47: (-) | P47: "X if Not Included in IA
B48: Other Adjustment: | G48: (+/-)
B49: Subtotal | G49: = | J49: =IF(SUM(J39:J48)=0,"",SUM(J39:J48)) ->  | L49: =IF(SUM(L39:L48)=0,"",SUM(L39:L48)) -> 
B50: Times Individual Percentage of Ownership: | G50: %
B51: Ownership Share of Business Operations: | G51: = | J51: =IF(J49="","",J49*J50) ->  | L51: =IF(L49="","",L49*L50) -> 
B52: Less: Dividends Paid to Borrower: | G52: - | N52: Divide by # | R52: Monthly
C53: Subtotal | G53: = | J53: =IF(J51="","",J51+J52) ->  | L53: =IF(L51="","",L51+L52) ->  | N53: of months | R53: Income
B54: Total Income Available to Partner | J54: =IF(J50="","",IF(AND(J50<100%,J53<0),SUM(J38,J53),IF(J50<100%,SUM(J38),IF(J50=100%,SUM(J53,J38))))) ->  | L54: =IF(L50="","",IF(AND(L50<100%,L53<0),SUM(L38,L53),IF(L50<100%,SUM(L38),IF(L50=100%,SUM(L53,L38))))) ->  | N54: =IF(AND(L54="",J54=""),"",IF(J54="","",IF(J54<L54,12,IF(L54="",12,24)))) ->  | R54: =IF(N54="","",IF(P54="X","",IF(N54=12,J54/12,(J54+L54)/24))) -> 
B57: Comments:
B61: Business Name:
B62: Owner's Name: | J62: =Input!$C$13 -> 2024 | L62: =J62-1 -> 2023
B64: W2 earnings + Dividends (if applicable) | G64: +
B65: Taxable Income (before NOL and SD): | G65: (+)
B66: Taxable Loss: | G66: (-)
B67: Total Tax: | G67: (-)
B68: Nonrecurring Other (Income) Loss: | G68: (+/-)
B69: Depreciation: | G69: (+)
B70: Depletion: | G70: (+)
B71: Amortization/Casualty Loss: | G71: (+)
B72: Meals & Entertainment: Schedule M-1: | G72: (-)
B73: Mortgages, Notes, Bonds Payable < 1yr: | G73: (-) | P73: "X if Not Included in IA
B74: Other Adjustment: | G74: (+/-)
B75: Subtotal | G75: = | J75: =IF(SUM(J65:J74)=0,"",SUM(J65:J74)) ->  | L75: =IF(SUM(L65:L74)=0,"",SUM(L65:L74)) -> 
B76: Times Individual Percentage of Ownership: | G76: %
B77: Ownership Share of Business Operations: | G77: = | J77: =IF(J75="","",J75*J76) ->  | L77: =IF(L75="","",L75*L76) -> 
B78: Less: Dividends Paid to Borrower: | G78: - | N78: Divide by # | R78: Monthly
C79: Subtotal | G79: = | J79: =IF(J77="","",J77+J78) ->  | L79: =IF(L77="","",L77+L78) ->  | N79: of months | R79: Income
B80: Total Income Available to Partner | J80: =IF(J76="","",IF(AND(J76<100%,J79<0),SUM(J64,J79),IF(J76<100%,SUM(J64),IF(J76=100%,SUM(J79,J64))))) ->  | L80: =IF(L76="","",IF(AND(L76<100%,L79<0),SUM(L64,L79),IF(L76<100%,SUM(L64),IF(L76=100%,SUM(L79,L64))))) ->  | N80: =IF(AND(L80="",J80=""),"",IF(J80="","",IF(J80<L80,12,IF(L80="",12,24)))) ->  | R80: =IF(N80="","",IF(P80="X","",IF(N80=12,J80/12,(J80+L80)/24))) -> 
B83: Comments:

Sheet YTD P&L (1120)
B1: 1120 Corporation YTD P&L | H1: Borrower's Name: | L1: =IF(Input!C5=0,"",Input!C5) ->  | O1: Date Reviewed: | Q1: =IF(Input!I9=0,"",Input!I9) -> 
H2: Co Borrower's Name: | L2: =IF(Input!C7=0,"",Input!C7) ->  | O2: Loan Number: | Q2: =IF(Input!I5=0,"",Input!I5) -> 
H3: Calculated By: | L3: =IF(Input!C9=0,"",Input!C9) ->  | O3: Ticket Number: | Q3: =IF(Input!I7=0,"",Input!I7) -> 
U4: Accrual
B5: Business Name:
B7: Owner's Name: | N7: Method Used Cash or Accrual | T7: Cash
B9: Percent Ownership | E9: % | N9: Total # of Months of the P&L | T9: Accrual
B11: 1. Salary/Draws to Individual: | Q11: = | R11: =IF(F11="","",F11) -> 
B13: 2. Net Profit (Loss): | G13: x | H13: =IF($D$9=0,"",$D$9) ->  | I13: % | J13: Multiply by % of Ownership | Q13: = | R13: =IF(F13="","",F13*H13%) -> 
B15: 3. Depreciation: | G15: x | H15: =IF($D$9=0,"",$D$9) ->  | I15: % | J15: Multiply by % of Ownership | Q15: = | R15: =IF(F15="","",F15*H15%) -> 
B17: 4. Other Adjustment: | G17: x | H17: =IF($D$9=0,"",$D$9) ->  | I17: % | J17: Multiply by % of Ownership | Q17: = | R17: =IF(F17="","",F17*H17%) -> 
H19: Year-to-Date Total | Q19: = | R19: =IF(SUM(R11:S17)=0,"",SUM(R11:S17)) -> 
H21: Monthly Total | Q21: = | R21: =IF(S9=0,"",IF(R19=0,0,R19/S9)) -> 
B24: Comparative Analysis with YTD:
L26: "X to Include in Analysis
D28: Total | F28: Total | H28: Total | J28: Monthly YTD | L28: Normal Averaging Prior 2 YR | N28: YTD & Prior Yr | P28: YTD & Prior 2 Yrs
D29: YTD | F29: =Input!$C$13 -> 2024 | H29: =Input!$D$13 -> 2023
D31: =R19 ->  | J31: =IF(S9=0,"",R21) ->  | L31: =IF(F31=0,"",IF(H31=0,(F31/12),IF(F31<H31,F31/12,(F31+H31)/24))) ->  | N31: =IF(F31=0,"",IF(S9=0,0,IF(F31=0,0,(F31+D31)/(12+S9)))) ->  | P31: =IF(F31=0,"",IF(S9=0,0,IF(F31=0,0,(D31+F31+H31)/(24+S9)))) -> 
B33: Comments:
B37: Business Name:
B39: Owner's Name: | N39: Method Used Cash or Accrual | T39: Cash
B41: Percent Ownership | E41: % | N41: Total # of Months of the P&L | T41: Accrual
B43: 1. Salary/Draws to Individual: | Q43: = | R43: =IF(F43="","",F43) -> 
B45: 2. Net Profit (Loss): | G45: x | H45: =IF($D$41=0,"",$D$41) ->  | I45: % | J45: Multiply by % of Ownership | Q45: = | R45: =IF(F45="","",F45*H45%) -> 
B47: 3. Depreciation: | G47: x | H47: =IF($D$41=0,"",$D$41) ->  | I47: % | J47: Multiply by % of Ownership | Q47: = | R47: =IF(F47="","",F47*H47%) -> 
B49: 4. Other Adjustment: | G49: x | H49: =IF($D$41=0,"",$D$41) ->  | I49: % | J49: Multiply by % of Ownership | Q49: = | R49: =IF(F49="","",F49*H49%) -> 
H51: Year-to-Date Total | Q51: = | R51: =IF(SUM(R43:S49)=0,"",SUM(R43:S49)) -> 
H53: Monthly Total | Q53: = | R53: =IF(S41=0,"",IF(R51=0,0,R51/S41)) -> 
B56: Comparative Analysis with YTD:
L59: "X to Include in Analysis
D60: Total | F60: Total | H60: Total | J60: Monthly YTD | L60: Normal Averaging Prior 2 YR | N60: YTD & Prior Yr | P60: YTD & Prior 2 Yrs
D61: YTD | F61: =Input!$C$13 -> 2024 | H61: =Input!$D$13 -> 2023
D63: =R51 ->  | J63: =IF(S41=0,"",R53) ->  | L63: =IF(F63=0,"",IF(H63=0,(F63/12),IF(F63<H63,F63/12,(F63+H63)/24))) ->  | N63: =IF(F63=0,"",IF(S41=0,0,IF(F63=0,0,(F63+D63)/(12+S41)))) ->  | P63: =IF(F63=0,"",IF(S41=0,0,IF(F63=0,0,(D63+F63+H63)/(24+S41)))) -> 
B65: Comments:
B69: Business Name:
B71: Owner's Name: | N71: Method Used Cash or Accrual | T71: Cash
B73: Percent Ownership | E73: % | N73: Total # of Months of the P&L | T73: Accrual
B75: 1. Salary/Draws to Individual: | Q75: = | R75: =IF(F75="","",F75) -> 
B77: 2. Net Profit (Loss): | G77: x | H77: =IF($D$73=0,"",$D$73) ->  | I77: % | J77: Multiply by % of Ownership | Q77: = | R77: =IF(F77="","",F77*H77%) -> 
B79: 3. Depreciation: | G79: x | H79: =IF($D$73=0,"",$D$73) ->  | I79: % | J79: Multiply by % of Ownership | Q79: = | R79: =IF(F79="","",F79*H79%) -> 
B81: 4. Other Adjustment: | G81: x | H81: =IF($D$73=0,"",$D$73) ->  | I81: % | J81: Multiply by % of Ownership | Q81: = | R81: =IF(F81="","",F81*H81%) -> 
H83: Year-to-Date Total | Q83: = | R83: =IF(SUM(R75:S81)=0,"",SUM(R75:S81)) -> 
H85: Monthly Total | Q85: = | R85: =IF(S73=0,"",IF(R83=0,0,R83/S73)) -> 
B88: Comparative Analysis with YTD:
L91: "X to Include in Analysis
D92: Total | F92: Total | H92: Total | J92: Monthly YTD | L92: Normal Averaging Prior 2 YR | N92: YTD & Prior Yr | P92: YTD & Prior 2 Yrs
D93: YTD | F93: =Input!$C$13 -> 2024 | H93: =Input!$D$13 -> 2023
D95: =R83 ->  | J95: =IF(S73=0,"",R85) ->  | L95: =IF(F95=0,"",IF(H95=0,(F95/12),IF(F95<H95,F95/12,(F95+H95)/24))) ->  | N95: =IF(F95=0,"",IF(S73=0,0,IF(F95=0,0,(F95+D95)/(12+S73)))) ->  | P95: =IF(F95=0,"",IF(S73=0,0,IF(F95=0,0,(D95+F95+H95)/(24+S73)))) -> 
B97: Comments:

Sheet Royalty Income
B1: Royalty Income | F1: Borrower's Name: | I1: =IF(Input!C5=0,"",Input!C5) ->  | K1: Date Reviewed: | N1: =IF(Input!I9=0,"",Input!I9) ->  | S1: 2011
F2: Co Borrower's Name: | I2: =IF(Input!C7=0,"",Input!C7) ->  | K2: Loan Number: | N2: =IF(Input!I5=0,"",Input!I5) ->  | S2: 2010
F3: Calculated By: | I3: =IF(Input!C9=0,"",Input!C9) ->  | K3: Ticket Number: | N3: =IF(Input!I7=0,"",Input!I7) ->  | S3: 2009
H6: =Input!$C$13 -> 2024 | J6: =H6-1 -> 2023 | N6: "X if Not Included in IA
B8: Royalty: | D8: Net Profit: | F8: (+) | S8: Tax Lines on Schedule E
D9: Net Loss: | F9: (-)
D10: Depreciation/Depletion: | F10: (+) | S10: Net Profit: | U10: 21
D11: Amortization/Casualty Loss: | F11: (+) | L11: Divide by # | P11: Monthly | S11: Net Loss: | U11: 21
D12: Other Adjustment: | F12: (+/-) | L12: of months | P12: Income | S12: Depreciation/Depletion: | U12: 18
D13: Total Royalty Income | H13: =IF(SUM(H8:H12)=0,"",SUM(H8:H12)) ->  | J13: =IF(SUM(J8:J12)=0,"",SUM(J8:J12)) ->  | L13: =IF(AND(J13="",H13=""),"",IF(H13="","",IF(H13<J13,12,IF(J13="",12,24)))) ->  | P13: =IF(L13="","",IF(N13="X","",IF(L13=12,H13/12,(H13+J13)/24))) ->  | S13: Taxes: | U13: 16
U14: Line 19 (only if noted)
S15: Amortization/Casualty Loss:
B16: Comments:
H22: =Input!$C$13 -> 2024 | J22: =H22-1 -> 2023 | N22: "X if Not Included in IA
B24: Royalty: | D24: Net Profit: | F24: (+)
D25: Net Loss: | F25: (-)
D26: Depreciation/Depletion: | F26: (+)
D27: Amortization/Casualty Loss: | F27: (+) | L27: Divide by # | P27: Monthly
D28: Other Adjustment: | F28: (+/-) | L28: of months | P28: Income
D29: Total Royalty Income | H29: =IF(SUM(H24:H28)=0,"",SUM(H24:H28)) ->  | J29: =IF(SUM(J24:J28)=0,"",SUM(J24:J28)) ->  | L29: =IF(AND(J29="",H29=""),"",IF(H29="","",IF(H29<J29,12,IF(J29="",12,24)))) ->  | P29: =IF(L29="","",IF(N29="X","",IF(L29=12,H29/12,(H29+J29)/24))) -> 
B32: Comments:
H38: =Input!$C$13 -> 2024 | J38: =H38-1 -> 2023 | N38: "X if Not Included in IA
B40: Royalty: | D40: Net Profit: | F40: (+)
D41: Net Loss: | F41: (-)
D42: Depreciation/Depletion: | F42: (+)
D43: Amortization/Casualty Loss: | F43: (+) | L43: Divide by # | P43: Monthly
D44: Other Adjustment: | F44: (+/-) | L44: of months | P44: Income
D45: Total Royalty Income | H45: =IF(SUM(H40:H44)=0,"",SUM(H40:H44)) ->  | J45: =IF(SUM(J40:J44)=0,"",SUM(J40:J44)) ->  | L45: =IF(AND(J45="",H45=""),"",IF(H45="","",IF(H45<J45,12,IF(J45="",12,24)))) ->  | P45: =IF(L45="","",IF(N45="X","",IF(L45=12,H45/12,(H45+J45)/24))) -> 
B48: Comments:
P54: Total
H55: =SUM(H45,H29,H13) -> 0 | J55: 0 | K55: 0 | N55: 0 | P55: =SUM(P45,P29,P13) -> 0
B57: =B9 -> 0 | D57: =H13 ->  | E57: =J13 ->  | F57: =P13 ->  | G57: =B17 -> 0
B58: =B25 -> 0 | D58: =H29 ->  | E58: =J29 ->  | F58: =P29 ->  | G58: =B33 -> 0
B59: =B41 -> 0 | D59: =H45 ->  | E59: =J45 ->  | F59: =P45 ->  | G59: =B49 -> 0

Sheet Trust
B1: Trust Income | H1: Borrower's Name: | K1: =IF(Input!C5=0,"",Input!C5) ->  | M1: Date Reviewed: | O1: =IF(Input!I9=0,"",Input!I9) ->  | T1: 2011
H2: Co Borrower's Name: | K2: =IF(Input!C7=0,"",Input!C7) ->  | M2: Loan Number: | O2: =IF(Input!I5=0,"",Input!I5) ->  | T2: 2010
H3: Calculated By: | K3: =IF(Input!C9=0,"",Input!C9) ->  | M3: Ticket Number: | O3: =IF(Input!I7=0,"",Input!I7) ->  | T3: 2009
I4: 21 | T4: 2008
B6: Trust Name&EIN #
B7: Beneficiary Name: | I7: =Input!$C$13 -> 2024 | K7: =I7-1 -> 2023 | T7: Tax Lines from K1 (est)
O8: "X if Not Included in IA
B9: Ordinary Income (loss) : | F9: (+/-) | T9: Ordinary Income (loss) : | V9: 6
B10: Net Rental Income(loss): | F10: (+/-) | T10: Net Rental Income(loss): | V10: 7
B11: Other Rental Income (loss): | F11: (+/-) | T11: Other Rental Income (loss): | V11: 8
B12: Interest: | F12: (+) | T12: Interest: | V12: 1
B13: Dividends: | F13: (+) | M13: Divide by # | Q13: Monthly | T13: Dividends: | V13: 2a
B14: Other Adjustments: | F14: (+/-) | M14: of months | Q14: Income
C15: Total Income From K-1 | I15: =IF(SUM(I9:I14)=0,"",SUM(I9:I14)) ->  | K15: =IF(SUM(K9:K14)=0,"",SUM(K9:K14)) ->  | M15: =IF(AND(K15="",I15=""),"",IF(I15="","",IF(I15<K15,12,IF(K15=0,12,24)))) ->  | Q15: =IF(M15="","",IF(O15="x","",IF(M15=12,I15/12,(I15+K15)/24))) -> 
B18: Comments:
B22: Trust Name&EIN #
B23: Beneficiary Name: | I23: =Input!$C$13 -> 2024 | K23: =I23-1 -> 2023
O24: "X if Not Included in IA
B25: Ordinary Income (loss) : | F25: (+/-)
B26: Net Rental Income(loss): | F26: (+/-)
B27: Other Rental Income (loss): | F27: (+/-)
B28: Interest: | F28: (+)
B29: Dividends: | F29: (+) | M29: Divide by # | Q29: Monthly
B30: Other Adjustments: | F30: (+/-) | M30: of months | Q30: Income
C31: Total Income From K-1 | I31: =IF(SUM(I25:I30)=0,"",SUM(I25:I30)) ->  | K31: =IF(SUM(K25:K30)=0,"",SUM(K25:K30)) ->  | M31: =IF(AND(K31="",I31=""),"",IF(I31="","",IF(I31<K31,12,IF(K31=0,12,24)))) ->  | Q31: =IF(M31="","",IF(O31="x","",IF(M31=12,I31/12,(I31+K31)/24))) -> 
B34: Comments:
B38: Trust Name&EIN #
B39: Beneficiary Name: | I39: =Input!$C$13 -> 2024 | K39: =I39-1 -> 2023
O40: "X if Not Included in IA
B41: Ordinary Income (loss) : | F41: (+/-)
B42: Net Rental Income(loss): | F42: (+/-)
B43: Other Rental Income (loss): | F43: (+/-)
B44: Interest: | F44: (+)
B45: Dividends: | F45: (+) | M45: Divide by # | Q45: Monthly
B46: Other Adjustments: | F46: (+/-) | M46: of months | Q46: Income
C47: Total Income From K-1 | I47: =IF(SUM(I41:I46)=0,"",SUM(I41:I46)) ->  | K47: =IF(SUM(K41:K46)=0,"",SUM(K41:K46)) ->  | M47: =IF(AND(K47="",I47=""),"",IF(I47="","",IF(I47<K47,12,IF(K47=0,12,24)))) ->  | Q47: =IF(M47="","",IF(O47="x","",IF(M47=12,I47/12,(I47+K47)/24))) -> 
B50: Comments:
Q55: Total
D56: =SUM(D47,D31,D15) -> 0 | F56: 1 | G56: 0 | H56: 4 | I56: 0 | K56: 0 | L56: 0 | O56: 0 | Q56: =SUM(Q47,Q31,Q15) -> 0
B57: =C6 -> 0 | C57: =C7 -> 0 | F57: =I15 ->  | H57: =K15 ->  | I57: =Q15 ->  | K57: =B19 -> 0
B58: =C22 -> 0 | C58: =C23 -> 0 | F58: =I31 ->  | H58: =K31 ->  | I58: =Q31 ->  | K58: =B35 -> 0
B59: =C38 -> 0 | C59: =C39 -> 0 | F59: =I47 ->  | H59: =K47 ->  | I59: =Q47 ->  | K59: =B51 -> 0

Sheet Farm
B1: Schedule F - Farm Income | G1: Borrower's Name: | K1: =IF(Input!C5=0,"",Input!C5) ->  | M1: Date Reviewed: | N1: =IF(Input!I9=0,"",Input!I9) ->  | T1: 2011
G2: Co Borrower's Name: | K2: =IF(Input!C7=0,"",Input!C7) ->  | M2: Loan Number: | N2: =IF(Input!I5=0,"",Input!I5) ->  | T2: 2010
G3: Calculated By: | K3: =IF(Input!C9=0,"",Input!C9) ->  | M3: Ticket Number: | N3: =IF(Input!I7=0,"",Input!I7) ->  | T3: 2009
T4: 2008
B6: Business Name:
B7: Owner's Name: | I7: =Input!$C$13 -> 2024 | K7: =I7-1 -> 2023
B9: Net Profit: | F9: + | S9: Tax Lines from Schedule F
B10: Loss: | F10: - | O10: "X if Not Included in IA
B11: Nonrecurring Other: | F11: (+/-)
B12: Depletion: | F12: + | S12: Net Profit: | U12: 34
B13: Depreciation: | F13: + | S13: Loss: | U13: 34
B14: Amortization/Casualty loss: | F14: + | S14: Nonrecurring Other: | U14: 3a-8
B15: Business Use of Home: | F15: + | M15: Divide by # | Q15: Monthly | S15: Depletion: | U15: 32 (Only if noted)
B16: Non-tax Portion ongoing & CCC Payment | F16: (+/-) | M16: of months | Q16: Income | S16: Depreciation: | U16: 14
C17: Total Income | I17: =IF(SUM(I9:I16)=0,"",SUM(I9:I16)) ->  | K17: =IF(SUM(K9:K16)=0,"",SUM(K9:K16)) ->  | M17: =IF(AND(K17="",I17=""),"",IF(I17="","",IF(I17<K17,12,IF(K17="",12,24)))) ->  | Q17: =IF(M17="","",IF(O17="X","",IF(M17=12,I17/12,(I17+K17)/24))) ->  | S17: Amortization/Casualty loss: | U17: 32 (Only if noted)
S19: Business Use of Home: | U19: 32 (Only if noted)
B20: Comments:
B24: Business Name:
B25: Owner's Name: | I25: =Input!$C$13 -> 2024 | K25: =I25-1 -> 2023
B27: Net Profit: | F27: +
B28: Loss: | F28: - | O28: "X if Not Included in IA
B29: Nonrecurring Other: | F29: (+/-)
B30: Depletion: | F30: +
B31: Depreciation: | F31: +
B32: Amortization/Casualty loss: | F32: +
B33: Business Use of Home: | F33: + | M33: Divide by # | Q33: Monthly
B34: Non-tax Portion ongoing & CCC Payment | F34: (+/-) | M34: of months | Q34: Income
C35: Total Income | I35: =IF(SUM(I27:I34)=0,"",SUM(I27:I34)) ->  | K35: =IF(SUM(K27:K34)=0,"",SUM(K27:K34)) ->  | M35: =IF(AND(K35="",I35=""),"",IF(I35="","",IF(I35<K35,12,IF(K35="",12,24)))) ->  | Q35: =IF(M35="","",IF(O35="X","",IF(M35=12,I35/12,(I35+K35)/24))) -> 
B38: Comments:
B42: =C6 -> 0 | C42: =C7 -> 0 | D42: =I35 ->  | E42: =K17 ->  | F42: =Q17 -> 
B43: =C24 -> 0 | C43: =C25 -> 0 | D43: =I35 ->  | E43: =K35 ->  | F43: =Q35 -> 

Sheet Comparative Income Analysis
D1: Borrowers Name: | E1: =IF(Input!C5=0,"",Input!C5) -> 
D2: Co-Borrowers Name: | E2: =IF(Input!C7=0,"",Input!C7) -> 
D3: Loan Number: | E3: =IF(Input!I5=0,"",Input!I5) -> 
B6: Comparative Income Analysis
B9: Business Name:
B12: Gross Income | J12: Gross Receipts
J13: Form | K13: Line
B14: Year: (ascending order) | C14: 2022 | D14: 2023 | E14: 2024 | J14: Sch C. | K14: 3
B15: Gross Receipts: | J15: C-EZ | K15: 1
J16: 1065 | K16: 1c
B17: % Change | C17: =IF(C15="","",(D15-C15)/C15) ->  | J17: 1120S | K17: 1c
B18: % Change | D18: =IF(E15="","",(E15-D15)/D15) ->  | J18: 1120 | K18: 1c
B21: Expenses | J21: Expenses
J22: Form | K22: Line
B23: Year: (ascending order) | C23: =C14 -> 2022 | D23: =D14 -> 2023 | E23: =E14 -> 2024 | J23: Sch C. | K23: 4 + 28
B24: Expenses: | J24: C-EZ | K24: 2
B25: % of Gross Receipts: | C25: =IF(C15="","",C24/C15) ->  | D25: =IF(D15="","",D24/D15) ->  | E25: =IF(E15="","",E24/E15) ->  | J25: 1065 | K25: 2 + 21
J26: 1120S | K26: 2 + 20
B27: % Change | C27: =IF(C24="","",(D24-C24)/C24) ->  | J27: 1120 | K27: 2 + 27
B28: % Change | D28: =IF(E24="","",(E24-D24)/D24) -> 
B31: Taxable Income | J31: Taxable Income
J32: Form | K32: Line
B33: Year: (ascending order) | C33: =C14 -> 2022 | D33: =D14 -> 2023 | E33: =E14 -> 2024 | J33: Sch C. | K33: 31
B34: Taxable Income | J34: C-EZ | K34: 3
B35: % of Gross Receipts: | C35: =IF(C15="","",(C34/C15)) ->  | D35: =IF(D15="","",(D34/D15)) ->  | E35: =IF(E15="","",(E34/E15)) ->  | J35: 1065 | K35: 22
J36: 1120S | K36: 21
B37: % Change | C37: =IF(C34="","",(D34-C34)/ABS(C34)) ->  | J37: 1120 | K37: 30
B38: % Change | D38: =IF(E34="","",(E34-D34)/ABS(D34)) -> 
B41: Based on the analysis above the business is:
B44: Comments:
C51: Increasing
C52: Decreasing
C53: Stable

Sheet Business Liquidity Test
F1: Borrowers Name: | G1: =IF(Input!C5=0,"",Input!C5) -> 
F2: Co-Borrowers Name: | G2: =IF(Input!C7=0,"",Input!C7) -> 
F3: Loan Number: | G3: =IF(Input!I5=0,"",Input!I5) -> 
B6: Business Liquidity Calculator
B9: Business Name:
B12: Quick Ratio
B13: Current Assets | G13: Most Recent Tax Year | H13: YTD Balance Sheet
B14: Cash
B15: Accounts Receivable | K15: Quick Ratio is a conservative liquidity ratio and should be used for businesses that rely heavily on inventory to generate income.
B16: Other Current Assets
B17: Total Current Assets | G17: =IF(G14="","",SUM(G14:G16)) ->  | H17: =IF(H14="","",SUM(H14:H16)) -> 
B19: Current Liabilities
B20: Accounts Payable
B21: Mortgage, Notes or Bonds Payable < 1 yr | M21: Balance Sheet Lines
B22: Other Current Liabilities | M22: Assets
B23: Total Current Liabilities | G23: =IF(G20="","",SUM(G20:G22)) ->  | H23: =IF(H20="","",SUM(H20:H22)) ->  | M23: Cash | N23: Line 1d
M24: Accounts Recv | N24: Line 2b[d]
F25: *Quick Ratio: | G25: =IF(G17="","",G17/G23) ->  | H25: =IF(H17="","",H17/H23) ->  | M25: Other Current Assets | N25: Line 6d
M26: Inventories | N26: Line 3d
B28: * a result of ≥ 1 is the accounting standard to confirm adequate business liquidity to support the withdrawal of earnings | M28: Liabilities
M29: Accounts Payable | N29: 1065 15d, 1120/1120S 16d
M30: MNBP < 1 yr | N30: 1065 16d, 1120/1120S 17d
B31: Current Ratio | M31: Other Current Liabilities | N31: 1065 17d, 1120/1120S 18d
B32: Current Assets | G32: Most Recent Tax Year | H32: YTD Balance Sheet
B33: Cash
B34: Accounts Receivable
B35: Inventories
B36: Other Current Assets
B37: Total Current Assets | G37: =IF(G33="","",SUM(G33:G36)) ->  | H37: =IF(H33="","",SUM(H33:H36)) ->  | K37: Current Ratio is a more aggressive and can be used for businesses not relying on inventory to generate income.
B39: Current Liabilities
B40: Accounts Payable
B41: Mortgage, Notes or Bonds Payable < 1 yr
B42: Other Current Liabilities
B43: Total Current Liabilities | G43: =IF(G40="","",SUM(G40:G42)) ->  | H43: =IF(H40="","",SUM(H40:H42)) -> 
F45: *Current Ratio: | G45: =IF(G37="","",G37/G43) ->  | H45: =IF(H37="","",H37/H43) -> 
B48: * a result of ≥ 1 is the accounting standard to confirm adequate business liquidity to support the withdrawal of earnings
B51: Comments:

Sheet VA Residual
B1: Borrowers Name: | E1: =IF(Input!C5=0,"",Input!C5) -> 
B2: Co-Borrowers Name: | E2: =IF(Input!C7=0,"",Input!C7) -> 
B3: Loan Number: | E3: =IF(Input!I5=0,"",Input!I5) -> 
A5: Residual Income Calculator
B6: Ref: | C6: Source 1 | D6: Source 2 | E6: Source 3 | F6: Source 4
A7: Pay Frequency | C7: Paid Bi-Weekly | D7: Paid Bi-Weekly | E7: Paid Bi-Weekly | F7: Paid Bi-Weekly
A8: Hours Per Week if Hourly | V8: States | W8: Region | X8: Family Size | Y8: Loan Amount
A9: Pay Rate | B9: 1 | E9: 0 | F9: 0 | T9: Hourly | V9: Alabama | W9: South | X9: 1 | Y9: $79,999 or below | AB9: LA <80000
A10: Total Monthly Gross Income of All Occupying borrowers: | C10: =IF(C7="Paid Annually",(C9/12),IF(C7="Paid Bi-Weekly",((C9*26)/12),IF(C7="Paid Semi-Monthly",((C9*24)/12),IF(C7="Hourly",(((C9*C8)*52)/12),IF(C7="Paid Weekly",((C9*52)/12),IF(C7="Paid Monthly",(C9),IF(C7="Teacher 10 Months (Enter Monthly Amount from VVOE)",((C9*10)/12),""))))))) -> 0 | D10: =IF(D7="Paid Annually",(D9/12),IF(D7="Paid Bi-Weekly",((D9*26)/12),IF(D7="Paid Semi-Monthly",((D9*24)/12),IF(D7="Hourly Rate",(((D9*D8)*52)/12),IF(D7="Paid Weekly",((D9*52)/12),IF(D7="Paid Monthly",(D9),IF(D7="Teacher 10 Months (Enter Monthly Amount from VVOE)",((D9*10)/12),""))))))) -> 0 | E10: =IF(E7="Paid Annually",(E9/12),IF(E7="Paid Bi-Weekly",((E9*26)/12),IF(E7="Paid Semi-Monthly",((E9*24)/12),IF(E7="Hourly Rate",(((E9*E8)*52)/12),IF(E7="Paid Weekly",((E9*52)/12),IF(E7="Paid Monthly",(E9),IF(E7="Teacher 10 Months (Enter Monthly Amount from VVOE)",((E9*10)/12),""))))))) -> 0 | F10: =IF(F7="Paid Annually",(F9/12),IF(F7="Paid Bi-Weekly",((F9*26)/12),IF(F7="Paid Semi-Monthly",((F9*24)/12),IF(F7="Hourly Rate",(((F9*F8)*52)/12),IF(F7="Paid Weekly",((F9*52)/12),IF(F7="Paid Monthly",(F9),IF(F7="Teacher 10 Months (Enter Monthly Amount from VVOE)",((F9*10)/12),""))))))) -> 0 | G10: Gross Living Area | T10: Paid Weekly | V10: Alaska | W10: West | X10: 2 | Y10: $80,000 and above | AB10: Family Size | AC10: Northeast | AD10: Midwest | AE10: South | AF10: West
K11: Family Size | L11: Loan Amount | M11: Region | N11: Residual Income | T11: Paid Bi-Weekly | V11: Arizona | W11: West | X11: 3 | AB11: 1 | AC11: 390 | AD11: 382 | AE11: 382 | AF11: 425
A12: Input Tax Figures: | G12: State | K12: 1 | L12: $79,999 or below | M12: Northeast | N12: 390 | T12: Paid Semi-Monthly | V12: Arkansas | W12: South | X12: 4 | AB12: 2 | AC12: 654 | AD12: 641 | AE12: 641 | AF12: 713
A13: State Income Taxes | B13: 2 | K13: 2 | L13: $79,999 or below | M13: Northeast | N13: 654 | T13: Paid Monthly | V13: California | W13: West | X13: 5 | AB13: 3 | AC13: 788 | AD13: 772 | AE13: 772 | AF13: 859
A14: Federal Income Taxes | B14: 2 | G14: Region | K14: 3 | L14: $79,999 or below | M14: Northeast | N14: 788 | T14: Paid Annually | V14: Colorado | W14: West | X14: 6 | AB14: 4 | AC14: 888 | AD14: 868 | AE14: 868 | AF14: 967
A15: Municipal or Local Taxes | B15: 2 | G15: =IF(G13<=0,"",VLOOKUP(G13,V9:W61,2,FALSE)) ->  | K15: 4 | L15: $79,999 or below | M15: Northeast | N15: 888 | T15: Teacher 10 Months (Enter Monthly Amount from VVOE) | V15: Connecticut | W15: Northeast | X15: 7+ | AB15: 5 | AC15: 921 | AD15: 902 | AE15: 902 | AF15: 1004
A16: Retirement or Social Security | B16: 2 | G16: Family Size | K16: 5 | L16: $79,999 or below | M16: Northeast | N16: 921 | V16: Delaware | W16: South | AB16: 6 | AC16: =AC15+75 -> 996 | AD16: 977 | AE16: 977 | AF16: 1079
A17: Sum of Tax Figures based on frequency of periods | K17: 6 | L17: $79,999 or below | M17: Northeast | N17: =N16+75 -> 996 | V17: Florida | W17: South | AB17: 7+ | AC17: 1071 | AD17: 1052 | AE17: 1052 | AF17: 1154
A18: State Income Taxes | C18: =IF(C$7="Paid Annually",(C13/12),IF(C$7="Paid Bi-Weekly",((C13*26)/12),IF(C$7="Paid Semi-Monthly",((C13*24)/12),IF(C$7="Hourly",((C13*52)/12),IF(C$7="Paid Weekly",((C13*52)/12),IF(C$7="Paid Monthly",(C13),IF(C$7="Teacher 10 Months (Enter Monthly Amount from VVOE)",((C13*10)/12),""))))))) -> 0 | D18: 0 | E18: 0 | F18: 0 | G18: Loan Amount | K18: 7+ | L18: $79,999 or below | M18: Northeast | N18: =N17+75 -> 1071 | V18: Georgia | W18: South
A19: Federal Income Taxes | C19: 0 | D19: 0 | E19: 0 | F19: 0 | K19: 1 | L19: $80,000 and above | M19: Northeast | N19: 450 | V19: Hawaii | W19: West | AB19: LA >79999
A20: Municipal or Local Taxes | C20: 0 | D20: 0 | E20: 0 | F20: 0 | K20: 2 | L20: $80,000 and above | M20: Northeast | N20: 755 | V20: Idaho | W20: West | AB20: Family Size | AC20: Northeast | AD20: Midwest | AE20: South | AF20: West
A21: Retirement or Social Security | C21: 0 | D21: 0 | E21: 0 | F21: 0 | K21: 3 | L21: $80,000 and above | M21: Northeast | N21: 909 | V21: Illinois | W21: Midwest | AB21: 1 | AC21: 450 | AD21: 441 | AE21: 441 | AF21: 491
K22: 4 | L22: $80,000 and above | M22: Northeast | N22: 1025 | V22: Indiana | W22: Midwest | AB22: 2 | AC22: 755 | AD22: 738 | AE22: 738 | AF22: 823
A23: Proposed Total Monthly Fixed Payment | B23: 3 | K23: 5 | L23: $80,000 and above | M23: Northeast | N23: 1062 | V23: Iowa | W23: Midwest | AB23: 3 | AC23: 909 | AD23: 889 | AE23: 889 | AF23: 990
A24: Liability Payments
A25: Estimated Maintenance and utilities | B25: 4 | C25: =IF(C10>0,G11*0.14,"0") -> 0 | K25: 6 | L25: $80,000 and above | M25: Northeast | N25: =N23+80 -> 1142 | V25: Kansas | W25: Midwest | AB25: 4 | AC25: 1025 | AD25: 1003 | AE25: 1003 | AF25: 1117
A26: Job related expenses (Child Care, URE, etc) | B26: 5 | K26: 7+ | L26: $80,000 and above | M26: Northeast | N26: =N25+80 -> 1222 | V26: Kentucky | W26: South | AB26: 5 | AC26: 1062 | AD26: 1039 | AE26: 1039 | AF26: 1158
A27: Residual Income | C27: =C10-C18-C19-C20-C21-C23-C25-C26-C24 -> 0 | D27: =D10-D18-D19-D20-D21-D23-D25-D26-D24 -> 0 | E27: =E10-E18-E19-E20-E21-E23-E25-E26-E24 -> 0 | F27: =F10-F18-F19-F20-F21-F23-F25-F26-F24 -> 0 | K27: 1 | L27: $79,999 or below | M27: Midwest | N27: 382 | V27: Louisiana | W27: South | AB27: 6 | AC27: =AC26+80 -> 1142 | AD27: 1119 | AE27: 1119 | AF27: 1238
A28: Total Residual Income | C28: =SUM(C27:F27) -> 0 | K28: 2 | L28: $79,999 or below | M28: Midwest | N28: 641 | V28: Maine | W28: Northeast | AB28: 7+ | AC28: 1222 | AD28: 1199 | AE28: 1199 | AF28: 1318
A29: Required Residual Income | C29: =INDEX(K12:N69,MATCH(1,(G17=K12:K69)*(G19=L12:L69)*(G15=M12:M69),0),4) -> 0 | K29: 3 | L29: $79,999 or below | M29: Midwest | N29: 772 | V29: Maryland | W29: South
A30: 1. Gross monthly income for occupying borrowers only. Do not gross-up non-taxable | K30: 4 | L30: $79,999 or below | M30: Midwest | N30: 868 | V30: Massachusetts | W30: Northeast
A31: 2. If Available, use Federal & State Returns; otherwise, use the most current pay stubs | E31: Residual Income Exceeds Required per Matrix? | K31: 5 | L31: $79,999 or below | M31: Midwest | N31: 902 | V31: Michigan | W31: Midwest
A32: 3. Proposed Principal, Interest, Taxes, Insurance and HOA | E32: =IF(G19<=0,"",IF(SUM(C27:F27)>C29,"PASS","FAIL")) ->  | K32: 6 | L32: $79,999 or below | M32: Midwest | N32: =N31+75 -> 977 | V32: Minnesota | W32: Midwest
A33: 4. Complete GLA in cell H8 and the $ will auto-populate | K33: 7+ | L33: $79,999 or below | M33: Midwest | N33: =N32+75 -> 1052 | V33: Mississippi | W33: South
A34: 5. Child Care and employee expenses per 2106 | K34: 1 | L34: $80,000 and above | M34: Midwest | N34: 441 | V34: Missouri | W34: Midwest
K35: 2 | L35: $80,000 and above | M35: Midwest | N35: 738 | V35: Montana | W35: West
A36: Comments:
K37: 3 | L37: $80,000 and above | M37: Midwest | N37: 889 | V37: Nebraska | W37: Midwest
K38: 4 | L38: $80,000 and above | M38: Midwest | N38: 1003 | V38: Nevada | W38: West
K39: 5 | L39: $80,000 and above | M39: Midwest | N39: 1039 | V39: New Hampshire | W39: Northeast
K40: 6 | L40: $80,000 and above | M40: Midwest | N40: =N39+80 -> 1119 | V40: New Jersey | W40: Northeast
K41: 7+ | L41: $80,000 and above | M41: Midwest | N41: =N40+80 -> 1199 | V41: New Mexico | W41: West
K42: 1 | L42: $79,999 or below | M42: South | N42: 382 | V42: New York | W42: Northeast
K43: 2 | L43: $79,999 or below | M43: South | N43: 641 | V43: North Carolina | W43: South
K44: 3 | L44: $79,999 or below | M44: South | N44: 772 | V44: North Dakota | W44: Midwest
K45: 4 | L45: $79,999 or below | M45: South | N45: 868 | V45: Ohio | W45: Midwest
K46: 5 | L46: $79,999 or below | M46: South | N46: 902 | V46: Oklahoma | W46: South
K47: 6 | L47: $79,999 or below | M47: South | N47: =N46+75 -> 977 | V47: Oregon | W47: West
K48: 7+ | L48: $79,999 or below | M48: South | N48: =N47+75 -> 1052 | V48: Pennsylvania | W48: Northeast
K49: 1 | L49: $80,000 and above | M49: South | N49: 441 | V49: Rhode Island | W49: Northeast
K50: 2 | L50: $80,000 and above | M50: South | N50: 738 | V50: South Carolina | W50: South
K51: 3 | L51: $80,000 and above | M51: South | N51: 889 | V51: South Dakota | W51: Midwest
K52: 4 | L52: $80,000 and above | M52: South | N52: 1003 | V52: Tennessee | W52: South
K53: 5 | L53: $80,000 and above | M53: South | N53: 1039 | V53: Texas | W53: South
K54: 6 | L54: $80,000 and above | M54: South | N54: =N53+80 -> 1119 | V54: Utah | W54: West
K55: 7+ | L55: $80,000 and above | M55: South | N55: =N54+80 -> 1199 | V55: Vermont | W55: Northeast
K56: 1 | L56: $79,999 or below | M56: West | N56: 425 | V56: Virginia | W56: South
K57: 2 | L57: $79,999 or below | M57: West | N57: 713 | V57: Washington | W57: West
K58: 3 | L58: $79,999 or below | M58: West | N58: 859 | V58: West Virginia | W58: South
K59: 4 | L59: $79,999 or below | M59: West | N59: 967 | V59: Wisconsin | W59: Midwest
K60: 5 | L60: $79,999 or below | M60: West | N60: 1004 | V60: Wyoming | W60: West
K61: 6 | L61: $79,999 or below | M61: West | N61: =N60+75 -> 1079 | V61: District of Columbia | W61: South
K62: 7+ | L62: $79,999 or below | M62: West | N62: =N61+75 -> 1154
K63: 1 | L63: $80,000 and above | M63: West | N63: 491
K64: 2 | L64: $80,000 and above | M64: West | N64: 823
K65: 3 | L65: $80,000 and above | M65: West | N65: 990
K66: 4 | L66: $80,000 and above | M66: West | N66: 1117
K67: 5 | L67: $80,000 and above | M67: West | N67: 1158
K68: 6 | L68: $80,000 and above | M68: West | N68: =N67+80 -> 1238
K69: 7+ | L69: $80,000 and above | M69: West | N69: =N68+80 -> 1318
